{"text_format":"1","workbook":"xlsx","n_sheets":8,"sheets":["Cover","Statistics","Success Criteria","Colour Contrast Analysis","Non-text Contrast","Changelog","Comboboxes","Data Table"],"not_rendered":{"charts":0,"images":90,"macros":1,"external_links":0,"defined_names":3,"comments":0,"pivot_tables":0},"unopened":[],"bounds":{"document_bytes":16777216,"sheet_cells":100000,"rows_first":2000,"rows_last":500,"rows_between":2000,"halvings":0,"cell_chars":16384,"cell_head_chars":4096},"cells_cut":0,"cells_raw":0,"read":"whole","date_system":"1900"}

{"sheet":"Cover","index":0,"n_rows":0,"n_cols":0,"rows_kept":0,"cut":false,"hidden":true,"merged":[[0,0,0,3]]}

{"sheet":"Statistics","index":1,"n_rows":68,"n_cols":26,"rows_kept":68,"cut":false,"hidden":false,"merged":[[11,22,12,22],[11,23,12,23],[0,20,0,25],[1,20,9,25],[6,11,6,14],[0,0,0,14],[11,0,11,2],[11,25,12,25],[11,24,12,24],[11,20,12,20],[6,7,6,10],[9,2,9,6],[9,7,9,10],[9,11,9,14],[6,2,6,6],[7,2,7,6],[8,2,8,6],[7,7,7,10],[7,11,7,14],[8,7,8,10],[8,11,8,14],[1,2,1,6],[2,2,2,6],[3,2,3,6],[4,2,4,6],[5,2,5,6],[5,7,5,10],[1,7,1,10],[2,11,2,14],[3,11,3,14],[4,11,4,14],[5,11,5,14],[2,7,2,10],[3,7,3,10],[4,7,4,10],[67,0,67,2],[66,0,66,2],[11,3,11,6],[11,7,11,10],[11,21,12,21],[64,7,64,10],[64,3,64,6],[64,15,64,18],[11,15,11,18],[11,11,11,14],[64,11,64,14]]}
["\nWCAG 2.1 website accessibility audit\nStatistics",null,null,null,null,null,null,null,null,null,null,null,null,null,null,null,null,null,null,null,"Hide these columns before delivery to the client"]
["Client",null,"Greater London Authority",null,null,null,null,"Test Environment",null,null,null,null,null,null,null,null,null,null,null,null,"Many cells are protected and cannot be edited. Unprotect the worksheet to delete columns or rows.\nDo not add columns or rows.\n\nSee Steve Green if amendments are necessary."]
["Website",null,"Healthy Schools London",null,null,null,null,"Primary Operating System",null,null,null,"Windows 10"]
["URL",null,"https://www.london.gov.uk/what-we-do/health/healthy-schools-london/awards/ ",null,null,null,null,"Primary Browser",null,null,null,"Chrome 76.0.3809.100"]
["Quotation Number",null,"005058",null,null,null,null,"Primary Screen Reader",null,null,null,"Jaws 2018"]
["Report Version Number",null,"1",null,null,null,null,"Screen Size",null,null,null,"24 Inch"]
["This document last updated by:",null,"Wing Kuet",null,null,null,null,"Screen Resolution",null,null,null,"1920x1080px Widescreen"]
["This document last updated on:",null,"11th November 2019",null,null,null,null,"Secondary Browser 1",null,null,null,"Firefox 68.0.2"]
[null,null,null,null,null,null,null,"Secondary Browser 2",null,null,null,"Internet Explorer v11.348"]
[null,null,null,null,null,null,null,"Flash Player",null,null,null,"N/A"]
[]
[null,null,null,"Level A",null,null,null,"Level AA",null,null,null,"Level AAA",null,null,null,"Total",null,null,null,null,"Level A Checkpoints Done ","Level A Checkpoints Complete ","Level AA Checkpoints Done ","Level AA Checkpoints Complete ","Level AAA Checkpoints Done ","Level AAA Checkpoints Complete "]
["ID","Page Name","Page URL","Pass","Fail","N/A","Not tested","Pass","Fail","N/A ","Not tested","Pass","Fail","N/A ","Not tested","Pass","Fail","N/A ","Not tested"]
[1,"<head>, header and footer","N/A",{"$f":"SUM(COUNTIF('Success Criteria'!E7:E69,\"PASS\"),COUNTIF('Success Criteria'!E7:E69,\"PASS with comments\"))","v":14},{"$f":"COUNTIF('Success Criteria'!E7:E69,\"NON COMPLIANT\")","v":5},{"$f":"COUNTIF('Success Criteria'!E7:E69,\"N/A\")","v":11},{"$f":"COUNTIF('Success Criteria'!E7:E69,\"not tested\")","v":0},{"$f":"SUM(COUNTIF('Success Criteria'!$E73:$E114,\"PASS\"),COUNTIF('Success Criteria'!$E73:$E114,\"PASS with comments\"))","v":10},{"$f":"COUNTIF('Success Criteria'!$E73:$E114,\"NON COMPLIANT\")","v":2},{"$f":"COUNTIF('Success Criteria'!$E73:$E114,\"N/A\")","v":8},{"$f":"COUNTIF('Success Criteria'!$E73:$E114,\"not tested\")","v":0},{"$f":"SUM(COUNTIF('Success Criteria'!$E119:$E173,\"PASS\"),COUNTIF('Success Criteria'!$E119:$E173,\"PASS with comments\"))","v":0},{"$f":"COUNTIF('Success Criteria'!$E119:$E173,\"NON COMPLIANT\")","v":0},{"$f":"COUNTIF('Success Criteria'!$E119:$E173,\"N/A\")","v":0},{"$f":"COUNTIF('Success Criteria'!$E119:$E173,\"not tested\")","v":28},{"$f":"SUM(D14+H14+L14)","v":24},{"$f":"SUM(E14+I14+M14)","v":7},{"$f":"SUM(F14+J14+N14)","v":19},{"$f":"SUM(G14+K14+O14)","v":28},null,{"$f":"SUM(D14:G14)","v":30},{"$f":"IF(U14=30,1,\"\")","v":1},{"$f":"SUM($H14:$K14)","v":20},{"$f":"IF(W14=20,1,\"\")","v":1},{"$f":"SUM($L14:$O14)","v":28},{"$f":"IF(Y14=28,1,\"\")","v":1}]
[2,"Healthy Schools London","https://www.london.gov.uk/what-we-do/health/healthy-schools-london/awards/ ",{"$f":"SUM(COUNTIF('Success Criteria'!F7:F69,\"PASS\"),COUNTIF('Success Criteria'!F7:F69,\"PASS with comments\"))","v":15},{"$f":"COUNTIF('Success Criteria'!F7:F69,\"NON COMPLIANT\")","v":3},{"$f":"COUNTIF('Success Criteria'!F7:F69,\"N/A\")","v":12},{"$f":"COUNTIF('Success Criteria'!F7:F69,\"not tested\")","v":0},{"$f":"SUM(COUNTIF('Success Criteria'!$F73:$F114,\"PASS\"),COUNTIF('Success Criteria'!$F73:$F114,\"PASS with comments\"))","v":7},{"$f":"COUNTIF('Success Criteria'!$F73:$F114,\"NON COMPLIANT\")","v":5},{"$f":"COUNTIF('Success Criteria'!$F73:$F114,\"N/A\")","v":8},{"$f":"COUNTIF('Success Criteria'!$F73:$F114,\"not tested\")","v":0},{"$f":"SUM(COUNTIF('Success Criteria'!$F119:$F173,\"PASS\"),COUNTIF('Success Criteria'!$F119:$F173,\"PASS with comments\"))","v":0},{"$f":"COUNTIF('Success Criteria'!$F119:$F173,\"NON COMPLIANT\")","v":0},{"$f":"COUNTIF('Success Criteria'!$F119:$F173,\"N/A\")","v":0},{"$f":"COUNTIF('Success Criteria'!$F119:$F173,\"not tested\")","v":28},{"$f":"SUM(D15+H15+L15)","v":22},{"$f":"SUM(E15+I15+M15)","v":8},{"$f":"SUM(F15+J15+N15)","v":20},{"$f":"SUM(G15+K15+O15)","v":28},null,30,1,{"$f":"SUM($H15:$K15)","v":20},1,{"$f":"SUM($L15:$O15)","v":28},{"$f":"IF(Y15=28,1,\"\")","v":1}]
[3,"About","https://www.london.gov.uk/what-we-do/health/healthy-schools-london/awards/about ",{"$f":"SUM(COUNTIF('Success Criteria'!G7:G69,\"PASS\"),COUNTIF('Success Criteria'!G7:G69,\"PASS with comments\"))","v":17},{"$f":"COUNTIF('Success Criteria'!G7:G69,\"NON COMPLIANT\")","v":1},{"$f":"COUNTIF('Success Criteria'!G7:G69,\"N/A\")","v":12},{"$f":"COUNTIF('Success Criteria'!G7:G69,\"not tested\")","v":0},{"$f":"SUM(COUNTIF('Success Criteria'!$G73:$G114,\"PASS\"),COUNTIF('Success Criteria'!$G73:$G114,\"PASS with comments\"))","v":9},{"$f":"COUNTIF('Success Criteria'!$G73:$G114,\"NON COMPLIANT\")","v":3},{"$f":"COUNTIF('Success Criteria'!$G73:$G114,\"N/A\")","v":8},{"$f":"COUNTIF('Success Criteria'!$G73:$G114,\"not tested\")","v":0},{"$f":"SUM(COUNTIF('Success Criteria'!$G119:$G173,\"PASS\"),COUNTIF('Success Criteria'!$G119:$G173,\"PASS with comments\"))","v":0},{"$f":"COUNTIF('Success Criteria'!$G119:$G173,\"NON COMPLIANT\")","v":0},{"$f":"COUNTIF('Success Criteria'!$G119:$G173,\"N/A\")","v":0},{"$f":"COUNTIF('Success Criteria'!$G119:$G173,\"not tested\")","v":28},26,4,20,28,null,30,1,20,1,28,1]
[4,"Schools Taking part","https://www.london.gov.uk/what-we-do/health/healthy-schools-london/awards/get-award/schools-taking-part ",{"$f":"SUM(COUNTIF('Success Criteria'!H7:H69,\"PASS\"),COUNTIF('Success Criteria'!H7:H69,\"PASS with comments\"))","v":16},{"$f":"COUNTIF('Success Criteria'!H7:H69,\"NON COMPLIANT\")","v":2},{"$f":"COUNTIF('Success Criteria'!H7:H69,\"N/A\")","v":12},{"$f":"COUNTIF('Success Criteria'!H7:H69,\"not tested\")","v":0},{"$f":"SUM(COUNTIF('Success Criteria'!$H73:$H114,\"PASS\"),COUNTIF('Success Criteria'!$H73:$H114,\"PASS with comments\"))","v":8},{"$f":"COUNTIF('Success Criteria'!$H73:$H114,\"NON COMPLIANT\")","v":4},{"$f":"COUNTIF('Success Criteria'!$H73:$H114,\"N/A\")","v":8},{"$f":"COUNTIF('Success Criteria'!$H73:$H114,\"not tested\")","v":0},{"$f":"SUM(COUNTIF('Success Criteria'!$H119:$H173,\"PASS\"),COUNTIF('Success Criteria'!$H119:$H173,\"PASS with comments\"))","v":0},{"$f":"COUNTIF('Success Criteria'!$H119:$H173,\"NON COMPLIANT\")","v":0},{"$f":"COUNTIF('Success Criteria'!$H119:$H173,\"N/A\")","v":0},{"$f":"COUNTIF('Success Criteria'!$H119:$H173,\"not tested\")","v":28},24,6,20,28,null,30,1,20,1,28,1]
[5,"Aerodrome Primary Academy","https://www.london.gov.uk/what-we-do/health/healthy-schools-london/awards/get-award/schools-taking-part/aerodrome-primary-academy ",{"$f":"SUM(COUNTIF('Success Criteria'!I7:I69,\"PASS\"),COUNTIF('Success Criteria'!I7:I69,\"PASS with comments\"))","v":15},{"$f":"COUNTIF('Success Criteria'!I7:I69,\"NON COMPLIANT\")","v":3},{"$f":"COUNTIF('Success Criteria'!I7:I69,\"N/A\")","v":12},{"$f":"COUNTIF('Success Criteria'!I7:I69,\"not tested\")","v":0},{"$f":"SUM(COUNTIF('Success Criteria'!$I73:$I114,\"PASS\"),COUNTIF('Success Criteria'!$I73:$I114,\"PASS with comments\"))","v":9},{"$f":"COUNTIF('Success Criteria'!$I73:$I114,\"NON COMPLIANT\")","v":3},{"$f":"COUNTIF('Success Criteria'!$I73:$I114,\"N/A\")","v":8},{"$f":"COUNTIF('Success Criteria'!$I73:$I114,\"not tested\")","v":0},{"$f":"SUM(COUNTIF('Success Criteria'!$I119:$I173,\"PASS\"),COUNTIF('Success Criteria'!$I119:$I173,\"PASS with comments\"))","v":0},{"$f":"COUNTIF('Success Criteria'!$I119:$I173,\"NON COMPLIANT\")","v":0},{"$f":"COUNTIF('Success Criteria'!$I119:$I173,\"N/A\")","v":0},{"$f":"COUNTIF('Success Criteria'!$I119:$I173,\"not tested\")","v":28},24,6,20,28,null,30,1,20,1,28,1]
[6,"Newsletter from Healthy Schools London","https://www.london.gov.uk/what-we-do/health/healthy-schools-london/awards/node/1455 ",{"$f":"SUM(COUNTIF('Success Criteria'!J7:J69,\"PASS\"),COUNTIF('Success Criteria'!J7:J69,\"PASS with comments\"))","v":16},{"$f":"COUNTIF('Success Criteria'!J7:J69,\"NON COMPLIANT\")","v":2},{"$f":"COUNTIF('Success Criteria'!J7:J69,\"N/A\")","v":12},{"$f":"COUNTIF('Success Criteria'!J7:J69,\"not tested\")","v":0},{"$f":"SUM(COUNTIF('Success Criteria'!$J73:$J114,\"PASS\"),COUNTIF('Success Criteria'!$J73:$J114,\"PASS with comments\"))","v":10},{"$f":"COUNTIF('Success Criteria'!$J73:$J114,\"NON COMPLIANT\")","v":2},{"$f":"COUNTIF('Success Criteria'!$J73:$J114,\"N/A\")","v":8},{"$f":"COUNTIF('Success Criteria'!$J73:$J114,\"not tested\")","v":0},{"$f":"SUM(COUNTIF('Success Criteria'!$J119:$J173,\"PASS\"),COUNTIF('Success Criteria'!$J119:$J173,\"PASS with comments\"))","v":0},{"$f":"COUNTIF('Success Criteria'!$J119:$J173,\"NON COMPLIANT\")","v":0},{"$f":"COUNTIF('Success Criteria'!$J119:$J173,\"N/A\")","v":0},{"$f":"COUNTIF('Success Criteria'!$J119:$J173,\"not tested\")","v":28},26,4,20,28,null,30,1,20,1,28,1]
[7,"Cranford Primary School, Hounslow","https://www.london.gov.uk/what-we-do/health/healthy-schools-london/awards/node/483 ",{"$f":"SUM(COUNTIF('Success Criteria'!K7:K69,\"PASS\"),COUNTIF('Success Criteria'!K7:K69,\"PASS with comments\"))","v":16},{"$f":"COUNTIF('Success Criteria'!K7:K69,\"NON COMPLIANT\")","v":2},{"$f":"COUNTIF('Success Criteria'!K7:K69,\"N/A\")","v":12},{"$f":"COUNTIF('Success Criteria'!K7:K69,\"not tested\")","v":0},{"$f":"SUM(COUNTIF('Success Criteria'!$K73:$K114,\"PASS\"),COUNTIF('Success Criteria'!$K73:$K114,\"PASS with comments\"))","v":10},{"$f":"COUNTIF('Success Criteria'!$K73:$K114,\"NON COMPLIANT\")","v":2},{"$f":"COUNTIF('Success Criteria'!$K73:$K114,\"N/A\")","v":8},{"$f":"COUNTIF('Success Criteria'!$K73:$K114,\"not tested\")","v":0},{"$f":"SUM(COUNTIF('Success Criteria'!$K119:$K173,\"PASS\"),COUNTIF('Success Criteria'!$K119:$K173,\"PASS with comments\"))","v":0},{"$f":"COUNTIF('Success Criteria'!$K119:$K173,\"NON COMPLIANT\")","v":0},{"$f":"COUNTIF('Success Criteria'!$K119:$K173,\"N/A\")","v":0},{"$f":"COUNTIF('Success Criteria'!$K119:$K173,\"not tested\")","v":28},26,4,20,28,null,30,1,20,1,28,1]
[8,"Register","https://www.london.gov.uk/what-we-do/health/healthy-schools-london/awards/register ",{"$f":"SUM(COUNTIF('Success Criteria'!L7:L69,\"PASS\"),COUNTIF('Success Criteria'!L7:L69,\"PASS with comments\"))","v":16},{"$f":"COUNTIF('Success Criteria'!L7:L69,\"NON COMPLIANT\")","v":2},{"$f":"COUNTIF('Success Criteria'!L7:L69,\"N/A\")","v":12},{"$f":"COUNTIF('Success Criteria'!L7:L69,\"not tested\")","v":0},{"$f":"SUM(COUNTIF('Success Criteria'!$L73:$L114,\"PASS\"),COUNTIF('Success Criteria'!$L73:$L114,\"PASS with comments\"))","v":11},{"$f":"COUNTIF('Success Criteria'!$L73:$L114,\"NON COMPLIANT\")","v":1},{"$f":"COUNTIF('Success Criteria'!$L73:$L114,\"N/A\")","v":8},{"$f":"COUNTIF('Success Criteria'!$L73:$L114,\"not tested\")","v":0},{"$f":"SUM(COUNTIF('Success Criteria'!$L119:$L173,\"PASS\"),COUNTIF('Success Criteria'!$L119:$L173,\"PASS with comments\"))","v":0},{"$f":"COUNTIF('Success Criteria'!$L119:$L173,\"NON COMPLIANT\")","v":0},{"$f":"COUNTIF('Success Criteria'!$L119:$L173,\"N/A\")","v":0},{"$f":"COUNTIF('Success Criteria'!$L119:$L173,\"not tested\")","v":28},27,3,20,28,null,30,1,20,1,28,1]
[9,"Register Step 2","https://www.london.gov.uk/what-we-do/health/healthy-schools-london/awards/register/8 ",{"$f":"SUM(COUNTIF('Success Criteria'!M7:M69,\"PASS\"),COUNTIF('Success Criteria'!M7:M69,\"PASS with comments\"))","v":16},{"$f":"COUNTIF('Success Criteria'!M7:M69,\"NON COMPLIANT\")","v":2},{"$f":"COUNTIF('Success Criteria'!M7:M69,\"N/A\")","v":12},{"$f":"COUNTIF('Success Criteria'!M7:M69,\"not tested\")","v":0},{"$f":"SUM(COUNTIF('Success Criteria'!$M73:$M114,\"PASS\"),COUNTIF('Success Criteria'!$M73:$M114,\"PASS with comments\"))","v":9},{"$f":"COUNTIF('Success Criteria'!$M73:$M114,\"NON COMPLIANT\")","v":3},{"$f":"COUNTIF('Success Criteria'!$M73:$M114,\"N/A\")","v":8},{"$f":"COUNTIF('Success Criteria'!$M73:$M114,\"not tested\")","v":0},{"$f":"SUM(COUNTIF('Success Criteria'!$M119:$M173,\"PASS\"),COUNTIF('Success Criteria'!$M119:$M173,\"PASS with comments\"))","v":0},{"$f":"COUNTIF('Success Criteria'!$M119:$M173,\"NON COMPLIANT\")","v":0},{"$f":"COUNTIF('Success Criteria'!$M119:$M173,\"N/A\")","v":0},{"$f":"COUNTIF('Success Criteria'!$M119:$M173,\"not tested\")","v":28},25,5,20,28,null,30,1,20,1,28,1]
[10,"Register Step 3","https://www.london.gov.uk/what-we-do/health/healthy-schools-london/awards/user/register/433 ",{"$f":"SUM(COUNTIF('Success Criteria'!N7:N69,\"PASS\"),COUNTIF('Success Criteria'!N7:N69,\"PASS with comments\"))","v":17},{"$f":"COUNTIF('Success Criteria'!N7:N69,\"NON COMPLIANT\")","v":1},{"$f":"COUNTIF('Success Criteria'!N7:N69,\"N/A\")","v":12},{"$f":"COUNTIF('Success Criteria'!N7:N69,\"not tested\")","v":0},{"$f":"SUM(COUNTIF('Success Criteria'!$N73:$N114,\"PASS\"),COUNTIF('Success Criteria'!$N73:$N114,\"PASS with comments\"))","v":10},{"$f":"COUNTIF('Success Criteria'!$N73:$N114,\"NON COMPLIANT\")","v":2},{"$f":"COUNTIF('Success Criteria'!$N73:$N114,\"N/A\")","v":8},{"$f":"COUNTIF('Success Criteria'!$N73:$N114,\"not tested\")","v":0},{"$f":"SUM(COUNTIF('Success Criteria'!$N119:$N173,\"PASS\"),COUNTIF('Success Criteria'!$N119:$N173,\"PASS with comments\"))","v":0},{"$f":"COUNTIF('Success Criteria'!$N119:$N173,\"NON COMPLIANT\")","v":0},{"$f":"COUNTIF('Success Criteria'!$N119:$N173,\"N/A\")","v":0},{"$f":"COUNTIF('Success Criteria'!$N119:$N173,\"not tested\")","v":28},27,3,20,28,null,30,1,20,1,28,1]
[11,"Register - Create School page","https://www.london.gov.uk/what-we-do/health/healthy-schools-london/awards/node/add/school-page?u=8878&b=6 ",{"$f":"SUM(COUNTIF('Success Criteria'!O7:O69,\"PASS\"),COUNTIF('Success Criteria'!O7:O69,\"PASS with comments\"))","v":17},{"$f":"COUNTIF('Success Criteria'!O7:O69,\"NON COMPLIANT\")","v":1},{"$f":"COUNTIF('Success Criteria'!O7:O69,\"N/A\")","v":12},{"$f":"COUNTIF('Success Criteria'!O7:O69,\"not tested\")","v":0},{"$f":"SUM(COUNTIF('Success Criteria'!$O73:$O114,\"PASS\"),COUNTIF('Success Criteria'!$O73:$O114,\"PASS with comments\"))","v":9},{"$f":"COUNTIF('Success Criteria'!$O73:$O114,\"NON COMPLIANT\")","v":3},{"$f":"COUNTIF('Success Criteria'!$O73:$O114,\"N/A\")","v":8},{"$f":"COUNTIF('Success Criteria'!$O73:$O114,\"not tested\")","v":0},{"$f":"SUM(COUNTIF('Success Criteria'!$O119:$O173,\"PASS\"),COUNTIF('Success Criteria'!$O119:$O173,\"PASS with comments\"))","v":0},{"$f":"COUNTIF('Success Criteria'!$O119:$O173,\"NON COMPLIANT\")","v":0},{"$f":"COUNTIF('Success Criteria'!$O119:$O173,\"N/A\")","v":0},{"$f":"COUNTIF('Success Criteria'!$O119:$O173,\"not tested\")","v":28},26,4,20,28,null,30,1,20,1,28,1]
[12,"Case Studies","https://www.london.gov.uk/what-we-do/health/healthy-schools-london/awards/resources/case-studies ",{"$f":"SUM(COUNTIF('Success Criteria'!P7:P69,\"PASS\"),COUNTIF('Success Criteria'!P7:P69,\"PASS with comments\"))","v":17},{"$f":"COUNTIF('Success Criteria'!P7:P69,\"NON COMPLIANT\")","v":1},{"$f":"COUNTIF('Success Criteria'!P7:P69,\"N/A\")","v":12},{"$f":"COUNTIF('Success Criteria'!P7:P69,\"not tested\")","v":0},{"$f":"SUM(COUNTIF('Success Criteria'!$P73:$P114,\"PASS\"),COUNTIF('Success Criteria'!$P73:$P114,\"PASS with comments\"))","v":10},{"$f":"COUNTIF('Success Criteria'!$P73:$P114,\"NON COMPLIANT\")","v":2},{"$f":"COUNTIF('Success Criteria'!$P73:$P114,\"N/A\")","v":8},{"$f":"COUNTIF('Success Criteria'!$P73:$P114,\"not tested\")","v":0},{"$f":"SUM(COUNTIF('Success Criteria'!$P119:$P173,\"PASS\"),COUNTIF('Success Criteria'!$P119:$P173,\"PASS with comments\"))","v":0},{"$f":"COUNTIF('Success Criteria'!$P119:$P173,\"NON COMPLIANT\")","v":0},{"$f":"COUNTIF('Success Criteria'!$P119:$P173,\"N/A\")","v":0},{"$f":"COUNTIF('Success Criteria'!$P119:$P173,\"not tested\")","v":28},27,3,20,28,null,30,1,20,1,28,1]
[13,"Films","https://www.london.gov.uk/what-we-do/health/healthy-schools-london/awards/resources/films ",{"$f":"SUM(COUNTIF('Success Criteria'!Q7:Q69,\"PASS\"),COUNTIF('Success Criteria'!Q7:Q69,\"PASS with comments\"))","v":18},{"$f":"COUNTIF('Success Criteria'!Q7:Q69,\"NON COMPLIANT\")","v":1},{"$f":"COUNTIF('Success Criteria'!Q7:Q69,\"N/A\")","v":11},{"$f":"COUNTIF('Success Criteria'!Q7:Q69,\"not tested\")","v":0},{"$f":"SUM(COUNTIF('Success Criteria'!$Q73:$Q114,\"PASS\"),COUNTIF('Success Criteria'!$Q73:$Q114,\"PASS with comments\"))","v":10},{"$f":"COUNTIF('Success Criteria'!$Q73:$Q114,\"NON COMPLIANT\")","v":2},{"$f":"COUNTIF('Success Criteria'!$Q73:$Q114,\"N/A\")","v":8},{"$f":"COUNTIF('Success Criteria'!$Q73:$Q114,\"not tested\")","v":0},{"$f":"SUM(COUNTIF('Success Criteria'!$Q119:$Q173,\"PASS\"),COUNTIF('Success Criteria'!$Q119:$Q173,\"PASS with comments\"))","v":0},{"$f":"COUNTIF('Success Criteria'!$Q119:$Q173,\"NON COMPLIANT\")","v":0},{"$f":"COUNTIF('Success Criteria'!$Q119:$Q173,\"N/A\")","v":0},{"$f":"COUNTIF('Success Criteria'!$Q119:$Q173,\"not tested\")","v":28},28,3,19,28,null,30,1,20,1,28,1]
[14,"Sign Up","https://www.london.gov.uk/what-we-do/health/healthy-schools-london/awards/sign ",{"$f":"SUM(COUNTIF('Success Criteria'!R7:R69,\"PASS\"),COUNTIF('Success Criteria'!R7:R69,\"PASS with comments\"))","v":17},{"$f":"COUNTIF('Success Criteria'!R7:R69,\"NON COMPLIANT\")","v":1},{"$f":"COUNTIF('Success Criteria'!R7:R69,\"N/A\")","v":12},{"$f":"COUNTIF('Success Criteria'!R7:R69,\"not tested\")","v":0},{"$f":"SUM(COUNTIF('Success Criteria'!$R73:$R114,\"PASS\"),COUNTIF('Success Criteria'!$R73:$R114,\"PASS with comments\"))","v":9},{"$f":"COUNTIF('Success Criteria'!$R73:$R114,\"NON COMPLIANT\")","v":3},{"$f":"COUNTIF('Success Criteria'!$R73:$R114,\"N/A\")","v":8},{"$f":"COUNTIF('Success Criteria'!$R73:$R114,\"not tested\")","v":0},{"$f":"SUM(COUNTIF('Success Criteria'!$R119:$R173,\"PASS\"),COUNTIF('Success Criteria'!$R119:$R173,\"PASS with comments\"))","v":0},{"$f":"COUNTIF('Success Criteria'!$R119:$R173,\"NON COMPLIANT\")","v":0},{"$f":"COUNTIF('Success Criteria'!$R119:$R173,\"N/A\")","v":0},{"$f":"COUNTIF('Success Criteria'!$R119:$R173,\"not tested\")","v":28},26,4,20,28,null,30,1,20,1,28,1]
[15,"User account","https://www.london.gov.uk/what-we-do/health/healthy-schools-london/awards/user ",{"$f":"SUM(COUNTIF('Success Criteria'!S7:S69,\"PASS\"),COUNTIF('Success Criteria'!S7:S69,\"PASS with comments\"))","v":17},{"$f":"COUNTIF('Success Criteria'!S7:S69,\"NON COMPLIANT\")","v":1},{"$f":"COUNTIF('Success Criteria'!S7:S69,\"N/A\")","v":12},{"$f":"COUNTIF('Success Criteria'!S7:S69,\"not tested\")","v":0},{"$f":"SUM(COUNTIF('Success Criteria'!$S73:$S114,\"PASS\"),COUNTIF('Success Criteria'!$S73:$S114,\"PASS with comments\"))","v":9},{"$f":"COUNTIF('Success Criteria'!$S73:$S114,\"NON COMPLIANT\")","v":3},{"$f":"COUNTIF('Success Criteria'!$S73:$S114,\"N/A\")","v":8},{"$f":"COUNTIF('Success Criteria'!$S73:$S114,\"not tested\")","v":0},{"$f":"SUM(COUNTIF('Success Criteria'!$S119:$S173,\"PASS\"),COUNTIF('Success Criteria'!$S119:$S173,\"PASS with comments\"))","v":0},{"$f":"COUNTIF('Success Criteria'!$S119:$S173,\"NON COMPLIANT\")","v":0},{"$f":"COUNTIF('Success Criteria'!$S119:$S173,\"N/A\")","v":0},{"$f":"COUNTIF('Success Criteria'!$S119:$S173,\"not tested\")","v":28},26,4,20,28,null,30,1,20,1,28,1]
[16,"Apply Gold","https://www.london.gov.uk/what-we-do/health/healthy-schools-london/awards/get-award/apply-gold",{"$f":"SUM(COUNTIF('Success Criteria'!T7:T69,\"PASS\"),COUNTIF('Success Criteria'!T7:T69,\"PASS with comments\"))","v":16},{"$f":"COUNTIF('Success Criteria'!T7:T69,\"NON COMPLIANT\")","v":2},{"$f":"COUNTIF('Success Criteria'!T7:T69,\"N/A\")","v":12},{"$f":"COUNTIF('Success Criteria'!T7:T69,\"not tested\")","v":0},{"$f":"SUM(COUNTIF('Success Criteria'!$T73:$T114,\"PASS\"),COUNTIF('Success Criteria'!$T73:$T114,\"PASS with comments\"))","v":9},{"$f":"COUNTIF('Success Criteria'!$T73:$T114,\"NON COMPLIANT\")","v":3},{"$f":"COUNTIF('Success Criteria'!$T73:$T114,\"N/A\")","v":8},{"$f":"COUNTIF('Success Criteria'!$T73:$T114,\"not tested\")","v":0},{"$f":"SUM(COUNTIF('Success Criteria'!$T119:$T173,\"PASS\"),COUNTIF('Success Criteria'!$T119:$T173,\"PASS with comments\"))","v":0},{"$f":"COUNTIF('Success Criteria'!$T119:$T173,\"NON COMPLIANT\")","v":0},{"$f":"COUNTIF('Success Criteria'!$T119:$T173,\"N/A\")","v":0},{"$f":"COUNTIF('Success Criteria'!$T119:$T173,\"not tested\")","v":28},25,5,20,28,null,30,1,20,1,28,1]
[17,"Page 17","URL 17",{"$f":"SUM(COUNTIF('Success Criteria'!U7:U69,\"PASS\"),COUNTIF('Success Criteria'!U7:U69,\"PASS with comments\"))","v":0},{"$f":"COUNTIF('Success Criteria'!U7:U69,\"NON COMPLIANT\")","v":0},{"$f":"COUNTIF('Success Criteria'!U7:U69,\"N/A\")","v":0},{"$f":"COUNTIF('Success Criteria'!U7:U69,\"not tested\")","v":0},{"$f":"SUM(COUNTIF('Success Criteria'!$U73:$U114,\"PASS\"),COUNTIF('Success Criteria'!$U73:$U114,\"PASS with comments\"))","v":0},{"$f":"COUNTIF('Success Criteria'!$U73:$U114,\"NON COMPLIANT\")","v":0},{"$f":"COUNTIF('Success Criteria'!$U73:$U114,\"N/A\")","v":0},{"$f":"COUNTIF('Success Criteria'!$U73:$U114,\"not tested\")","v":0},{"$f":"SUM(COUNTIF('Success Criteria'!$U119:$U173,\"PASS\"),COUNTIF('Success Criteria'!$U119:$U173,\"PASS with comments\"))","v":0},{"$f":"COUNTIF('Success Criteria'!$U119:$U173,\"NON COMPLIANT\")","v":0},{"$f":"COUNTIF('Success Criteria'!$U119:$U173,\"N/A\")","v":0},{"$f":"COUNTIF('Success Criteria'!$U119:$U173,\"not tested\")","v":28},0,0,0,28,null,0,"",0,"",28,1]
[18,"Page 18","URL 18",{"$f":"SUM(COUNTIF('Success Criteria'!V7:V69,\"PASS\"),COUNTIF('Success Criteria'!V7:V69,\"PASS with comments\"))","v":0},{"$f":"COUNTIF('Success Criteria'!V7:V69,\"NON COMPLIANT\")","v":0},{"$f":"COUNTIF('Success Criteria'!V7:V69,\"N/A\")","v":0},{"$f":"COUNTIF('Success Criteria'!V7:V69,\"not tested\")","v":0},{"$f":"SUM(COUNTIF('Success Criteria'!$V73:$V114,\"PASS\"),COUNTIF('Success Criteria'!$V73:$V114,\"PASS with comments\"))","v":0},{"$f":"COUNTIF('Success Criteria'!$V73:$V114,\"NON COMPLIANT\")","v":0},{"$f":"COUNTIF('Success Criteria'!$V73:$V114,\"N/A\")","v":0},{"$f":"COUNTIF('Success Criteria'!$V73:$V114,\"not tested\")","v":0},{"$f":"SUM(COUNTIF('Success Criteria'!$V119:$V173,\"PASS\"),COUNTIF('Success Criteria'!$V119:$V173,\"PASS with comments\"))","v":0},{"$f":"COUNTIF('Success Criteria'!$V119:$V173,\"NON COMPLIANT\")","v":0},{"$f":"COUNTIF('Success Criteria'!$V119:$V173,\"N/A\")","v":0},{"$f":"COUNTIF('Success Criteria'!$V119:$V173,\"not tested\")","v":28},0,0,0,28,null,0,"",0,"",28,1]
[19,"Page 19","URL 19",{"$f":"SUM(COUNTIF('Success Criteria'!W7:W69,\"PASS\"),COUNTIF('Success Criteria'!W7:W69,\"PASS with comments\"))","v":0},{"$f":"COUNTIF('Success Criteria'!W7:W69,\"NON COMPLIANT\")","v":0},{"$f":"COUNTIF('Success Criteria'!W7:W69,\"N/A\")","v":0},{"$f":"COUNTIF('Success Criteria'!W7:W69,\"not tested\")","v":0},{"$f":"SUM(COUNTIF('Success Criteria'!$W73:$W114,\"PASS\"),COUNTIF('Success Criteria'!$W73:$W114,\"PASS with comments\"))","v":0},{"$f":"COUNTIF('Success Criteria'!$W73:$W114,\"NON COMPLIANT\")","v":0},{"$f":"COUNTIF('Success Criteria'!$W73:$W114,\"N/A\")","v":0},{"$f":"COUNTIF('Success Criteria'!$W73:$W114,\"not tested\")","v":0},{"$f":"SUM(COUNTIF('Success Criteria'!$W119:$W173,\"PASS\"),COUNTIF('Success Criteria'!$W119:$W173,\"PASS with comments\"))","v":0},{"$f":"COUNTIF('Success Criteria'!$W119:$W173,\"NON COMPLIANT\")","v":0},{"$f":"COUNTIF('Success Criteria'!$W119:$W173,\"N/A\")","v":0},{"$f":"COUNTIF('Success Criteria'!$W119:$W173,\"not tested\")","v":28},0,0,0,28,null,0,"",0,"",28,1]
[20,"Page 20","URL 20",{"$f":"SUM(COUNTIF('Success Criteria'!X7:X69,\"PASS\"),COUNTIF('Success Criteria'!X7:X69,\"PASS with comments\"))","v":0},{"$f":"COUNTIF('Success Criteria'!X7:X69,\"NON COMPLIANT\")","v":0},{"$f":"COUNTIF('Success Criteria'!X7:X69,\"N/A\")","v":0},{"$f":"COUNTIF('Success Criteria'!X7:X69,\"not tested\")","v":0},{"$f":"SUM(COUNTIF('Success Criteria'!$X73:$X114,\"PASS\"),COUNTIF('Success Criteria'!$X73:$X114,\"PASS with comments\"))","v":0},{"$f":"COUNTIF('Success Criteria'!$X73:$X114,\"NON COMPLIANT\")","v":0},{"$f":"COUNTIF('Success Criteria'!$X73:$X114,\"N/A\")","v":0},{"$f":"COUNTIF('Success Criteria'!$X73:$X114,\"not tested\")","v":0},{"$f":"SUM(COUNTIF('Success Criteria'!$X119:$X173,\"PASS\"),COUNTIF('Success Criteria'!$X119:$X173,\"PASS with comments\"))","v":0},{"$f":"COUNTIF('Success Criteria'!$X119:$X173,\"NON COMPLIANT\")","v":0},{"$f":"COUNTIF('Success Criteria'!$X119:$X173,\"N/A\")","v":0},{"$f":"COUNTIF('Success Criteria'!$X119:$X173,\"not tested\")","v":28},0,0,0,28,null,0,"",0,"",28,1]
[21,"Page 21","URL 21",{"$f":"SUM(COUNTIF('Success Criteria'!Y7:Y69,\"PASS\"),COUNTIF('Success Criteria'!Y7:Y69,\"PASS with comments\"))","v":0},{"$f":"COUNTIF('Success Criteria'!Y7:Y69,\"NON COMPLIANT\")","v":0},{"$f":"COUNTIF('Success Criteria'!Y7:Y69,\"N/A\")","v":0},{"$f":"COUNTIF('Success Criteria'!Y7:Y69,\"not tested\")","v":0},{"$f":"SUM(COUNTIF('Success Criteria'!$Y73:$Y114,\"PASS\"),COUNTIF('Success Criteria'!$Y73:$Y114,\"PASS with comments\"))","v":0},{"$f":"COUNTIF('Success Criteria'!$Y73:$Y114,\"NON COMPLIANT\")","v":0},{"$f":"COUNTIF('Success Criteria'!$Y73:$Y114,\"N/A\")","v":0},{"$f":"COUNTIF('Success Criteria'!$Y73:$Y114,\"not tested\")","v":0},{"$f":"SUM(COUNTIF('Success Criteria'!$Y119:$Y173,\"PASS\"),COUNTIF('Success Criteria'!$Y119:$Y173,\"PASS with comments\"))","v":0},{"$f":"COUNTIF('Success Criteria'!$Y119:$Y173,\"NON COMPLIANT\")","v":0},{"$f":"COUNTIF('Success Criteria'!$Y119:$Y173,\"N/A\")","v":0},{"$f":"COUNTIF('Success Criteria'!$Y119:$Y173,\"not tested\")","v":28},0,0,0,28,null,0,"",0,"",28,1]
[22,"Page 22","URL 22",{"$f":"SUM(COUNTIF('Success Criteria'!Z7:Z69,\"PASS\"),COUNTIF('Success Criteria'!Z7:Z69,\"PASS with comments\"))","v":0},{"$f":"COUNTIF('Success Criteria'!Z7:Z69,\"NON COMPLIANT\")","v":0},{"$f":"COUNTIF('Success Criteria'!Z7:Z69,\"N/A\")","v":0},{"$f":"COUNTIF('Success Criteria'!Z7:Z69,\"not tested\")","v":0},{"$f":"SUM(COUNTIF('Success Criteria'!$Z73:$Z114,\"PASS\"),COUNTIF('Success Criteria'!$Z73:$Z114,\"PASS with comments\"))","v":0},{"$f":"COUNTIF('Success Criteria'!$Z73:$Z114,\"NON COMPLIANT\")","v":0},{"$f":"COUNTIF('Success Criteria'!$Z73:$Z114,\"N/A\")","v":0},{"$f":"COUNTIF('Success Criteria'!$Z73:$Z114,\"not tested\")","v":0},{"$f":"SUM(COUNTIF('Success Criteria'!$Z119:$Z173,\"PASS\"),COUNTIF('Success Criteria'!$Z119:$Z173,\"PASS with comments\"))","v":0},{"$f":"COUNTIF('Success Criteria'!$Z119:$Z173,\"NON COMPLIANT\")","v":0},{"$f":"COUNTIF('Success Criteria'!$Z119:$Z173,\"N/A\")","v":0},{"$f":"COUNTIF('Success Criteria'!$Z119:$Z173,\"not tested\")","v":28},0,0,0,28,null,0,"",0,"",28,1]
[23,"Page 23","URL 23",{"$f":"SUM(COUNTIF('Success Criteria'!AA7:AA69,\"PASS\"),COUNTIF('Success Criteria'!AA7:AA69,\"PASS with comments\"))","v":0},{"$f":"COUNTIF('Success Criteria'!AA7:AA69,\"NON COMPLIANT\")","v":0},{"$f":"COUNTIF('Success Criteria'!AA7:AA69,\"N/A\")","v":0},{"$f":"COUNTIF('Success Criteria'!AA7:AA69,\"not tested\")","v":0},{"$f":"SUM(COUNTIF('Success Criteria'!$AA73:$AA114,\"PASS\"),COUNTIF('Success Criteria'!$AA73:$AA114,\"PASS with comments\"))","v":0},{"$f":"COUNTIF('Success Criteria'!$AA73:$AA114,\"NON COMPLIANT\")","v":0},{"$f":"COUNTIF('Success Criteria'!$AA73:$AA114,\"N/A\")","v":0},{"$f":"COUNTIF('Success Criteria'!$AA73:$AA114,\"not tested\")","v":0},{"$f":"SUM(COUNTIF('Success Criteria'!$AA119:$AA173,\"PASS\"),COUNTIF('Success Criteria'!$AA119:$AA173,\"PASS with comments\"))","v":0},{"$f":"COUNTIF('Success Criteria'!$AA119:$AA173,\"NON COMPLIANT\")","v":0},{"$f":"COUNTIF('Success Criteria'!$AA119:$AA173,\"N/A\")","v":0},{"$f":"COUNTIF('Success Criteria'!$AA119:$AA173,\"not tested\")","v":28},0,0,0,28,null,0,"",0,"",28,1]
[24,"Page 24","URL 24",{"$f":"SUM(COUNTIF('Success Criteria'!AB7:AB69,\"PASS\"),COUNTIF('Success Criteria'!AB7:AB69,\"PASS with comments\"))","v":0},{"$f":"COUNTIF('Success Criteria'!AB7:AB69,\"NON COMPLIANT\")","v":0},{"$f":"COUNTIF('Success Criteria'!AB7:AB69,\"N/A\")","v":0},{"$f":"COUNTIF('Success Criteria'!AB7:AB69,\"not tested\")","v":0},{"$f":"SUM(COUNTIF('Success Criteria'!$AB73:$AB114,\"PASS\"),COUNTIF('Success Criteria'!$AB73:$AB114,\"PASS with comments\"))","v":0},{"$f":"COUNTIF('Success Criteria'!$AB73:$AB114,\"NON COMPLIANT\")","v":0},{"$f":"COUNTIF('Success Criteria'!$AB73:$AB114,\"N/A\")","v":0},{"$f":"COUNTIF('Success Criteria'!$AB73:$AB114,\"not tested\")","v":0},{"$f":"SUM(COUNTIF('Success Criteria'!$AB119:$AB173,\"PASS\"),COUNTIF('Success Criteria'!$AB119:$AB173,\"PASS with comments\"))","v":0},{"$f":"COUNTIF('Success Criteria'!$AB119:$AB173,\"NON COMPLIANT\")","v":0},{"$f":"COUNTIF('Success Criteria'!$AB119:$AB173,\"N/A\")","v":0},{"$f":"COUNTIF('Success Criteria'!$AB119:$AB173,\"not tested\")","v":28},0,0,0,28,null,0,"",0,"",28,1]
[25,"Page 25","URL 25",{"$f":"SUM(COUNTIF('Success Criteria'!AC7:AC69,\"PASS\"),COUNTIF('Success Criteria'!AC7:AC69,\"PASS with comments\"))","v":0},{"$f":"COUNTIF('Success Criteria'!AC7:AC69,\"NON COMPLIANT\")","v":0},{"$f":"COUNTIF('Success Criteria'!AC7:AC69,\"N/A\")","v":0},{"$f":"COUNTIF('Success Criteria'!AC7:AC69,\"not tested\")","v":0},{"$f":"SUM(COUNTIF('Success Criteria'!$AC73:$AC114,\"PASS\"),COUNTIF('Success Criteria'!$AC73:$AC114,\"PASS with comments\"))","v":0},{"$f":"COUNTIF('Success Criteria'!$AC73:$AC114,\"NON COMPLIANT\")","v":0},{"$f":"COUNTIF('Success Criteria'!$AC73:$AC114,\"N/A\")","v":0},{"$f":"COUNTIF('Success Criteria'!$AC73:$AC114,\"not tested\")","v":0},{"$f":"SUM(COUNTIF('Success Criteria'!$AC119:$AC173,\"PASS\"),COUNTIF('Success Criteria'!$AC119:$AC173,\"PASS with comments\"))","v":0},{"$f":"COUNTIF('Success Criteria'!$AC119:$AC173,\"NON COMPLIANT\")","v":0},{"$f":"COUNTIF('Success Criteria'!$AC119:$AC173,\"N/A\")","v":0},{"$f":"COUNTIF('Success Criteria'!$AC119:$AC173,\"not tested\")","v":28},0,0,0,28,null,0,"",0,"",28,1]
[26,"Page 26","URL 26",{"$f":"SUM(COUNTIF('Success Criteria'!AD7:AD69,\"PASS\"),COUNTIF('Success Criteria'!AD7:AD69,\"PASS with comments\"))","v":0},{"$f":"COUNTIF('Success Criteria'!AD7:AD69,\"NON COMPLIANT\")","v":0},{"$f":"COUNTIF('Success Criteria'!AD7:AD69,\"N/A\")","v":0},{"$f":"COUNTIF('Success Criteria'!AD7:AD69,\"not tested\")","v":0},{"$f":"SUM(COUNTIF('Success Criteria'!$AD73:$AD114,\"PASS\"),COUNTIF('Success Criteria'!$AD73:$AD114,\"PASS with comments\"))","v":0},{"$f":"COUNTIF('Success Criteria'!$AD73:$AD114,\"NON COMPLIANT\")","v":0},{"$f":"COUNTIF('Success Criteria'!$AD73:$AD114,\"N/A\")","v":0},{"$f":"COUNTIF('Success Criteria'!$AD73:$AD114,\"not tested\")","v":0},{"$f":"SUM(COUNTIF('Success Criteria'!$AD119:$AD173,\"PASS\"),COUNTIF('Success Criteria'!$AD119:$AD173,\"PASS with comments\"))","v":0},{"$f":"COUNTIF('Success Criteria'!$AD119:$AD173,\"NON COMPLIANT\")","v":0},{"$f":"COUNTIF('Success Criteria'!$AD119:$AD173,\"N/A\")","v":0},{"$f":"COUNTIF('Success Criteria'!$AD119:$AD173,\"not tested\")","v":28},0,0,0,28,null,0,"",0,"",28,1]
[27,"Page 27","URL 27",{"$f":"SUM(COUNTIF('Success Criteria'!AE7:AE69,\"PASS\"),COUNTIF('Success Criteria'!AE7:AE69,\"PASS with comments\"))","v":0},{"$f":"COUNTIF('Success Criteria'!AE7:AE69,\"NON COMPLIANT\")","v":0},{"$f":"COUNTIF('Success Criteria'!AE7:AE69,\"N/A\")","v":0},{"$f":"COUNTIF('Success Criteria'!AE7:AE69,\"not tested\")","v":0},{"$f":"SUM(COUNTIF('Success Criteria'!$AE73:$AE114,\"PASS\"),COUNTIF('Success Criteria'!$AE73:$AE114,\"PASS with comments\"))","v":0},{"$f":"COUNTIF('Success Criteria'!$AE73:$AE114,\"NON COMPLIANT\")","v":0},{"$f":"COUNTIF('Success Criteria'!$AE73:$AE114,\"N/A\")","v":0},{"$f":"COUNTIF('Success Criteria'!$AE73:$AE114,\"not tested\")","v":0},{"$f":"SUM(COUNTIF('Success Criteria'!$AE119:$AE173,\"PASS\"),COUNTIF('Success Criteria'!$AE119:$AE173,\"PASS with comments\"))","v":0},{"$f":"COUNTIF('Success Criteria'!$AE119:$AE173,\"NON COMPLIANT\")","v":0},{"$f":"COUNTIF('Success Criteria'!$AE119:$AE173,\"N/A\")","v":0},{"$f":"COUNTIF('Success Criteria'!$AE119:$AE173,\"not tested\")","v":28},0,0,0,28,null,0,"",0,"",28,1]
[28,"Page 28","URL 28",{"$f":"SUM(COUNTIF('Success Criteria'!AF7:AF69,\"PASS\"),COUNTIF('Success Criteria'!AF7:AF69,\"PASS with comments\"))","v":0},{"$f":"COUNTIF('Success Criteria'!AF7:AF69,\"NON COMPLIANT\")","v":0},{"$f":"COUNTIF('Success Criteria'!AF7:AF69,\"N/A\")","v":0},{"$f":"COUNTIF('Success Criteria'!AF7:AF69,\"not tested\")","v":0},{"$f":"SUM(COUNTIF('Success Criteria'!$AF73:$AF114,\"PASS\"),COUNTIF('Success Criteria'!$AF73:$AF114,\"PASS with comments\"))","v":0},{"$f":"COUNTIF('Success Criteria'!$AF73:$AF114,\"NON COMPLIANT\")","v":0},{"$f":"COUNTIF('Success Criteria'!$AF73:$AF114,\"N/A\")","v":0},{"$f":"COUNTIF('Success Criteria'!$AF73:$AF114,\"not tested\")","v":0},{"$f":"SUM(COUNTIF('Success Criteria'!$AF119:$AF173,\"PASS\"),COUNTIF('Success Criteria'!$AF119:$AF173,\"PASS with comments\"))","v":0},{"$f":"COUNTIF('Success Criteria'!$AF119:$AF173,\"NON COMPLIANT\")","v":0},{"$f":"COUNTIF('Success Criteria'!$AF119:$AF173,\"N/A\")","v":0},{"$f":"COUNTIF('Success Criteria'!$AF119:$AF173,\"not tested\")","v":28},0,0,0,28,null,0,"",0,"",28,1]
[29,"Page 29","URL 29",{"$f":"SUM(COUNTIF('Success Criteria'!AG7:AG69,\"PASS\"),COUNTIF('Success Criteria'!AG7:AG69,\"PASS with comments\"))","v":0},{"$f":"COUNTIF('Success Criteria'!AG7:AG69,\"NON COMPLIANT\")","v":0},{"$f":"COUNTIF('Success Criteria'!AG7:AG69,\"N/A\")","v":0},{"$f":"COUNTIF('Success Criteria'!AG7:AG69,\"not tested\")","v":0},{"$f":"SUM(COUNTIF('Success Criteria'!$AG73:$AG114,\"PASS\"),COUNTIF('Success Criteria'!$AG73:$AG114,\"PASS with comments\"))","v":0},{"$f":"COUNTIF('Success Criteria'!$AG73:$AG114,\"NON COMPLIANT\")","v":0},{"$f":"COUNTIF('Success Criteria'!$AG73:$AG114,\"N/A\")","v":0},{"$f":"COUNTIF('Success Criteria'!$AG73:$AG114,\"not tested\")","v":0},{"$f":"SUM(COUNTIF('Success Criteria'!$AG119:$AG173,\"PASS\"),COUNTIF('Success Criteria'!$AG119:$AG173,\"PASS with comments\"))","v":0},{"$f":"COUNTIF('Success Criteria'!$AG119:$AG173,\"NON COMPLIANT\")","v":0},{"$f":"COUNTIF('Success Criteria'!$AG119:$AG173,\"N/A\")","v":0},{"$f":"COUNTIF('Success Criteria'!$AG119:$AG173,\"not tested\")","v":28},0,0,0,28,null,0,"",0,"",28,1]
[30,"Page 30","URL 30",{"$f":"SUM(COUNTIF('Success Criteria'!AH7:AH69,\"PASS\"),COUNTIF('Success Criteria'!AH7:AH69,\"PASS with comments\"))","v":0},{"$f":"COUNTIF('Success Criteria'!AH7:AH69,\"NON COMPLIANT\")","v":0},{"$f":"COUNTIF('Success Criteria'!AH7:AH69,\"N/A\")","v":0},{"$f":"COUNTIF('Success Criteria'!AH7:AH69,\"not tested\")","v":0},{"$f":"SUM(COUNTIF('Success Criteria'!$AH73:$AH114,\"PASS\"),COUNTIF('Success Criteria'!$AH73:$AH114,\"PASS with comments\"))","v":0},{"$f":"COUNTIF('Success Criteria'!$AH73:$AH114,\"NON COMPLIANT\")","v":0},{"$f":"COUNTIF('Success Criteria'!$AH73:$AH114,\"N/A\")","v":0},{"$f":"COUNTIF('Success Criteria'!$AH73:$AH114,\"not tested\")","v":0},{"$f":"SUM(COUNTIF('Success Criteria'!$AH119:$AH173,\"PASS\"),COUNTIF('Success Criteria'!$AH119:$AH173,\"PASS with comments\"))","v":0},{"$f":"COUNTIF('Success Criteria'!$AH119:$AH173,\"NON COMPLIANT\")","v":0},{"$f":"COUNTIF('Success Criteria'!$AH119:$AH173,\"N/A\")","v":0},{"$f":"COUNTIF('Success Criteria'!$AH119:$AH173,\"not tested\")","v":28},0,0,0,28,null,0,"",0,"",28,1]
[31,"Page 31","URL 31",{"$f":"SUM(COUNTIF('Success Criteria'!AI7:AI69,\"PASS\"),COUNTIF('Success Criteria'!AI7:AI69,\"PASS with comments\"))","v":0},{"$f":"COUNTIF('Success Criteria'!AI7:AI69,\"NON COMPLIANT\")","v":0},{"$f":"COUNTIF('Success Criteria'!AI7:AI69,\"N/A\")","v":0},{"$f":"COUNTIF('Success Criteria'!AI7:AI69,\"not tested\")","v":0},{"$f":"SUM(COUNTIF('Success Criteria'!$AI73:$AI114,\"PASS\"),COUNTIF('Success Criteria'!$AI73:$AI114,\"PASS with comments\"))","v":0},{"$f":"COUNTIF('Success Criteria'!$AI73:$AI114,\"NON COMPLIANT\")","v":0},{"$f":"COUNTIF('Success Criteria'!$AI73:$AI114,\"N/A\")","v":0},{"$f":"COUNTIF('Success Criteria'!$AI73:$AI114,\"not tested\")","v":0},{"$f":"SUM(COUNTIF('Success Criteria'!$AI119:$AI173,\"PASS\"),COUNTIF('Success Criteria'!$AI119:$AI173,\"PASS with comments\"))","v":0},{"$f":"COUNTIF('Success Criteria'!$AI119:$AI173,\"NON COMPLIANT\")","v":0},{"$f":"COUNTIF('Success Criteria'!$AI119:$AI173,\"N/A\")","v":0},{"$f":"COUNTIF('Success Criteria'!$AI119:$AI173,\"not tested\")","v":28},0,0,0,28,null,0,"",0,"",28,1]
[32,"Page 32","URL 32",{"$f":"SUM(COUNTIF('Success Criteria'!AJ7:AJ69,\"PASS\"),COUNTIF('Success Criteria'!AJ7:AJ69,\"PASS with comments\"))","v":0},{"$f":"COUNTIF('Success Criteria'!AJ7:AJ69,\"NON COMPLIANT\")","v":0},{"$f":"COUNTIF('Success Criteria'!AJ7:AJ69,\"N/A\")","v":0},{"$f":"COUNTIF('Success Criteria'!AJ7:AJ69,\"not tested\")","v":0},{"$f":"SUM(COUNTIF('Success Criteria'!$AJ73:$AJ114,\"PASS\"),COUNTIF('Success Criteria'!$AJ73:$AJ114,\"PASS with comments\"))","v":0},{"$f":"COUNTIF('Success Criteria'!$AJ73:$AJ114,\"NON COMPLIANT\")","v":0},{"$f":"COUNTIF('Success Criteria'!$AJ73:$AJ114,\"N/A\")","v":0},{"$f":"COUNTIF('Success Criteria'!$AJ73:$AJ114,\"not tested\")","v":0},{"$f":"SUM(COUNTIF('Success Criteria'!$AJ119:$AJ173,\"PASS\"),COUNTIF('Success Criteria'!$AJ119:$AJ173,\"PASS with comments\"))","v":0},{"$f":"COUNTIF('Success Criteria'!$AJ119:$AJ173,\"NON COMPLIANT\")","v":0},{"$f":"COUNTIF('Success Criteria'!$AJ119:$AJ173,\"N/A\")","v":0},{"$f":"COUNTIF('Success Criteria'!$AJ119:$AJ173,\"not tested\")","v":28},0,0,0,28,null,0,"",0,"",28,1]
[33,"Page 33","URL 33",{"$f":"SUM(COUNTIF('Success Criteria'!AK7:AK69,\"PASS\"),COUNTIF('Success Criteria'!AK7:AK69,\"PASS with comments\"))","v":0},{"$f":"COUNTIF('Success Criteria'!AK7:AK69,\"NON COMPLIANT\")","v":0},{"$f":"COUNTIF('Success Criteria'!AK7:AK69,\"N/A\")","v":0},{"$f":"COUNTIF('Success Criteria'!AK7:AK69,\"not tested\")","v":0},{"$f":"SUM(COUNTIF('Success Criteria'!$AK73:$AK114,\"PASS\"),COUNTIF('Success Criteria'!$AK73:$AK114,\"PASS with comments\"))","v":0},{"$f":"COUNTIF('Success Criteria'!$AK73:$AK114,\"NON COMPLIANT\")","v":0},{"$f":"COUNTIF('Success Criteria'!$AK73:$AK114,\"N/A\")","v":0},{"$f":"COUNTIF('Success Criteria'!$AK73:$AK114,\"not tested\")","v":0},{"$f":"SUM(COUNTIF('Success Criteria'!$AK119:$AK173,\"PASS\"),COUNTIF('Success Criteria'!$AK119:$AK173,\"PASS with comments\"))","v":0},{"$f":"COUNTIF('Success Criteria'!$AK119:$AK173,\"NON COMPLIANT\")","v":0},{"$f":"COUNTIF('Success Criteria'!$AK119:$AK173,\"N/A\")","v":0},{"$f":"COUNTIF('Success Criteria'!$AK119:$AK173,\"not tested\")","v":28},0,0,0,28,null,{"$f":"SUM(D46:G46)","v":0},{"$f":"IF(U46=30,1,\"\")","v":""},0,"",28,1]
[34,"Page 34","URL 34",{"$f":"SUM(COUNTIF('Success Criteria'!AL7:AL69,\"PASS\"),COUNTIF('Success Criteria'!AL7:AL69,\"PASS with comments\"))","v":0},{"$f":"COUNTIF('Success Criteria'!AL7:AL69,\"NON COMPLIANT\")","v":0},{"$f":"COUNTIF('Success Criteria'!AL7:AL69,\"N/A\")","v":0},{"$f":"COUNTIF('Success Criteria'!AL7:AL69,\"not tested\")","v":0},{"$f":"SUM(COUNTIF('Success Criteria'!$AL73:$AL114,\"PASS\"),COUNTIF('Success Criteria'!$AL73:$AL114,\"PASS with comments\"))","v":0},{"$f":"COUNTIF('Success Criteria'!$AL73:$AL114,\"NON COMPLIANT\")","v":0},{"$f":"COUNTIF('Success Criteria'!$AL73:$AL114,\"N/A\")","v":0},{"$f":"COUNTIF('Success Criteria'!$AL73:$AL114,\"not tested\")","v":0},{"$f":"SUM(COUNTIF('Success Criteria'!$AL119:$AL173,\"PASS\"),COUNTIF('Success Criteria'!$AL119:$AL173,\"PASS with comments\"))","v":0},{"$f":"COUNTIF('Success Criteria'!$AL119:$AL173,\"NON COMPLIANT\")","v":0},{"$f":"COUNTIF('Success Criteria'!$AL119:$AL173,\"N/A\")","v":0},{"$f":"COUNTIF('Success Criteria'!$AL119:$AL173,\"not tested\")","v":28},0,0,0,28,null,0,"",0,"",28,1]
[35,"Page 35","URL 35",{"$f":"SUM(COUNTIF('Success Criteria'!AM7:AM69,\"PASS\"),COUNTIF('Success Criteria'!AM7:AM69,\"PASS with comments\"))","v":0},{"$f":"COUNTIF('Success Criteria'!AM7:AM69,\"NON COMPLIANT\")","v":0},{"$f":"COUNTIF('Success Criteria'!AM7:AM69,\"N/A\")","v":0},{"$f":"COUNTIF('Success Criteria'!AM7:AM69,\"not tested\")","v":0},{"$f":"SUM(COUNTIF('Success Criteria'!$AM73:$AM114,\"PASS\"),COUNTIF('Success Criteria'!$AM73:$AM114,\"PASS with comments\"))","v":0},{"$f":"COUNTIF('Success Criteria'!$AM73:$AM114,\"NON COMPLIANT\")","v":0},{"$f":"COUNTIF('Success Criteria'!$AM73:$AM114,\"N/A\")","v":0},{"$f":"COUNTIF('Success Criteria'!$AM73:$AM114,\"not tested\")","v":0},{"$f":"SUM(COUNTIF('Success Criteria'!$AM119:$AM173,\"PASS\"),COUNTIF('Success Criteria'!$AM119:$AM173,\"PASS with comments\"))","v":0},{"$f":"COUNTIF('Success Criteria'!$AM119:$AM173,\"NON COMPLIANT\")","v":0},{"$f":"COUNTIF('Success Criteria'!$AM119:$AM173,\"N/A\")","v":0},{"$f":"COUNTIF('Success Criteria'!$AM119:$AM173,\"not tested\")","v":28},0,0,0,28,null,0,"",0,"",28,1]
[36,"Page 36","URL 36",{"$f":"SUM(COUNTIF('Success Criteria'!AN7:AN69,\"PASS\"),COUNTIF('Success Criteria'!AN7:AN69,\"PASS with comments\"))","v":0},{"$f":"COUNTIF('Success Criteria'!AN7:AN69,\"NON COMPLIANT\")","v":0},{"$f":"COUNTIF('Success Criteria'!AN7:AN69,\"N/A\")","v":0},{"$f":"COUNTIF('Success Criteria'!AN7:AN69,\"not tested\")","v":0},{"$f":"SUM(COUNTIF('Success Criteria'!$AN73:$AN114,\"PASS\"),COUNTIF('Success Criteria'!$AN73:$AN114,\"PASS with comments\"))","v":0},{"$f":"COUNTIF('Success Criteria'!$AN73:$AN114,\"NON COMPLIANT\")","v":0},{"$f":"COUNTIF('Success Criteria'!$AN73:$AN114,\"N/A\")","v":0},{"$f":"COUNTIF('Success Criteria'!$AN73:$AN114,\"not tested\")","v":0},{"$f":"SUM(COUNTIF('Success Criteria'!$AN119:$AN173,\"PASS\"),COUNTIF('Success Criteria'!$AN119:$AN173,\"PASS with comments\"))","v":0},{"$f":"COUNTIF('Success Criteria'!$AN119:$AN173,\"NON COMPLIANT\")","v":0},{"$f":"COUNTIF('Success Criteria'!$AN119:$AN173,\"N/A\")","v":0},{"$f":"COUNTIF('Success Criteria'!$AN119:$AN173,\"not tested\")","v":28},0,0,0,28,null,0,"",0,"",28,1]
[37,"Page 37","URL 37",{"$f":"SUM(COUNTIF('Success Criteria'!AO7:AO69,\"PASS\"),COUNTIF('Success Criteria'!AO7:AO69,\"PASS with comments\"))","v":0},{"$f":"COUNTIF('Success Criteria'!AO7:AO69,\"NON COMPLIANT\")","v":0},{"$f":"COUNTIF('Success Criteria'!AO7:AO69,\"N/A\")","v":0},{"$f":"COUNTIF('Success Criteria'!AO7:AO69,\"not tested\")","v":0},{"$f":"SUM(COUNTIF('Success Criteria'!$AO73:$AO114,\"PASS\"),COUNTIF('Success Criteria'!$AO73:$AO114,\"PASS with comments\"))","v":0},{"$f":"COUNTIF('Success Criteria'!$AO73:$AO114,\"NON COMPLIANT\")","v":0},{"$f":"COUNTIF('Success Criteria'!$AO73:$AO114,\"N/A\")","v":0},{"$f":"COUNTIF('Success Criteria'!$AO73:$AO114,\"not tested\")","v":0},{"$f":"SUM(COUNTIF('Success Criteria'!$AO119:$AO173,\"PASS\"),COUNTIF('Success Criteria'!$AO119:$AO173,\"PASS with comments\"))","v":0},{"$f":"COUNTIF('Success Criteria'!$AO119:$AO173,\"NON COMPLIANT\")","v":0},{"$f":"COUNTIF('Success Criteria'!$AO119:$AO173,\"N/A\")","v":0},{"$f":"COUNTIF('Success Criteria'!$AO119:$AO173,\"not tested\")","v":28},0,0,0,28,null,0,"",0,"",28,1]
[38,"Page 38","URL 38",{"$f":"SUM(COUNTIF('Success Criteria'!AP7:AP69,\"PASS\"),COUNTIF('Success Criteria'!AP7:AP69,\"PASS with comments\"))","v":0},{"$f":"COUNTIF('Success Criteria'!AP7:AP69,\"NON COMPLIANT\")","v":0},{"$f":"COUNTIF('Success Criteria'!AP7:AP69,\"N/A\")","v":0},{"$f":"COUNTIF('Success Criteria'!AP7:AP69,\"not tested\")","v":0},{"$f":"SUM(COUNTIF('Success Criteria'!$AP73:$AP114,\"PASS\"),COUNTIF('Success Criteria'!$AP73:$AP114,\"PASS with comments\"))","v":0},{"$f":"COUNTIF('Success Criteria'!$AP73:$AP114,\"NON COMPLIANT\")","v":0},{"$f":"COUNTIF('Success Criteria'!$AP73:$AP114,\"N/A\")","v":0},{"$f":"COUNTIF('Success Criteria'!$AP73:$AP114,\"not tested\")","v":0},{"$f":"SUM(COUNTIF('Success Criteria'!$AP119:$AP173,\"PASS\"),COUNTIF('Success Criteria'!$AP119:$AP173,\"PASS with comments\"))","v":0},{"$f":"COUNTIF('Success Criteria'!$AP119:$AP173,\"NON COMPLIANT\")","v":0},{"$f":"COUNTIF('Success Criteria'!$AP119:$AP173,\"N/A\")","v":0},{"$f":"COUNTIF('Success Criteria'!$AP119:$AP173,\"not tested\")","v":28},0,0,0,28,null,0,"",0,"",28,1]
[39,"Page 39","URL 39",{"$f":"SUM(COUNTIF('Success Criteria'!AQ7:AQ69,\"PASS\"),COUNTIF('Success Criteria'!AQ7:AQ69,\"PASS with comments\"))","v":0},{"$f":"COUNTIF('Success Criteria'!AQ7:AQ69,\"NON COMPLIANT\")","v":0},{"$f":"COUNTIF('Success Criteria'!AQ7:AQ69,\"N/A\")","v":0},{"$f":"COUNTIF('Success Criteria'!AQ7:AQ69,\"not tested\")","v":0},{"$f":"SUM(COUNTIF('Success Criteria'!$AQ73:$AQ114,\"PASS\"),COUNTIF('Success Criteria'!$AQ73:$AQ114,\"PASS with comments\"))","v":0},{"$f":"COUNTIF('Success Criteria'!$AQ73:$AQ114,\"NON COMPLIANT\")","v":0},{"$f":"COUNTIF('Success Criteria'!$AQ73:$AQ114,\"N/A\")","v":0},{"$f":"COUNTIF('Success Criteria'!$AQ73:$AQ114,\"not tested\")","v":0},{"$f":"SUM(COUNTIF('Success Criteria'!$AQ119:$AQ173,\"PASS\"),COUNTIF('Success Criteria'!$AQ119:$AQ173,\"PASS with comments\"))","v":0},{"$f":"COUNTIF('Success Criteria'!$AQ119:$AQ173,\"NON COMPLIANT\")","v":0},{"$f":"COUNTIF('Success Criteria'!$AQ119:$AQ173,\"N/A\")","v":0},{"$f":"COUNTIF('Success Criteria'!$AQ119:$AQ173,\"not tested\")","v":28},0,0,0,28,null,0,"",0,"",28,1]
[40,"Page 40","URL 40",{"$f":"SUM(COUNTIF('Success Criteria'!AR7:AR69,\"PASS\"),COUNTIF('Success Criteria'!AR7:AR69,\"PASS with comments\"))","v":0},{"$f":"COUNTIF('Success Criteria'!AR7:AR69,\"NON COMPLIANT\")","v":0},{"$f":"COUNTIF('Success Criteria'!AR7:AR69,\"N/A\")","v":0},{"$f":"COUNTIF('Success Criteria'!AR7:AR69,\"not tested\")","v":0},{"$f":"SUM(COUNTIF('Success Criteria'!$AR73:$AR114,\"PASS\"),COUNTIF('Success Criteria'!$AR73:$AR114,\"PASS with comments\"))","v":0},{"$f":"COUNTIF('Success Criteria'!$AR73:$AR114,\"NON COMPLIANT\")","v":0},{"$f":"COUNTIF('Success Criteria'!$AR73:$AR114,\"N/A\")","v":0},{"$f":"COUNTIF('Success Criteria'!$AR73:$AR114,\"not tested\")","v":0},{"$f":"SUM(COUNTIF('Success Criteria'!$AR119:$AR173,\"PASS\"),COUNTIF('Success Criteria'!$AR119:$AR173,\"PASS with comments\"))","v":0},{"$f":"COUNTIF('Success Criteria'!$AR119:$AR173,\"NON COMPLIANT\")","v":0},{"$f":"COUNTIF('Success Criteria'!$AR119:$AR173,\"N/A\")","v":0},{"$f":"COUNTIF('Success Criteria'!$AR119:$AR173,\"not tested\")","v":28},0,0,0,28,null,0,"",0,"",28,1]
[41,"Page 41","URL 41",{"$f":"SUM(COUNTIF('Success Criteria'!AS7:AS69,\"PASS\"),COUNTIF('Success Criteria'!AS7:AS69,\"PASS with comments\"))","v":0},{"$f":"COUNTIF('Success Criteria'!AS7:AS69,\"NON COMPLIANT\")","v":0},{"$f":"COUNTIF('Success Criteria'!AS7:AS69,\"N/A\")","v":0},{"$f":"COUNTIF('Success Criteria'!AS7:AS69,\"not tested\")","v":0},{"$f":"SUM(COUNTIF('Success Criteria'!$AS73:$AS114,\"PASS\"),COUNTIF('Success Criteria'!$AS73:$AS114,\"PASS with comments\"))","v":0},{"$f":"COUNTIF('Success Criteria'!$AS73:$AS114,\"NON COMPLIANT\")","v":0},{"$f":"COUNTIF('Success Criteria'!$AS73:$AS114,\"N/A\")","v":0},{"$f":"COUNTIF('Success Criteria'!$AS73:$AS114,\"not tested\")","v":0},{"$f":"SUM(COUNTIF('Success Criteria'!$AS119:$AS173,\"PASS\"),COUNTIF('Success Criteria'!$AS119:$AS173,\"PASS with comments\"))","v":0},{"$f":"COUNTIF('Success Criteria'!$AS119:$AS173,\"NON COMPLIANT\")","v":0},{"$f":"COUNTIF('Success Criteria'!$AS119:$AS173,\"N/A\")","v":0},{"$f":"COUNTIF('Success Criteria'!$AS119:$AS173,\"not tested\")","v":28},0,0,0,28,null,0,"",0,"",28,1]
[42,"Page 42","URL 42",{"$f":"SUM(COUNTIF('Success Criteria'!AT7:AT69,\"PASS\"),COUNTIF('Success Criteria'!AT7:AT69,\"PASS with comments\"))","v":0},{"$f":"COUNTIF('Success Criteria'!AT7:AT69,\"NON COMPLIANT\")","v":0},{"$f":"COUNTIF('Success Criteria'!AT7:AT69,\"N/A\")","v":0},{"$f":"COUNTIF('Success Criteria'!AT7:AT69,\"not tested\")","v":0},{"$f":"SUM(COUNTIF('Success Criteria'!$AT73:$AT114,\"PASS\"),COUNTIF('Success Criteria'!$AT73:$AT114,\"PASS with comments\"))","v":0},{"$f":"COUNTIF('Success Criteria'!$AT73:$AT114,\"NON COMPLIANT\")","v":0},{"$f":"COUNTIF('Success Criteria'!$AT73:$AT114,\"N/A\")","v":0},{"$f":"COUNTIF('Success Criteria'!$AT73:$AT114,\"not tested\")","v":0},{"$f":"SUM(COUNTIF('Success Criteria'!$AT119:$AT173,\"PASS\"),COUNTIF('Success Criteria'!$AT119:$AT173,\"PASS with comments\"))","v":0},{"$f":"COUNTIF('Success Criteria'!$AT119:$AT173,\"NON COMPLIANT\")","v":0},{"$f":"COUNTIF('Success Criteria'!$AT119:$AT173,\"N/A\")","v":0},{"$f":"COUNTIF('Success Criteria'!$AT119:$AT173,\"not tested\")","v":28},0,0,0,28,null,0,"",0,"",28,1]
[43,"Page 43","URL 43",{"$f":"SUM(COUNTIF('Success Criteria'!AU7:AU69,\"PASS\"),COUNTIF('Success Criteria'!AU7:AU69,\"PASS with comments\"))","v":0},{"$f":"COUNTIF('Success Criteria'!AU7:AU69,\"NON COMPLIANT\")","v":0},{"$f":"COUNTIF('Success Criteria'!AU7:AU69,\"N/A\")","v":0},{"$f":"COUNTIF('Success Criteria'!AU7:AU69,\"not tested\")","v":0},{"$f":"SUM(COUNTIF('Success Criteria'!$AU73:$AU114,\"PASS\"),COUNTIF('Success Criteria'!$AU73:$AU114,\"PASS with comments\"))","v":0},{"$f":"COUNTIF('Success Criteria'!$AU73:$AU114,\"NON COMPLIANT\")","v":0},{"$f":"COUNTIF('Success Criteria'!$AU73:$AU114,\"N/A\")","v":0},{"$f":"COUNTIF('Success Criteria'!$AU73:$AU114,\"not tested\")","v":0},{"$f":"SUM(COUNTIF('Success Criteria'!$AU119:$AU173,\"PASS\"),COUNTIF('Success Criteria'!$AU119:$AU173,\"PASS with comments\"))","v":0},{"$f":"COUNTIF('Success Criteria'!$AU119:$AU173,\"NON COMPLIANT\")","v":0},{"$f":"COUNTIF('Success Criteria'!$AU119:$AU173,\"N/A\")","v":0},{"$f":"COUNTIF('Success Criteria'!$AU119:$AU173,\"not tested\")","v":28},0,0,0,28,null,0,"",0,"",28,1]
[44,"Page 44","URL 44",{"$f":"SUM(COUNTIF('Success Criteria'!AV7:AV69,\"PASS\"),COUNTIF('Success Criteria'!AV7:AV69,\"PASS with comments\"))","v":0},{"$f":"COUNTIF('Success Criteria'!AV7:AV69,\"NON COMPLIANT\")","v":0},{"$f":"COUNTIF('Success Criteria'!AV7:AV69,\"N/A\")","v":0},{"$f":"COUNTIF('Success Criteria'!AV7:AV69,\"not tested\")","v":0},{"$f":"SUM(COUNTIF('Success Criteria'!$AV73:$AV114,\"PASS\"),COUNTIF('Success Criteria'!$AV73:$AV114,\"PASS with comments\"))","v":0},{"$f":"COUNTIF('Success Criteria'!$AV73:$AV114,\"NON COMPLIANT\")","v":0},{"$f":"COUNTIF('Success Criteria'!$AV73:$AV114,\"N/A\")","v":0},{"$f":"COUNTIF('Success Criteria'!$AV73:$AV114,\"not tested\")","v":0},{"$f":"SUM(COUNTIF('Success Criteria'!$AV119:$AV173,\"PASS\"),COUNTIF('Success Criteria'!$AV119:$AV173,\"PASS with comments\"))","v":0},{"$f":"COUNTIF('Success Criteria'!$AV119:$AV173,\"NON COMPLIANT\")","v":0},{"$f":"COUNTIF('Success Criteria'!$AV119:$AV173,\"N/A\")","v":0},{"$f":"COUNTIF('Success Criteria'!$AV119:$AV173,\"not tested\")","v":28},0,0,0,28,null,0,"",0,"",28,1]
[45,"Page 45","URL 45",{"$f":"SUM(COUNTIF('Success Criteria'!AW7:AW69,\"PASS\"),COUNTIF('Success Criteria'!AW7:AW69,\"PASS with comments\"))","v":0},{"$f":"COUNTIF('Success Criteria'!AW7:AW69,\"NON COMPLIANT\")","v":0},{"$f":"COUNTIF('Success Criteria'!AW7:AW69,\"N/A\")","v":0},{"$f":"COUNTIF('Success Criteria'!AW7:AW69,\"not tested\")","v":0},{"$f":"SUM(COUNTIF('Success Criteria'!$AW73:$AW114,\"PASS\"),COUNTIF('Success Criteria'!$AW73:$AW114,\"PASS with comments\"))","v":0},{"$f":"COUNTIF('Success Criteria'!$AW73:$AW114,\"NON COMPLIANT\")","v":0},{"$f":"COUNTIF('Success Criteria'!$AW73:$AW114,\"N/A\")","v":0},{"$f":"COUNTIF('Success Criteria'!$AW73:$AW114,\"not tested\")","v":0},{"$f":"SUM(COUNTIF('Success Criteria'!$AW119:$AW173,\"PASS\"),COUNTIF('Success Criteria'!$AW119:$AW173,\"PASS with comments\"))","v":0},{"$f":"COUNTIF('Success Criteria'!$AW119:$AW173,\"NON COMPLIANT\")","v":0},{"$f":"COUNTIF('Success Criteria'!$AW119:$AW173,\"N/A\")","v":0},{"$f":"COUNTIF('Success Criteria'!$AW119:$AW173,\"not tested\")","v":28},0,0,0,28,null,0,"",0,"",28,1]
[46,"Page 46","URL 46",{"$f":"SUM(COUNTIF('Success Criteria'!AX7:AX69,\"PASS\"),COUNTIF('Success Criteria'!AX7:AX69,\"PASS with comments\"))","v":0},{"$f":"COUNTIF('Success Criteria'!AX7:AX69,\"NON COMPLIANT\")","v":0},{"$f":"COUNTIF('Success Criteria'!AX7:AX69,\"N/A\")","v":0},{"$f":"COUNTIF('Success Criteria'!AX7:AX69,\"not tested\")","v":0},{"$f":"SUM(COUNTIF('Success Criteria'!$AX73:$AX114,\"PASS\"),COUNTIF('Success Criteria'!$AX73:$AX114,\"PASS with comments\"))","v":0},{"$f":"COUNTIF('Success Criteria'!$AX73:$AX114,\"NON COMPLIANT\")","v":0},{"$f":"COUNTIF('Success Criteria'!$AX73:$AX114,\"N/A\")","v":0},{"$f":"COUNTIF('Success Criteria'!$AX73:$AX114,\"not tested\")","v":0},{"$f":"SUM(COUNTIF('Success Criteria'!$AX119:$AX173,\"PASS\"),COUNTIF('Success Criteria'!$AX119:$AX173,\"PASS with comments\"))","v":0},{"$f":"COUNTIF('Success Criteria'!$AX119:$AX173,\"NON COMPLIANT\")","v":0},{"$f":"COUNTIF('Success Criteria'!$AX119:$AX173,\"N/A\")","v":0},{"$f":"COUNTIF('Success Criteria'!$AX119:$AX173,\"not tested\")","v":28},0,0,0,28,null,0,"",0,"",28,1]
[47,"Page 47","URL 47",{"$f":"SUM(COUNTIF('Success Criteria'!AY7:AY69,\"PASS\"),COUNTIF('Success Criteria'!AY7:AY69,\"PASS with comments\"))","v":0},{"$f":"COUNTIF('Success Criteria'!AY7:AY69,\"NON COMPLIANT\")","v":0},{"$f":"COUNTIF('Success Criteria'!AY7:AY69,\"N/A\")","v":0},{"$f":"COUNTIF('Success Criteria'!AY7:AY69,\"not tested\")","v":0},{"$f":"SUM(COUNTIF('Success Criteria'!$AY73:$AY114,\"PASS\"),COUNTIF('Success Criteria'!$AY73:$AY114,\"PASS with comments\"))","v":0},{"$f":"COUNTIF('Success Criteria'!$AY73:$AY114,\"NON COMPLIANT\")","v":0},{"$f":"COUNTIF('Success Criteria'!$AY73:$AY114,\"N/A\")","v":0},{"$f":"COUNTIF('Success Criteria'!$AY73:$AY114,\"not tested\")","v":0},{"$f":"SUM(COUNTIF('Success Criteria'!$AY119:$AY173,\"PASS\"),COUNTIF('Success Criteria'!$AY119:$AY173,\"PASS with comments\"))","v":0},{"$f":"COUNTIF('Success Criteria'!$AY119:$AY173,\"NON COMPLIANT\")","v":0},{"$f":"COUNTIF('Success Criteria'!$AY119:$AY173,\"N/A\")","v":0},{"$f":"COUNTIF('Success Criteria'!$AY119:$AY173,\"not tested\")","v":28},0,0,0,28,null,0,"",0,"",28,1]
[48,"Page 48","URL 48",{"$f":"SUM(COUNTIF('Success Criteria'!AZ7:AZ69,\"PASS\"),COUNTIF('Success Criteria'!AZ7:AZ69,\"PASS with comments\"))","v":0},{"$f":"COUNTIF('Success Criteria'!AZ7:AZ69,\"NON COMPLIANT\")","v":0},{"$f":"COUNTIF('Success Criteria'!AZ7:AZ69,\"N/A\")","v":0},{"$f":"COUNTIF('Success Criteria'!AZ7:AZ69,\"not tested\")","v":0},{"$f":"SUM(COUNTIF('Success Criteria'!$AZ73:$AZ114,\"PASS\"),COUNTIF('Success Criteria'!$AZ73:$AZ114,\"PASS with comments\"))","v":0},{"$f":"COUNTIF('Success Criteria'!$AZ73:$AZ114,\"NON COMPLIANT\")","v":0},{"$f":"COUNTIF('Success Criteria'!$AZ73:$AZ114,\"N/A\")","v":0},{"$f":"COUNTIF('Success Criteria'!$AZ73:$AZ114,\"not tested\")","v":0},{"$f":"SUM(COUNTIF('Success Criteria'!$AZ119:$AZ173,\"PASS\"),COUNTIF('Success Criteria'!$AZ119:$AZ173,\"PASS with comments\"))","v":0},{"$f":"COUNTIF('Success Criteria'!$AZ119:$AZ173,\"NON COMPLIANT\")","v":0},{"$f":"COUNTIF('Success Criteria'!$AZ119:$AZ173,\"N/A\")","v":0},{"$f":"COUNTIF('Success Criteria'!$AZ119:$AZ173,\"not tested\")","v":28},0,0,0,28,null,0,"",0,"",28,1]
[49,"Page 49","URL 49",{"$f":"SUM(COUNTIF('Success Criteria'!BA7:BA69,\"PASS\"),COUNTIF('Success Criteria'!BA7:BA69,\"PASS with comments\"))","v":0},{"$f":"COUNTIF('Success Criteria'!BA7:BA69,\"NON COMPLIANT\")","v":0},{"$f":"COUNTIF('Success Criteria'!BA7:BA69,\"N/A\")","v":0},{"$f":"COUNTIF('Success Criteria'!BA7:BA69,\"not tested\")","v":0},{"$f":"SUM(COUNTIF('Success Criteria'!$BA73:$BA114,\"PASS\"),COUNTIF('Success Criteria'!$BA73:$BA114,\"PASS with comments\"))","v":0},{"$f":"COUNTIF('Success Criteria'!$BA73:$BA114,\"NON COMPLIANT\")","v":0},{"$f":"COUNTIF('Success Criteria'!$BA73:$BA114,\"N/A\")","v":0},{"$f":"COUNTIF('Success Criteria'!$BA73:$BA114,\"not tested\")","v":0},{"$f":"SUM(COUNTIF('Success Criteria'!$BA119:$BA173,\"PASS\"),COUNTIF('Success Criteria'!$BA119:$BA173,\"PASS with comments\"))","v":0},{"$f":"COUNTIF('Success Criteria'!$BA119:$BA173,\"NON COMPLIANT\")","v":0},{"$f":"COUNTIF('Success Criteria'!$BA119:$BA173,\"N/A\")","v":0},{"$f":"COUNTIF('Success Criteria'!$BA119:$BA173,\"not tested\")","v":28},0,0,0,28,null,0,"",0,"",28,1]
[50,"Page 50","URL 50",{"$f":"SUM(COUNTIF('Success Criteria'!BB7:BB69,\"PASS\"),COUNTIF('Success Criteria'!BB7:BB69,\"PASS with comments\"))","v":0},{"$f":"COUNTIF('Success Criteria'!BB7:BB69,\"NON COMPLIANT\")","v":0},{"$f":"COUNTIF('Success Criteria'!BB7:BB69,\"N/A\")","v":0},{"$f":"COUNTIF('Success Criteria'!BB7:BB69,\"not tested\")","v":0},{"$f":"SUM(COUNTIF('Success Criteria'!$BB73:$BB114,\"PASS\"),COUNTIF('Success Criteria'!$BB73:$BB114,\"PASS with comments\"))","v":0},{"$f":"COUNTIF('Success Criteria'!$BB73:$BB114,\"NON COMPLIANT\")","v":0},{"$f":"COUNTIF('Success Criteria'!$BB73:$BB114,\"N/A\")","v":0},{"$f":"COUNTIF('Success Criteria'!$BB73:$BB114,\"not tested\")","v":0},{"$f":"SUM(COUNTIF('Success Criteria'!$BB119:$BB173,\"PASS\"),COUNTIF('Success Criteria'!$BB119:$BB173,\"PASS with comments\"))","v":0},{"$f":"COUNTIF('Success Criteria'!$BB119:$BB173,\"NON COMPLIANT\")","v":0},{"$f":"COUNTIF('Success Criteria'!$BB119:$BB173,\"N/A\")","v":0},{"$f":"COUNTIF('Success Criteria'!$BB119:$BB173,\"not tested\")","v":28},0,0,0,28,null,0,"",0,"",28,1]
[null,null,null,null,null,null,null,null,null,null,null,null,null,null,null,null,null,null,null,null,null,"Total",null,"Total",null,"Total"]
[null,null,null,"Level A",null,null,null,"Level AA",null,null,null,"Level AAA",null,null,null,"Total",null,null,null,null,null,{"$f":"SUM(V14:V64)","v":16},null,{"$f":"SUM(X14:X64)","v":16},null,{"$f":"SUM(Z14:Z64)","v":50}]
[null,null,null,"Pass","Fail","N/A","Not tested","Pass","Fail","N/A ","Not tested","Pass","Fail","N/A ","Not tested","Pass","Fail","N/A ","Not tested"]
["Total",null,null,{"$f":"SUM(D14:D63)","v":260},30,190,0,149,43,128,0,{"$f":"SUM(L14:L63)","v":0},0,0,1400,{"$f":"SUM(P14:P63)","v":409},{"$f":"SUM(Q14:Q63)","v":73},{"$f":"SUM(R14:R63)","v":318},{"$f":"SUM(S14:S63)","v":1400}]
["Average per page",null,null,{"$f":"D67/$V$65","v":16.25},{"$f":"E67/$V$65","v":1.875},{"$f":"F67/$V$65","v":11.875},{"$f":"G67/$V$65","v":0},{"$f":"H67/$X$65","v":9.3125},{"$f":"I67/$X$65","v":2.6875},{"$f":"J67/$X$65","v":8},{"$f":"K67/$X$65","v":0},{"$f":"L67/$Z$65","v":0},{"$f":"M67/$Z$65","v":0},{"$f":"N67/$Z$65","v":0},{"$f":"O67/$Z$65","v":28},{"$f":"D68+H68+L68","v":25.5625},{"$f":"E68+I68+M68","v":4.5625},{"$f":"F68+J68+N68","v":19.875},{"$f":"G68+K68+O68","v":28}]

{"sheet":"Success Criteria","index":2,"n_rows":173,"n_cols":54,"rows_kept":173,"cut":false,"hidden":false,"merged":[[2,0,3,0],[2,1,2,3],[3,1,3,3],[0,0,1,3]]}
["\nWCAG 2.1 website accessibility audit\nSuccess Criteria",null,null,null,"Initially tested on","Initially tested on","Initially tested on","Initially tested on","Initially tested on","Initially tested on","Initially tested on","Initially tested on","Initially tested on","Initially tested on","Initially tested on","Initially tested on","Initially tested on","Initially tested on","Initially tested on","Initially tested on","Initially tested on","Initially tested on","Initially tested on","Initially tested on","Initially tested on","Initially tested on","Initially tested on","Initially tested on","Initially tested on","Initially tested on","Initially tested on","Initially tested on","Initially tested on","Initially tested on","Initially tested on","Initially tested on","Initially tested on","Initially tested on","Initially tested on","Initially tested on","Initially tested on","Initially tested on","Initially tested on","Initially tested on","Initially tested on","Initially tested on","Initially tested on","Initially tested on","Initially tested on","Initially tested on","Initially tested on","Initially tested on","Initially tested on","Initially tested on"]
[null,null,null,null,"2019-11-07","2019-11-07","2019-11-07","2019-11-07","2019-11-07","2019-11-07","2019-11-07","2019-11-07","2019-11-07","2019-11-07","2019-11-07","2019-11-07","2019-11-11","2019-11-11","2019-11-11","2019-11-11"]
["Key","Cells highlighted in pink indicate non-compliances.",null,null,{"$f":"TRANSPOSE(Statistics!$B$14:$C$63)","v":"<head>, header and footer"},"Healthy Schools London","About","Schools Taking part","Aerodrome Primary Academy","Newsletter from Healthy Schools London","Cranford Primary School, Hounslow","Register","Register Step 2","Register Step 3","Register - Create School page","Case Studies","Films","Sign Up","User account","Apply Gold","Page 17","Page 18","Page 19","Page 20","Page 21","Page 22","Page 23","Page 24","Page 25","Page 26","Page 27","Page 28","Page 29","Page 30","Page 31","Page 32","Page 33","Page 34","Page 35","Page 36","Page 37","Page 38","Page 39","Page 40","Page 41","Page 42","Page 43","Page 44","Page 45","Page 46","Page 47","Page 48","Page 49","Page 50"]
[null,"Cells highlighted in tan indicate that the criteria are technically met with caveats or recommendations.",null,null,"N/A","https://www.london.gov.uk/what-we-do/health/healthy-schools-london/awards/ ","https://www.london.gov.uk/what-we-do/health/healthy-schools-london/awards/about ","https://www.london.gov.uk/what-we-do/health/healthy-schools-london/awards/get-award/schools-taking-part ","https://www.london.gov.uk/what-we-do/health/healthy-schools-london/awards/get-award/schools-taking-part/aerodrome-primary-academy ","https://www.london.gov.uk/what-we-do/health/healthy-schools-london/awards/node/1455 ","https://www.london.gov.uk/what-we-do/health/healthy-schools-london/awards/node/483 ","https://www.london.gov.uk/what-we-do/health/healthy-schools-london/awards/register ","https://www.london.gov.uk/what-we-do/health/healthy-schools-london/awards/register/8 ","https://www.london.gov.uk/what-we-do/health/healthy-schools-london/awards/user/register/433 ","https://www.london.gov.uk/what-we-do/health/healthy-schools-london/awards/node/add/school-page?u=8878&b=6 ","https://www.london.gov.uk/what-we-do/health/healthy-schools-london/awards/resources/case-studies ","https://www.london.gov.uk/what-we-do/health/healthy-schools-london/awards/resources/films ","https://www.london.gov.uk/what-we-do/health/healthy-schools-london/awards/sign ","https://www.london.gov.uk/what-we-do/health/healthy-schools-london/awards/user ","https://www.london.gov.uk/what-we-do/health/healthy-schools-london/awards/get-award/apply-gold","URL 17","URL 18","URL 19","URL 20","URL 21","URL 22","URL 23","URL 24","URL 25","URL 26","URL 27","URL 28","URL 29","URL 30","URL 31","URL 32","URL 33","URL 34","URL 35","URL 36","URL 37","URL 38","URL 39","URL 40","URL 41","URL 42","URL 43","URL 44","URL 45","URL 46","URL 47","URL 48","URL 49","URL 50"]
[null,null,"Level A Success Criteria"]
["W3C Ref.","Level.",null,"Principle 1: Perceivable - Information and user interface components must be presentable to users in ways they can perceive."]
["1.1.1","A","Non-text Content","All non-text content that is presented to the user has a text alternative that serves the equivalent purpose.","PASS","PASS","PASS","PASS","PASS","PASS","PASS","PASS","PASS","PASS","PASS","PASS","PASS","PASS","PASS","PASS"]
[]
["1.2.1","A","Audio-only and Video-only (Pre-recorded)","For pre-recorded audio-only and pre-recorded video-only media, an alternative for time-based media or an audio track is provided that presents equivalent information. ","N/A","N/A","N/A","N/A","N/A","N/A","N/A","N/A","N/A","N/A","N/A","N/A","N/A","N/A","N/A","N/A"]
[null,null,null,null,"N/A because there is no non-live audio only content on the page.","N/A because there is no non-live audio only content on the page.","N/A because there is no non-live audio only content on the page.","N/A because there is no non-live audio only content on the page.","N/A because there is no non-live audio only content on the page.","N/A because there is no non-live audio only content on the page.","N/A because there is no non-live audio only content on the page.","N/A because there is no non-live audio only content on the page.","N/A because there is no non-live audio only content on the page.","N/A because there is no non-live audio only content on the page.","N/A because there is no non-live audio only content on the page.","N/A because there is no non-live audio only content on the page.","N/A because there is no non-live audio only content on the page.","N/A because there is no non-live audio only content on the page.","N/A because there is no non-live audio only content on the page.","N/A because there is no non-live audio only content on the page."]
["1.2.2","A","Captions (Pre-recorded)","Captions are provided for all pre-recorded audio content in synchronized media, except when the media is a media alternative for text and is clearly labelled as such. ","N/A","N/A","N/A","N/A","N/A","N/A","N/A","N/A","N/A","N/A","N/A","N/A","PASS","N/A","N/A","N/A"]
[null,null,null,null,"N/A because no pre-recorded audio only or pre-recorded video-only media on the page.","N/A because no pre-recorded audio only or pre-recorded video-only media on the page.","N/A because no pre-recorded audio only or pre-recorded video-only media on the page.","N/A because no pre-recorded audio only or pre-recorded video-only media on the page.","N/A because no pre-recorded audio only or pre-recorded video-only media on the page.","N/A because no pre-recorded audio only or pre-recorded video-only media on the page.","N/A because no pre-recorded audio only or pre-recorded video-only media on the page.","N/A because no pre-recorded audio only or pre-recorded video-only media on the page.","N/A because no pre-recorded audio only or pre-recorded video-only media on the page.","N/A because no pre-recorded audio only or pre-recorded video-only media on the page.","N/A because no pre-recorded audio only or pre-recorded video-only media on the page.","N/A because no pre-recorded audio only or pre-recorded video-only media on the page.",null,"N/A because no pre-recorded audio only or pre-recorded video-only media on the page.","N/A because no pre-recorded audio only or pre-recorded video-only media on the page.","N/A because no pre-recorded audio only or pre-recorded video-only media on the page."]
["1.2.3","A","Audio Description or Media Alternative (Pre-recorded)","An alternative for time-based media or audio description of the pre-recorded video content is provided for synchronized media, except when the media is a media alternative for text and is clearly labelled as such.","N/A","N/A","N/A","N/A","N/A","N/A","N/A","N/A","N/A","N/A","N/A","N/A","N/A","N/A","N/A","N/A"]
[null,null,null,null,"N/A because there is no video that conveys content visually that is not presented via an audio track.","N/A because there is no video that conveys content visually that is not presented via an audio track.","N/A because there is no video that conveys content visually that is not presented via an audio track.","N/A because there is no video that conveys content visually that is not presented via an audio track.","N/A because there is no video that conveys content visually that is not presented via an audio track.","N/A because there is no video that conveys content visually that is not presented via an audio track.","N/A because there is no video that conveys content visually that is not presented via an audio track.","N/A because there is no video that conveys content visually that is not presented via an audio track.","N/A because there is no video that conveys content visually that is not presented via an audio track.","N/A because there is no video that conveys content visually that is not presented via an audio track.","N/A because there is no video that conveys content visually that is not presented via an audio track.","N/A because there is no video that conveys content visually that is not presented via an audio track.","N/A because there is no video that conveys content visually that is not presented via an audio track.","N/A because there is no video that conveys content visually that is not presented via an audio track.","N/A because there is no video that conveys content visually that is not presented via an audio track.","N/A because there is no video that conveys content visually that is not presented via an audio track."]
["1.3.1","A","Info and Relationships","Information, structure, and relationships conveyed through presentation can be programmatically determined or are available in text.","NON COMPLIANT","NON COMPLIANT","PASS","PASS","NON COMPLIANT","PASS with comments","NON COMPLIANT","NON COMPLIANT","NON COMPLIANT","PASS","PASS","PASS","PASS","PASS","PASS","PASS with comments"]
[null,null,null,null,"The search form text should not be a heading but it is currently a H2 heading. The H2 heading should be removed.","The text 'Healthy Schools London' should be a H1 heading. It is currently a H2 heading.",null,null,"The following H2 text headings should be H3 headings: About the school, School details. School case studies, Location.  ","Ideally the following text should be changed to H2 headings: The Mayor thanks London schools, Support for Healthy Schools London, Healthy Schools London Bronze, Silver and Gold Award Schools, HSL Silver Award Winners: 9 June 2014, Be Inspired by one of our new films.","All the data tables under the text 'Every child matters 3' should include table headers. However, the tables are not. Include <TH> elements in the markup.\n\nIdeally the following text should be changed to H2 headings:  What needs did we identify?, How do we plan to address these needs?, Outcomes, What activities/interventions did we develop and implement to meet these needs?, What did we achieve and how did teachers know?, What difference has this made for the children? How does it tie-in with school development plan?, Every child matters 3.\n\nIdeally the following text should be changed to H3 headings:  Baseline, Quantitive outcome,Qualititive outcome, Targeted outcome (vulnerable groups), Targeted outcome, Next steps, Physical Activity: Healthy Eating.","The following H3 text heading should be a H2 heading: Step 1 - Selection a borough, Sign up for latest news and inspiration.","The following H3 text heading should be a H2 heading: 'Step 2 - Select a school', 'A','B','C','D','E','F','G','H',K','L','M','N','O','P','R','S','T','W'.\n\nThe physical relationship with all the label and the radio buttons below the 'Find schools' button does not have the same programmatic relationship but should be the same. i.e.. if the label is selected then the radio button is selected. e.g. \n\n<label for=\"edit-views-bulk-operations--2\">Abacus Belsize Primary School - 105 Camley Street, Jubilee Waterside Centre, London, N1C 4PF | View school details</label>\n\n <input type=\"radio\" name=\"views_bulk_operation\" id=\"edit-views-bulk-operations--2\" value=\"2414\"><br>",null,null,null,null,null,null,"The following text should be changed to H2 headings. Currently they are not: ''Your Details, 'Your School Details',' Criteria for achieving HSL Gold Award', 'Your Application Form', 'Application Supports'."]
["1.3.2","A","Meaningful Sequence","When the sequence in which content is presented affects its meaning, a correct reading sequence can be programmatically determined.","PASS","PASS","PASS","PASS","PASS","PASS","PASS","PASS","PASS","PASS","PASS","PASS","PASS","PASS","PASS","PASS"]
[]
["1.3.3","A","Sensory Characteristics","Instructions provided for understanding and operating content do not rely solely on sensory characteristics of components such as shape, size, visual location, orientation, or sound. ","PASS","PASS","PASS","PASS","PASS","PASS","PASS","PASS","PASS","PASS","PASS","PASS","PASS","PASS","PASS","PASS"]
[]
["1.4.1","A","Use of Colour","Colour is not used as the only visual means of conveying information, indicating an action, prompting a response, or distinguishing a visual element.","PASS","PASS","PASS","PASS","PASS","PASS","PASS","PASS","PASS","PASS","PASS","PASS","PASS","PASS","PASS","PASS"]
[]
["1.4.2","A","Audio Control","If any audio on a Web page plays automatically for more than 3 seconds, either a mechanism is available to pause or stop the audio, or a mechanism is available to control audio volume independently from the overall system volume level. ","N/A","N/A","N/A","N/A","N/A","N/A","N/A","N/A","N/A","N/A","N/A","N/A","N/A","N/A","N/A","N/A"]
[null,null,null,null,"N/A because there is no audio on the header or footer that plays automatically.","N/A because there is no audio on the header or footer that plays automatically.","N/A because there is no audio on the header or footer that plays automatically.","N/A because there is no audio on the header or footer that plays automatically.","N/A because there is no audio on the header or footer that plays automatically.","N/A because there is no audio on the header or footer that plays automatically.","N/A because there is no audio on the header or footer that plays automatically.","N/A because there is no audio on the header or footer that plays automatically.","N/A because there is no audio on the header or footer that plays automatically.","N/A because there is no audio on the header or footer that plays automatically.","N/A because there is no audio on the header or footer that plays automatically.","N/A because there is no audio on the header or footer that plays automatically.","N/A because there is no audio on the header or footer that plays automatically.","N/A because there is no audio on the header or footer that plays automatically.","N/A because there is no audio on the header or footer that plays automatically.","N/A because there is no audio on the header or footer that plays automatically."]
["W3C Ref.","Level.",null,"Principle 2: Operable - User interface components and navigation must be operable."]
["2.1.1","A","Keyboard Navigation","All functionality of the content is operable through a keyboard interface without requiring specific timings for individual keystrokes, except where the underlying function requires input that depends on the path of the user's movement and not just the endpoints.","PASS","PASS","PASS","PASS","PASS","PASS","PASS","PASS","PASS","PASS","PASS","PASS","PASS","PASS","PASS","NON COMPLIANT"]
[null,null,null,null,null,null,null,null,null,null,null,null,null,null,null,null,null,null,null,"The day calendar widget should be keyboard navigable but it is not.  The day calendar widget should not open on focus.  In addition, the calendar widget appears after the footer in the DOM of the source code which  causes the calendar to disappear after another keypress is made. i.e. Tab key."]
["2.1.2","A","No Keyboard Trap","If keyboard focus can be moved to a component of the page using a keyboard interface, then focus can be moved away from that component using only a keyboard interface, and, if it requires more than unmodified arrow or tab keys or other standard exit methods, the user is advised of the method for moving focus away.","PASS","PASS","PASS","PASS","PASS","PASS","PASS","PASS","PASS","PASS","PASS","PASS","PASS","PASS","PASS","PASS"]
[]
["2.1.4","A","Character Key Shortcuts","If a keyboard shortcut is implemented in content using only letter (including upper- and lower-case letters), punctuation, number, or symbol characters, then at least one of the following is true:\n\nTurn off: A mechanism is available to turn the shortcut off;\nRemap: A mechanism is available to remap the shortcut to use one or more non-printable keyboard characters (e.g. Ctrl, Alt, etc);\nActive only on focus: The keyboard shortcut for a user interface component is only active when that component has focus.","N/A","N/A","N/A","N/A","N/A","N/A","N/A","N/A","N/A","N/A","N/A","N/A","N/A","N/A","N/A","N/A"]
[null,null,null,null,"N/A because there are no keyboard shortcuts that are implemented in content using only letters, punctuation, number, or symbol characters.","N/A because there are no keyboard shortcuts that are implemented in content using only letters, punctuation, number, or symbol characters.","N/A because there are no keyboard shortcuts that are implemented in content using only letters, punctuation, number, or symbol characters.","N/A because there are no keyboard shortcuts that are implemented in content using only letters, punctuation, number, or symbol characters.","N/A because there are no keyboard shortcuts that are implemented in content using only letters, punctuation, number, or symbol characters.","N/A because there are no keyboard shortcuts that are implemented in content using only letters, punctuation, number, or symbol characters.","N/A because there are no keyboard shortcuts that are implemented in content using only letters, punctuation, number, or symbol characters.","N/A because there are no keyboard shortcuts that are implemented in content using only letters, punctuation, number, or symbol characters.","N/A because there are no keyboard shortcuts that are implemented in content using only letters, punctuation, number, or symbol characters.","N/A because there are no keyboard shortcuts that are implemented in content using only letters, punctuation, number, or symbol characters.","N/A because there are no keyboard shortcuts that are implemented in content using only letters, punctuation, number, or symbol characters.","N/A because there are no keyboard shortcuts that are implemented in content using only letters, punctuation, number, or symbol characters.","N/A because there are no keyboard shortcuts that are implemented in content using only letters, punctuation, number, or symbol characters.","N/A because there are no keyboard shortcuts that are implemented in content using only letters, punctuation, number, or symbol characters.","N/A because there are no keyboard shortcuts that are implemented in content using only letters, punctuation, number, or symbol characters.","N/A because there are no keyboard shortcuts that are implemented in content using only letters, punctuation, number, or symbol characters."]
["2.2.1","A","Timing Adjustable","Provide users enough time to read and use content.","PASS","PASS","PASS","PASS","PASS","PASS","PASS","PASS","PASS","PASS","PASS","PASS","PASS","PASS","PASS","PASS"]
[]
["2.2.2","A","Pause, Stop, Hide","For moving, blinking, scrolling, or auto-updating information.","N/A","N/A","N/A","N/A","N/A","N/A","N/A","N/A","N/A","N/A","N/A","N/A","N/A","N/A","N/A","N/A"]
[null,null,null,null,"N/A because there are no automatically moving, blinking, or scrolling content (such as carousels, marquees, or animations) that last longer than 5 seconds than can be paused, stopped, or hidden by the user.","N/A because there are no automatically moving, blinking, or scrolling content (such as carousels, marquees, or animations) that last longer than 5 seconds than can be paused, stopped, or hidden by the user.","N/A because there are no automatically moving, blinking, or scrolling content (such as carousels, marquees, or animations) that last longer than 5 seconds than can be paused, stopped, or hidden by the user.","N/A because there are no automatically moving, blinking, or scrolling content (such as carousels, marquees, or animations) that last longer than 5 seconds than can be paused, stopped, or hidden by the user.","N/A because there are no automatically moving, blinking, or scrolling content (such as carousels, marquees, or animations) that last longer than 5 seconds than can be paused, stopped, or hidden by the user.","N/A because there are no automatically moving, blinking, or scrolling content (such as carousels, marquees, or animations) that last longer than 5 seconds than can be paused, stopped, or hidden by the user.","N/A because there are no automatically moving, blinking, or scrolling content (such as carousels, marquees, or animations) that last longer than 5 seconds than can be paused, stopped, or hidden by the user.","N/A because there are no automatically moving, blinking, or scrolling content (such as carousels, marquees, or animations) that last longer than 5 seconds than can be paused, stopped, or hidden by the user.","N/A because there are no automatically moving, blinking, or scrolling content (such as carousels, marquees, or animations) that last longer than 5 seconds than can be paused, stopped, or hidden by the user.","N/A because there are no automatically moving, blinking, or scrolling content (such as carousels, marquees, or animations) that last longer than 5 seconds than can be paused, stopped, or hidden by the user.","N/A because there are no automatically moving, blinking, or scrolling content (such as carousels, marquees, or animations) that last longer than 5 seconds than can be paused, stopped, or hidden by the user.","N/A because there are no automatically moving, blinking, or scrolling content (such as carousels, marquees, or animations) that last longer than 5 seconds than can be paused, stopped, or hidden by the user.","N/A because there are no automatically moving, blinking, or scrolling content (such as carousels, marquees, or animations) that last longer than 5 seconds than can be paused, stopped, or hidden by the user.","N/A because there are no automatically moving, blinking, or scrolling content (such as carousels, marquees, or animations) that last longer than 5 seconds than can be paused, stopped, or hidden by the user.","N/A because there are no automatically moving, blinking, or scrolling content (such as carousels, marquees, or animations) that last longer than 5 seconds than can be paused, stopped, or hidden by the user.","N/A because there are no automatically moving, blinking, or scrolling content (such as carousels, marquees, or animations) that last longer than 5 seconds than can be paused, stopped, or hidden by the user."]
["2.3.1","A","Three Flashes or Below Threshold","Web pages do not contain anything that flashes more than three times in any one second period, or the flash is below the general flash and red flash thresholds.","N/A","N/A","N/A","N/A","N/A","N/A","N/A","N/A","N/A","N/A","N/A","N/A","N/A","N/A","N/A","N/A"]
[null,null,null,null,"N/A because the page does not contain anything that flashes more that three times in any one second period.","N/A because the page does not contain anything that flashes more that three times in any one second period.","N/A because the page does not contain anything that flashes more that three times in any one second period.","N/A because the page does not contain anything that flashes more that three times in any one second period.","N/A because the page does not contain anything that flashes more that three times in any one second period.","N/A because the page does not contain anything that flashes more that three times in any one second period.","N/A because the page does not contain anything that flashes more that three times in any one second period.","N/A because the page does not contain anything that flashes more that three times in any one second period.","N/A because the page does not contain anything that flashes more that three times in any one second period.","N/A because the page does not contain anything that flashes more that three times in any one second period.","N/A because the page does not contain anything that flashes more that three times in any one second period.","N/A because the page does not contain anything that flashes more that three times in any one second period.","N/A because the page does not contain anything that flashes more that three times in any one second period.","N/A because the page does not contain anything that flashes more that three times in any one second period.","N/A because the page does not contain anything that flashes more that three times in any one second period.","N/A because the page does not contain anything that flashes more that three times in any one second period."]
["2.4.1","A","Bypass Blocks","A mechanism is available to bypass blocks of content that are repeated on multiple Web pages.","NON COMPLIANT","N/A","N/A","N/A","N/A","N/A","N/A","N/A","N/A","N/A","N/A","N/A","N/A","N/A","N/A","N/A"]
[null,null,null,null,"There should be a 'skip to main content' link that enables keyboard users to reach main content faster my moving the keyboard focus to the main content section of the page. However, there is no link at all. See the Skip Navigation link example at: https://webaim.org/techniques/skipnav/","Refer to column 'E' for details on Bypass Blocks.","Refer to column 'E' for details on Bypass Blocks.","Refer to column 'E' for details on Bypass Blocks.","Refer to column 'E' for details on Bypass Blocks.","N/A as the newsletter is a self contained web page.","Refer to column 'E' for details on Bypass Blocks.","Refer to column 'E' for details on Bypass Blocks.","Refer to column 'E' for details on Bypass Blocks.","Refer to column 'E' for details on Bypass Blocks.","Refer to column 'E' for details on Bypass Blocks.","Refer to column 'E' for details on Bypass Blocks.","Refer to column 'E' for details on Bypass Blocks.","Refer to column 'E' for details on Bypass Blocks.","Refer to column 'E' for details on Bypass Blocks.","Refer to column 'E' for details on Bypass Blocks."]
["2.4.2","A","Page Titled","Web pages have titles that describe topic or purpose.","PASS","PASS","PASS","PASS","PASS","PASS","PASS","PASS","PASS","PASS","PASS","PASS","PASS","PASS","PASS","PASS"]
[]
["2.4.3","A","Focus Order","If a Web page can be navigated sequentially and the navigation sequences affect meaning or operation, focusable components receive focus in an order that preserves meaning and operability.","PASS","PASS","PASS","PASS","PASS","PASS","PASS","PASS","PASS","PASS","PASS","PASS","PASS","PASS","PASS","PASS"]
[]
["2.4.4","A","Link Purpose (In Context)","The purpose of each link can be determined from the link text alone or from the link text together with its programmatically determined link context, except where the purpose of the link would be ambiguous to users in general.","PASS","PASS","PASS","PASS","PASS","PASS","PASS","PASS","PASS","PASS","PASS","PASS","PASS","PASS","PASS","PASS"]
[]
["2.5.1","A","Pointer Gestures","All functionality that uses multipoint or path-based gestures for operation can be operated with a single pointer without a path-based gesture, unless a multipoint or path-based gesture is essential.","N/A","N/A","N/A","N/A","N/A","N/A","N/A","N/A","N/A","N/A","N/A","N/A","N/A","N/A","N/A","N/A"]
[null,null,null,null,"N/A because there are no multipoint or path-based gestures that are essential to the functionality of the page.","N/A because there are no multipoint or path-based gestures that are essential to the functionality of the page.","N/A because there are no multipoint or path-based gestures that are essential to the functionality of the page.","N/A because there are no multipoint or path-based gestures that are essential to the functionality of the page.","N/A because there are no multipoint or path-based gestures that are essential to the functionality of the page.","N/A because there are no multipoint or path-based gestures that are essential to the functionality of the page.","N/A because there are no multipoint or path-based gestures that are essential to the functionality of the page.","N/A because there are no multipoint or path-based gestures that are essential to the functionality of the page.","N/A because there are no multipoint or path-based gestures that are essential to the functionality of the page.","N/A because there are no multipoint or path-based gestures that are essential to the functionality of the page.","N/A because there are no multipoint or path-based gestures that are essential to the functionality of the page.","N/A because there are no multipoint or path-based gestures that are essential to the functionality of the page.","N/A because there are no multipoint or path-based gestures that are essential to the functionality of the page.","N/A because there are no multipoint or path-based gestures that are essential to the functionality of the page.","N/A because there are no multipoint or path-based gestures that are essential to the functionality of the page.","N/A because there are no multipoint or path-based gestures that are essential to the functionality of the page."]
["2.5.2","A","Pointer Cancellation","For functionality that can be operated using a single pointer, at least one of the following is true:\n\nNo Down-Event: The down-event of the pointer is not used to execute any part of the function;\nAbort or Undo: Completion of the function is on the up-event, and a mechanism is available to abort the function before completion or to undo the function after completion;\nUp Reversal: The up-event reverses any outcome of the preceding down-event;\nEssential: Completing the function on the down-event is essential.","N/A","N/A","N/A","N/A","N/A","N/A","N/A","N/A","N/A","N/A","N/A","N/A","N/A","N/A","N/A","N/A"]
[null,null,null,null,"N/A because there are no non-essential down-events (e.g. onmousedown) activation when clicking, tapping, or long pressing the screen.","N/A because there are no non-essential down-events (e.g. onmousedown) activation when clicking, tapping, or long pressing the screen.","N/A because there are no non-essential down-events (e.g. onmousedown) activation when clicking, tapping, or long pressing the screen.","N/A because there are no non-essential down-events (e.g. onmousedown) activation when clicking, tapping, or long pressing the screen.","N/A because there are no non-essential down-events (e.g. onmousedown) activation when clicking, tapping, or long pressing the screen.","N/A because there are no non-essential down-events (e.g. onmousedown) activation when clicking, tapping, or long pressing the screen.","N/A because there are no non-essential down-events (e.g. onmousedown) activation when clicking, tapping, or long pressing the screen.","N/A because there are no non-essential down-events (e.g. onmousedown) activation when clicking, tapping, or long pressing the screen.","N/A because there are no non-essential down-events (e.g. onmousedown) activation when clicking, tapping, or long pressing the screen.","N/A because there are no non-essential down-events (e.g. onmousedown) activation when clicking, tapping, or long pressing the screen.","N/A because there are no non-essential down-events (e.g. onmousedown) activation when clicking, tapping, or long pressing the screen.","N/A because there are no non-essential down-events (e.g. onmousedown) activation when clicking, tapping, or long pressing the screen.","N/A because there are no non-essential down-events (e.g. onmousedown) activation when clicking, tapping, or long pressing the screen.","N/A because there are no non-essential down-events (e.g. onmousedown) activation when clicking, tapping, or long pressing the screen.","N/A because there are no non-essential down-events (e.g. onmousedown) activation when clicking, tapping, or long pressing the screen.","N/A because there are no non-essential down-events (e.g. onmousedown) activation when clicking, tapping, or long pressing the screen."]
["2.5.3","A","Label in Name","For user interface components with labels that include text or images of text, the name contains the text that is presented visually.","PASS","PASS","PASS","PASS","PASS","PASS","PASS","PASS","PASS","PASS","PASS","PASS","PASS","PASS","PASS","PASS"]
[]
["2.5.4","A","Motion Actuation","Functionality that can be operated by device motion or user motion can also be operated by user interface components and responding to the motion can be disabled to prevent accidental actuation, except when:\n\nSupported Interface: The motion is used to operate functionality through an accessibility supported interface;\nEssential: The motion is essential for the function and doing so would invalidate the activity.","N/A","N/A","N/A","N/A","N/A","N/A","N/A","N/A","N/A","N/A","N/A","N/A","N/A","N/A","N/A","N/A"]
[null,null,null,null,"N/A because there are no functionality that is triggered by moving the device (such as shaking, or panning a mobile device)","N/A because there are no functionality that is triggered by moving the device (such as shaking, or panning a mobile device)","N/A because there are no functionality that is triggered by moving the device (such as shaking, or panning a mobile device)","N/A because there are no functionality that is triggered by moving the device (such as shaking, or panning a mobile device)","N/A because there are no functionality that is triggered by moving the device (such as shaking, or panning a mobile device)","N/A because there are no functionality that is triggered by moving the device (such as shaking, or panning a mobile device)","N/A because there are no functionality that is triggered by moving the device (such as shaking, or panning a mobile device)","N/A because there are no functionality that is triggered by moving the device (such as shaking, or panning a mobile device)","N/A because there are no functionality that is triggered by moving the device (such as shaking, or panning a mobile device)","N/A because there are no functionality that is triggered by moving the device (such as shaking, or panning a mobile device)","N/A because there are no functionality that is triggered by moving the device (such as shaking, or panning a mobile device)","N/A because there are no functionality that is triggered by moving the device (such as shaking, or panning a mobile device)","N/A because there are no functionality that is triggered by moving the device (such as shaking, or panning a mobile device)","N/A because there are no functionality that is triggered by moving the device (such as shaking, or panning a mobile device)","N/A because there are no functionality that is triggered by moving the device (such as shaking, or panning a mobile device)","N/A because there are no functionality that is triggered by moving the device (such as shaking, or panning a mobile device)"]
["W3C Ref.","Level.",null,"Principle 3: Understandable - Information and the operation of user interface must be understandable."]
["3.1.1","A","Language of Page","The default human language of each Web page can be programmatically determined. ","PASS","PASS","PASS","PASS","PASS","NON COMPLIANT","PASS","PASS","PASS","PASS","PASS","PASS","PASS","PASS","PASS","PASS"]
[null,null,null,null,null,null,null,null,null,"The newsletter page should have a language attribute but does not. Add a LANG=\"EN\" into the <HTML> element."]
["3.2.1","A","On Focus","When any component receives focus, it does not initiate a change of context.","PASS","PASS","PASS","PASS","PASS","PASS","PASS","PASS","PASS","PASS","PASS","PASS","PASS","PASS","PASS","PASS"]
[]
["3.2.2","A","On Input","Changing the setting of any user interface component does not automatically cause a change of context unless the user has been advised of the behaviour before using the component","NON COMPLIANT","PASS","PASS","PASS","PASS","PASS","PASS","PASS","PASS","PASS","PASS","PASS","PASS","PASS","PASS","PASS"]
[null,null,null,null,"There should be a visible label or instruction to explain that there is a search as you type functionality with the input box.\n\nWith each text character that is inputted into the search input box a suggested search list items are presented under the input box as a result of dynamic code being implemented. As a result the user is unaware that this will occur. Ideally there should be a visible label or short sentence that could be presented in hidden text for screen reader users that explains to the user that the input box will present the suggested list.  In addition, there should be an ARIA live region that is used to announce the number of results."]
["3.3.1","A","Error Identification","If an input error is automatically detected, the item that is in error is identified and the error is described to the user in text.","N/A","N/A","N/A","N/A","N/A","N/A","N/A","N/A","N/A","N/A","N/A","N/A","N/A","N/A","N/A","N/A"]
[null,null,null,null,"N/A because there are no automatically detected input errors appearing.","N/A because there are no automatically detected input errors appearing.","N/A because there are no automatically detected input errors appearing.","N/A because there are no automatically detected input errors appearing.","N/A because there are no automatically detected input errors appearing.","N/A because there are no automatically detected input errors appearing.","N/A because there are no automatically detected input errors appearing.","N/A because there are no automatically detected input errors appearing.","N/A because there are no automatically detected input errors appearing.","N/A because there are no automatically detected input errors appearing.","N/A because there are no automatically detected input errors appearing.","N/A because there are no automatically detected input errors appearing.","N/A because there are no automatically detected input errors appearing.","N/A because there are no automatically detected input errors appearing.","N/A because there are no automatically detected input errors appearing.","N/A because there are no automatically detected input errors appearing."]
["3.3.2","A","Labels or Instructions","Labels or instructions are provided when content requires user input.","NON COMPLIANT","NON COMPLIANT","PASS","NON COMPLIANT","NON COMPLIANT","PASS","PASS","PASS","PASS","PASS","PASS","PASS","PASS","PASS","PASS","PASS"]
[null,null,null,null,"There should be a visible label or instruction to explain that there is a search as you type functionality with the input box.\n\nWith each text character that is inputted into the search input box a suggested search list items are presented under the input box as a result of dynamic code being implemented. As a result the user is unaware that this will occur. Ideally there should be a visible label or short sentence that could be presented in hidden text for screen reader users that explains to the user that the input box will present the suggested list.  In addition, there should be an ARIA live region that is used to announce the number of results.\n","There is no provision of instructional text for the use of the two Select dropdown lists under the 'Find out about Healthy Schools London in your borough' text. Upon selecting an item from either dropdown list the form automatically submits.  Screen reader and keyboard users will not be aware of this functionality.",null,"There is no provision of instructional text for the use of the Select dropdown lists under the 'Select your borough' text. Upon selecting an item from either dropdown list the form automatically submits.  Screen reader and keyboard users will not be aware of this functionality.","There is no provision of instructional text for the use of the map and what the map is trying to convey. Screen reader and keyboard users will not be aware of the map functionality."]
["W3C Ref.","Level.",null,"Guideline 4.1 Compatible: Maximize compatibility with current and future user agents, including assistive technologies."]
["4.1.1","A","Parsing","In content implemented using mark-up languages, elements have complete start and end tags, elements are nested according to their specifications, elements do not contain duplicate attributes, and any IDs are unique, except where the specifications allow these features.","NON COMPLIANT","NON COMPLIANT","NON COMPLIANT","NON COMPLIANT","NON COMPLIANT","NON COMPLIANT","NON COMPLIANT","NON COMPLIANT","NON COMPLIANT","NON COMPLIANT","NON COMPLIANT","NON COMPLIANT","NON COMPLIANT","NON COMPLIANT","NON COMPLIANT","NON COMPLIANT"]
[null,null,null,null,"NOTE: In the DOM version of the code,to remove the Fatal error in the W3C HTML markup checker, move the <div id=\"_atssh\">and <iframe> on line 49 into the body section of the code because the iframe cannot exist in the <head> of the code. \n\nNOTE: In the initial version of the code remove the  if conditions on line 2 through to 7 in order to dismiss the charset error reported in the W3C markup validator. \n\nWhen validating the DOM, the W3C Nu Validator reports that the header and footer contains 1 accessibility errors (Stray end tag a;) that violates this success criteria.  \n\nWhen validating the initial source code there are 3 accessibility errors (Duplicate attribute class) that violate this success criteria.","NOTE: In the DOM version of the code,to remove the Fatal error in the W3C HTML markup checker, move the <div id=\"_atssh\">and <iframe> on line 49 into the body section of the code because the iframe cannot exist in the <head> of the code. \n\nNOTE: In the initial version of the code remove the  if conditions on line 2 through to 7 in order to dismiss the charset error reported in the W3C markup validator. \n\nWhen validating the DOM, the W3C Nu Validator reports that the header and footer contains 1 accessibility errors (Stray end tag a;) that violates this success criteria.  \n\nWhen validating the initial source code there are 3 accessibility errors (Duplicate attribute class) that violate this success criteria.","NOTE: In the DOM version of the code,to remove the Fatal error in the W3C HTML markup checker, move the <div id=\"_atssh\">and <iframe> on line 49 into the body section of the code because the iframe cannot exist in the <head> of the code. \n\nNOTE: In the initial version of the code remove the  if conditions on line 2 through to 7 in order to dismiss the charset error reported in the W3C markup validator. \n\nWhen validating the DOM, the W3C Nu Validator reports that the header and footer contains 1 accessibility errors (Stray end tag a;) that violates this success criteria.  \n\nWhen validating the initial source code there are 0 accessibility errors that violate this success criteria.","NOTE: In the DOM version of the code,to remove the Fatal error in the W3C HTML markup checker, move the <div id=\"_atssh\">and <iframe> on line 56 into the body section of the code because the iframe cannot exist in the <head> of the code. \n\nNOTE: In the initial version of the code remove the  if conditions on line 2 through to 7 in order to dismiss the charset error reported in the W3C markup validator. \n\nWhen validating the DOM, the W3C Nu Validator reports that the header and footer contains 1 accessibility errors (Stray end tag a;) that violates this success criteria.  \n\nWhen validating the initial source code there are 0 accessibility errors that violate this success criteria.","NOTE: In the DOM version of the code,to remove the Fatal error in the W3C HTML markup checker, move the <div id=\"_atssh\">and <iframe> on line 56 into the body section of the code because the iframe cannot exist in the <head> of the code. \n\nNOTE: In the initial version of the code remove the  if conditions on line 2 through to 7 in order to dismiss the charset error reported in the W3C markup validator. \n\nWhen validating the DOM, the W3C Nu Validator reports that the header and footer contains 1 accessibility errors (Stray end tag a;) that violates this success criteria.  \n\nWhen validating the initial source code there are 0 accessibility errors that violate this success criteria.","When validating the DOM, the W3C Nu Validator reports that the header and footer contains 1 accessibility errors (Element style not allowed as child of element body in this context;) that violates this success criteria.  \n\nWhen validating the initial source code there is 1  accessibility error (Element style not allowed as child of element body in this context;) that violate this success criteria.","NOTE: In the DOM version of the code,to remove the Fatal error in the W3C HTML markup checker, move the <div id=\"_atssh\">and <iframe> on line 56 into the body section of the code because the iframe cannot exist in the <head> of the code. \n\nNOTE: In the initial version of the code remove the  if conditions on line 2 through to 7 in order to dismiss the charset error reported in the W3C markup validator. \n\nWhen validating the DOM, the W3C Nu Validator reports that the header and footer contains 1 accessibility errors (Stray end tag a;) that violates this success criteria.  \n\nWhen validating the initial source code there are 0 accessibility errors that violate this success criteria.","NOTE: In the DOM version of the code,to remove the Fatal error in the W3C HTML markup checker, move the <div id=\"_atssh\">and <iframe> on line 56 into the body section of the code because the iframe cannot exist in the <head> of the code. \n\nNOTE: In the initial version of the code remove the  if conditions on line 2 through to 7 in order to dismiss the charset error reported in the W3C markup validator. \n\nWhen validating the DOM, the W3C Nu Validator reports that the header and footer contains 1 accessibility errors (Stray end tag a;) that violates this success criteria.  \n\nWhen validating the initial source code there are 0 accessibility errors that violate this success criteria.","NOTE: In the DOM version of the code,to remove the Fatal error in the W3C HTML markup checker, move the <div id=\"_atssh\">and <iframe> on line 56 into the body section of the code because the iframe cannot exist in the <head> of the code. \n\nNOTE: In the initial version of the code remove the  if conditions on line 2 through to 7 in order to dismiss the charset error reported in the W3C markup validator. \n\nWhen validating the DOM, the W3C Nu Validator reports that the header and footer contains 58 accessibility errors (Element div not allowed as child of element span in this context; Stray end tag a;) that violates this success criteria.  \n\nWhen validating the initial source code there are 57 accessibility errors (Element div not allowed as child of element span in this context;) that violate this success criteria.","NOTE: In the DOM version of the code,to remove the Fatal error in the W3C HTML markup checker, move the <div id=\"_atssh\">and <iframe> on line 56 into the body section of the code because the iframe cannot exist in the <head> of the code. \n\nNOTE: In the initial version of the code remove the  if conditions on line 2 through to 7 in order to dismiss the charset error reported in the W3C markup validator. \n\nWhen validating the DOM, the W3C Nu Validator reports that the header and footer contains 1 accessibility errors (Stray end tag a;) that violates this success criteria.  \n\nWhen validating the initial source code there are 0 accessibility errors that violate this success criteria.","NOTE: In the DOM version of the code,to remove the Fatal error in the W3C HTML markup checker, move the <div id=\"_atssh\">and <iframe> on line 56 into the body section of the code because the iframe cannot exist in the <head> of the code. \n\nNOTE: In the initial version of the code remove the  if conditions on line 2 through to 7 in order to dismiss the charset error reported in the W3C markup validator. \n\nWhen validating the DOM, the W3C Nu Validator reports that the header and footer contains 1 accessibility errors (Stray end tag a;) that violates this success criteria.  \n\nWhen validating the initial source code there are 0 accessibility errors that violate this success criteria.","NOTE: In the DOM version of the code,to remove the Fatal error in the W3C HTML markup checker, move the <div id=\"_atssh\">and <iframe> on line 56 into the body section of the code because the iframe cannot exist in the <head> of the code. \n\nNOTE: In the initial version of the code remove the  if conditions on line 2 through to 7 in order to dismiss the charset error reported in the W3C markup validator. \n\nWhen validating the DOM, the W3C Nu Validator reports that the header and footer contains 21 accessibility errors (Element div not allowed as child of element span in this context; Stray end tag a;) that violates this success criteria.  \n\nWhen validating the initial source code there are 49 accessibility errors (Element div not allowed as child of element span in this context; Stray end tag a; No p element in scope but a p end tag seen;) that violate this success criteria.","NOTE: In the DOM version of the code,to remove the Fatal error in the W3C HTML markup checker, move the <div id=\"_atssh\">and <iframe> on line 56 into the body section of the code because the iframe cannot exist in the <head> of the code. \n\nNOTE: In the initial version of the code remove the  if conditions on line 2 through to 7 in order to dismiss the charset error reported in the W3C markup validator. \n\nWhen validating the DOM, the W3C Nu Validator reports that the header and footer contains 1 accessibility errors (Stray end tag a;) that violates this success criteria.  \n\nWhen validating the initial source code there are 9 accessibility errors(Duplicate attribute class;) that violate this success criteria.","NOTE: In the DOM version of the code,to remove the Fatal error in the W3C HTML markup checker, move the <div id=\"_atssh\">and <iframe> on line 56 into the body section of the code because the iframe cannot exist in the <head> of the code. \n\nNOTE: In the initial version of the code remove the  if conditions on line 2 through to 7 in order to dismiss the charset error reported in the W3C markup validator. \n\nWhen validating the DOM, the W3C Nu Validator reports that the header and footer contains 1 accessibility errors (Stray end tag a;) that violates this success criteria.  \n\nWhen validating the initial source code there are 0 accessibility errors that violate this success criteria.","NOTE: In the DOM version of the code,to remove the Fatal error in the W3C HTML markup checker, move the <div id=\"_atssh\">and <iframe> on line 56 into the body section of the code because the iframe cannot exist in the <head> of the code. \n\nNOTE: In the initial version of the code remove the  if conditions on line 2 through to 7 in order to dismiss the charset error reported in the W3C markup validator. \n\nWhen validating the DOM, the W3C Nu Validator reports that the header and footer contains 1 accessibility errors (Stray end tag a;) that violates this success criteria.  \n\nWhen validating the initial source code there are 0 accessibility errors that violate this success criteria.","NOTE: In the DOM version of the code,to remove the Fatal error in the W3C HTML markup checker, move the <div id=\"_atssh\">and <iframe> on line 56 into the body section of the code because the iframe cannot exist in the <head> of the code. \n\nNOTE: In the initial version of the code remove the  if conditions on line 2 through to 7 in order to dismiss the charset error reported in the W3C markup validator. \n\nWhen validating the DOM, the W3C Nu Validator reports that the header and footer contains 1 accessibility errors (Stray end tag a;) that violates this success criteria.  \n\nWhen validating the initial source code there are 0 accessibility errors that violate this success criteria."]
["4.1.2","A","Name, Role, Value","For all user interface components (including but not limited to: form elements, links and components generated by scripts), the name and role can be programmatically determined; states, properties, and values that can be set by the user can be programmatically set; and notification of changes to these items is available to user agents, including assistive technologies. ","PASS","PASS","PASS","PASS","PASS","PASS","PASS","PASS","PASS","PASS","PASS","PASS","PASS","PASS","PASS","PASS"]
[]
[]
[null,null,"Level AA Success Criteria"]
["W3C Ref.","Level.",null,"Principle 1: Perceivable - Information and user interface components must be presentable to users in ways they can perceive."]
["1.2.4","AA","Captions","Captions are provided for all live audio content in synchronized media. ","N/A","N/A","N/A","N/A","N/A","N/A","N/A","N/A","N/A","N/A","N/A","N/A","N/A","N/A","N/A","N/A"]
[null,null,null,null,"N/A because there is no live audio content available on this page","N/A because there is no live audio content available on this page","N/A because there is no live audio content available on this page","N/A because there is no live audio content available on this page","N/A because there is no live audio content available on this page","N/A because there is no live audio content available on this page","N/A because there is no live audio content available on this page","N/A because there is no live audio content available on this page","N/A because there is no live audio content available on this page","N/A because there is no live audio content available on this page","N/A because there is no live audio content available on this page","N/A because there is no live audio content available on this page","N/A because there is no live audio content available on this page","N/A because there is no live audio content available on this page","N/A because there is no live audio content available on this page","N/A because there is no live audio content available on this page"]
["1.2.5","AA","Audio Description (Pre-recorded)","Audio description is provided for all pre-recorded video content in synchronized media.","N/A","N/A","N/A","N/A","N/A","N/A","N/A","N/A","N/A","N/A","N/A","N/A","N/A","N/A","N/A","N/A"]
[null,null,null,null,"N/A because there are no pre-recorded video content on the page","N/A because there are no pre-recorded video content on the page","N/A because there are no pre-recorded video content on the page","N/A because there are no pre-recorded video content on the page","N/A because there are no pre-recorded video content on the page","N/A because there are no pre-recorded video content on the page","N/A because there are no pre-recorded video content on the page","N/A because there are no pre-recorded video content on the page","N/A because there are no pre-recorded video content on the page","N/A because there are no pre-recorded video content on the page","N/A because there are no pre-recorded video content on the page","N/A because there are no pre-recorded video content on the page","N/A because there are no pre-recorded video content on the page","N/A because there are no pre-recorded video content on the page","N/A because there are no pre-recorded video content on the page","N/A because there are no pre-recorded video content on the page"]
["1.3.4","AA","Orientation","Content does not restrict its view and operation to a single display orientation, such as portrait or landscape, unless a specific display orientation is essential.","PASS","PASS","PASS","PASS","PASS","PASS","PASS","PASS","PASS","PASS","PASS","PASS","PASS","PASS","PASS","PASS"]
[]
["1.3.5","AA"," Identify Input Purpose","The purpose of each input field collecting information about the user can be programmatically determined when:\n\nThe input field serves a purpose identified in the Input Purposes for User Interface Components section; and\nThe content is implemented using technologies with support for identifying the expected meaning for form input data.","PASS","PASS","PASS","PASS","PASS","PASS","PASS","PASS","PASS","PASS","PASS","PASS","PASS","PASS","PASS","PASS"]
[]
["1.4.3","AA","Colour Contrast","The visual presentation of text and images of text has a contrast ratio of at least 4.5:1","PASS","NON COMPLIANT","PASS","NON COMPLIANT","PASS","NON COMPLIANT","PASS","PASS","NON COMPLIANT","PASS","NON COMPLIANT","PASS","PASS","NON COMPLIANT","NON COMPLIANT","NON COMPLIANT"]
[null,null,null,null,null,"1 combination of foreground and background colours that does not have sufficient contrast. See the Colour Contrast analysis worksheet.",null,"1 combination of foreground and background colours that does not have sufficient contrast. See the Colour Contrast analysis worksheet.",null,"2 combinations of foreground and background colours that does not have sufficient contrast. See the Colour Contrast analysis worksheet.",null,null,"1 combination of foreground and background colours that does not have sufficient contrast. See the Colour Contrast analysis worksheet.",null,"1 combination of foreground and background colours that does not have sufficient contrast. See the Colour Contrast analysis worksheet.",null,null,"2 combinations of foreground and background colours that does not have sufficient contrast. See the Colour Contrast analysis worksheet.","1 combination of foreground and background colours that does not have sufficient contrast. See the Colour Contrast analysis worksheet.","2 combinations of foreground and background colours that does not have sufficient contrast. See the Colour Contrast analysis worksheet."]
["1.4.4","AA","Resize Text","Except for captions and images of text, text can be resized without assistive technology up to 200 percent without loss of content or functionality.","PASS","PASS","PASS","PASS","PASS","PASS","PASS","PASS","PASS","PASS","PASS","PASS","PASS","PASS","PASS","PASS"]
[]
["1.4.5","AA","Images of Text","If the technologies being used can achieve the visual presentation, text is used to convey information rather than images of text except for the following:\n\nCustomizable: The image of text can be visually customized to the user's requirements;\nEssential: A particular presentation of text is essential to the information being conveyed.","N/A","N/A","N/A","N/A","N/A","N/A","N/A","N/A","N/A","N/A","N/A","N/A","N/A","N/A","N/A","N/A"]
[null,null,null,null,"N/A because there are no visual presentations that can be made using text alone.","N/A because there are no visual presentations that can be made using text alone.","N/A because there are no visual presentations that can be made using text alone.","N/A because there are no visual presentations that can be made using text alone.","N/A because there are no visual presentations that can be made using text alone.","N/A because there are no visual presentations that can be made using text alone.","N/A because there are no visual presentations that can be made using text alone.","N/A because there are no visual presentations that can be made using text alone.","N/A because there are no visual presentations that can be made using text alone.","N/A because there are no visual presentations that can be made using text alone.","N/A because there are no visual presentations that can be made using text alone.","N/A because there are no visual presentations that can be made using text alone.","N/A because there are no visual presentations that can be made using text alone.","N/A because there are no visual presentations that can be made using text alone.","N/A because there are no visual presentations that can be made using text alone.","N/A because there are no visual presentations that can be made using text alone."]
["1.4.10","AA","Reflow","Content can be presented without loss of information or functionality, and without requiring scrolling in two dimensions for:\n\nVertical scrolling content at a width equivalent to 320 CSS pixels;\nHorizontal scrolling content at a height equivalent to 256 CSS pixels.\nExcept for parts of the content which require two-dimensional layout for usage or meaning.","NON COMPLIANT","NON COMPLIANT","NON COMPLIANT","NON COMPLIANT","NON COMPLIANT","NON COMPLIANT","NON COMPLIANT","NON COMPLIANT","NON COMPLIANT","NON COMPLIANT","NON COMPLIANT","NON COMPLIANT","NON COMPLIANT","NON COMPLIANT","NON COMPLIANT","NON COMPLIANT"]
[null,null,null,null,"When the cookie links 'OK,got it' and 'Read more about our cookie policy' the page content should be visible and vertical scrolling should be available in there is a lot of content. However,  when the browser screen is resized to 400% with a CSS width of 1280 pixels there page content does not appear in its entirety.    The cookie links should be redesigned to not take up so much vertical space.","When the cookie links 'OK,got it' and 'Read more about our cookie policy' the page content should be visible and vertical scrolling should be available in there is a lot of content. However,  when the browser screen is resized to 400% with a CSS width of 1280 pixels there page content does not appear in its entirety.    The cookie links should be redesigned to not take up so much vertical space.","When the cookie links 'OK,got it' and 'Read more about our cookie policy' the page content should be visible and vertical scrolling should be available in there is a lot of content. However,  when the browser screen is resized to 400% with a CSS width of 1280 pixels there page content does not appear in its entirety.    The cookie links should be redesigned to not take up so much vertical space.","When the cookie links 'OK,got it' and 'Read more about our cookie policy' the page content should be visible and vertical scrolling should be available in there is a lot of content. However,  when the browser screen is resized to 400% with a CSS width of 1280 pixels there page content does not appear in its entirety.    The cookie links should be redesigned to not take up so much vertical space.","When the cookie links 'OK,got it' and 'Read more about our cookie policy' the page content should be visible and vertical scrolling should be available in there is a lot of content. However,  when the browser screen is resized to 400% with a CSS width of 1280 pixels there page content does not appear in its entirety.    The cookie links should be redesigned to not take up so much vertical space.","The page should  be presented without loss of information or functionality without requiring scrolling in two dimensions. Currently the page requires both vertical and horizontally scrolling when the browser screen is resized to 400% with a CSS width of 1280 pixels.","When the cookie links 'OK,got it' and 'Read more about our cookie policy' the page content should be visible and vertical scrolling should be available in there is a lot of content. However,  when the browser screen is resized to 400% with a CSS width of 1280 pixels there page content does not appear in its entirety.    The cookie links should be redesigned to not take up so much vertical space.","When the cookie links 'OK,got it' and 'Read more about our cookie policy' the page content should be visible and vertical scrolling should be available in there is a lot of content. However,  when the browser screen is resized to 400% with a CSS width of 1280 pixels there page content does not appear in its entirety.    The cookie links should be redesigned to not take up so much vertical space.","When the cookie links 'OK,got it' and 'Read more about our cookie policy' the page content should be visible and vertical scrolling should be available in there is a lot of content. However,  when the browser screen is resized to 400% with a CSS width of 1280 pixels there page content does not appear in its entirety.    The cookie links should be redesigned to not take up so much vertical space.","When the cookie links 'OK,got it' and 'Read more about our cookie policy' the page content should be visible and vertical scrolling should be available in there is a lot of content. However,  when the browser screen is resized to 400% with a CSS width of 1280 pixels there page content does not appear in its entirety.    The cookie links should be redesigned to not take up so much vertical space.","When the cookie links 'OK,got it' and 'Read more about our cookie policy' the page content should be visible and vertical scrolling should be available in there is a lot of content. However,  when the browser screen is resized to 400% with a CSS width of 1280 pixels there page content does not appear in its entirety.    The cookie links should be redesigned to not take up so much vertical space.","When the cookie links 'OK,got it' and 'Read more about our cookie policy' the page content should be visible and vertical scrolling should be available in there is a lot of content. However,  when the browser screen is resized to 400% with a CSS width of 1280 pixels there page content does not appear in its entirety.    The cookie links should be redesigned to not take up so much vertical space.","When the cookie links 'OK,got it' and 'Read more about our cookie policy' the page content should be visible and vertical scrolling should be available in there is a lot of content. However,  when the browser screen is resized to 400% with a CSS width of 1280 pixels there page content does not appear in its entirety.    The cookie links should be redesigned to not take up so much vertical space.","When the cookie links 'OK,got it' and 'Read more about our cookie policy' the page content should be visible and vertical scrolling should be available in there is a lot of content. However,  when the browser screen is resized to 400% with a CSS width of 1280 pixels there page content does not appear in its entirety.    The cookie links should be redesigned to not take up so much vertical space.","When the cookie links 'OK,got it' and 'Read more about our cookie policy' the page content should be visible and vertical scrolling should be available in there is a lot of content. However,  when the browser screen is resized to 400% with a CSS width of 1280 pixels there page content does not appear in its entirety.    The cookie links should be redesigned to not take up so much vertical space.","When the cookie links 'OK,got it' and 'Read more about our cookie policy' the page content should be visible and vertical scrolling should be available in there is a lot of content. However,  when the browser screen is resized to 400% with a CSS width of 1280 pixels there page content does not appear in its entirety.    The cookie links should be redesigned to not take up so much vertical space."]
["1.4.11","AA","Non-text Contrast","The visual presentation of the following have a contrast ratio of at least 3:1 against adjacent colour(s):\n\nUser Interface Components: Visual information required to identify user interface components and states, except for inactive components or where the appearance of the component is determined by the user agent and not modified by the author;\nGraphical Objects: Parts of graphics required to understand the content, except when a particular presentation of graphics is essential to the information being conveyed.","NON COMPLIANT","NON COMPLIANT","NON COMPLIANT","NON COMPLIANT","NON COMPLIANT","PASS","NON COMPLIANT","PASS","NON COMPLIANT","NON COMPLIANT","NON COMPLIANT","NON COMPLIANT","NON COMPLIANT","NON COMPLIANT","NON COMPLIANT","NON COMPLIANT"]
[null,null,null,null,"5 instances of foreground and background colours that do not have sufficient contrast. See the Non-text contrast worksheet.","8 instances of foreground and background colours that do not have sufficient contrast. See the Non-text contrast worksheet.","8 instances of foreground and background colours that do not have sufficient contrast. See the Non-text contrast worksheet.","8 instances of foreground and background colours that do not have sufficient contrast. See the Non-text contrast worksheet.","8 instances of foreground and background colours that do not have sufficient contrast. See the Non-text contrast worksheet.",null,"8 instances of foreground and background colours that do not have sufficient contrast. See the Non-text contrast worksheet.",null,"8 instances of foreground and background colours that do not have sufficient contrast. See the Non-text contrast worksheet.","8 instances of foreground and background colours that do not have sufficient contrast. See the Non-text contrast worksheet.","9 instances of foreground and background colours that do not have sufficient contrast. See the Non-text contrast worksheet.","9 instances of foreground and background colours that do not have sufficient contrast. See the Non-text contrast worksheet.","8 instances of foreground and background colours that do not have sufficient contrast. See the Non-text contrast worksheet.","9 instances of foreground and background colours that do not have sufficient contrast. See the Non-text contrast worksheet.","8 instances of foreground and background colours that do not have sufficient contrast. See the Non-text contrast worksheet.","11 instances of foreground and background colours that do not have sufficient contrast. See the Non-text contrast worksheet."]
["1.4.12","AA","Text Spacing","In content implemented using mark-up languages that support the following text style properties, no loss of content or functionality occurs by setting all of the following and by changing no other style property:\n\nLine height (line spacing) to at least 1.5 times the font size;\nSpacing following paragraphs to at least 2 times the font size;\nLetter spacing (tracking) to at least 0.12 times the font size;\nWord spacing to at least 0.16 times the font size.\nException: Human languages and scripts that do not make use of one or more of these text style properties in written text can conform using only the properties that exist for that combination of language and script.","PASS","NON COMPLIANT","NON COMPLIANT","PASS","PASS","PASS","PASS","PASS","PASS","PASS","PASS","PASS","PASS","PASS","PASS","PASS"]
[null,null,null,null,null,"The text in each news segment in the 'Latest news' section should appear in correctly in place in the box area that sits under the text. However, that is not the case as the text overlaps the box when text spacing is increased. Ensure that that the background box increases in height when text spacing is increased.","The text in each About segment in the 'About' section should appear in correctly in place in the box area that sits under the text. However, that is not the case as the text overlaps the box when text spacing is increased. Ensure that that the background box increases in height when text spacing is increased."]
["1.4.13","AA","Content on Hover or Focus","Where receiving and then removing pointer hover or keyboard focus triggers additional content to become visible and then hidden, the following are true:\n\nDismissible: A mechanism is available to dismiss the additional content without moving pointer hover or keyboard focus, unless the additional content communicates an input error or does not obscure or replace other content;\nHoverable: If pointer hover can trigger the additional content, then the pointer can be moved over the additional content without the additional content disappearing;\nPersistent: The additional content remains visible until the hover or focus trigger is removed, the user dismisses it, or its information is no longer valid.\nException: The visual presentation of the additional content is controlled by the user agent and is not modified by the author.\n","N/A","N/A","N/A","N/A","N/A","N/A","N/A","N/A","N/A","N/A","N/A","N/A","N/A","N/A","N/A","N/A"]
[null,null,null,null,"There are no additional content that is presented on hover or keyboard focus on the page.","There are no additional content that is presented on hover or keyboard focus on the page.","There are no additional content that is presented on hover or keyboard focus on the page.","There are no additional content that is presented on hover or keyboard focus on the page.","There are no additional content that is presented on hover or keyboard focus on the page.","There are no additional content that is presented on hover or keyboard focus on the page.","There are no additional content that is presented on hover or keyboard focus on the page.","There are no additional content that is presented on hover or keyboard focus on the page.","There are no additional content that is presented on hover or keyboard focus on the page.","There are no additional content that is presented on hover or keyboard focus on the page.","There are no additional content that is presented on hover or keyboard focus on the page.","There are no additional content that is presented on hover or keyboard focus on the page.","There are no additional content that is presented on hover or keyboard focus on the page.","There are no additional content that is presented on hover or keyboard focus on the page.","There are no additional content that is presented on hover or keyboard focus on the page.","There are no additional content that is presented on hover or keyboard focus on the page."]
["W3C Ref.","Level.",null,"Principle 2: Operable - User interface components and navigation must be operable."]
["2.4.5","AA","Multiple Ways","More than one way is available to locate a Web page within a set of Web pages except where the Web Page is the result of, or a step in, a process. ","PASS","PASS","PASS","PASS","PASS","PASS","PASS","PASS","PASS","PASS","PASS","PASS","PASS","PASS","PASS","PASS"]
[]
["2.4.6","AA","Headings and Labels","Headings and labels describe topic or purpose.","PASS","PASS","PASS","PASS","PASS","PASS","PASS","PASS","PASS","PASS","PASS","PASS","PASS","PASS","PASS","PASS"]
[]
["2.4.7","AA","Focus Visible","Any keyboard operable user interface has a mode of operation where the keyboard focus indicator is visible.","PASS","NON COMPLIANT","PASS","NON COMPLIANT","NON COMPLIANT","PASS","PASS","PASS","PASS","PASS","PASS","PASS","PASS","PASS","PASS","PASS"]
[null,null,null,null,null,"The 'Please select your borough' combobox should have a visual indicator but it does not because the visual indicator is the same colour as its background. \n\nChange the outline for the select:focus CSS Class. E.g. outline: 2px #04aaec;",null,"The 'select your borough' combobox should have a visual indicator but it does not because the visual indicator is the same colour as its background. \n\nChange the outline for the select:focus CSS Class. E.g. outline: 2px #04aaec;","The 'select your borough' combobox should have a visual indicator but it does not because the visual indicator is the same colour as its background. \n\nChange the outline for the select:focus CSS Class. E.g. outline: 2px #04aaec;"]
["W3C Ref.","Level.",null,"Principle 3: Understandable - Information and the operation of user interface must be understandable."]
["3.1.2","AA","Language of Parts","The human language of each passage or phrase in the content can be programmatically determined except for proper names, technical terms, words of indeterminate language, and words or phrases that have become part of the vernacular of the immediately surrounding text.","N/A","N/A","N/A","N/A","N/A","N/A","N/A","N/A","N/A","N/A","N/A","N/A","N/A","N/A","N/A","N/A"]
[null,null,null,null,"N/A because there is no content that is on the page that is in a different language.","N/A because there is no content that is on the page that is in a different language.","N/A because there is no content that is on the page that is in a different language.","N/A because there is no content that is on the page that is in a different language.","N/A because there is no content that is on the page that is in a different language.","N/A because there is no content that is on the page that is in a different language.","N/A because there is no content that is on the page that is in a different language.","N/A because there is no content that is on the page that is in a different language.","N/A because there is no content that is on the page that is in a different language.","N/A because there is no content that is on the page that is in a different language.","N/A because there is no content that is on the page that is in a different language.","N/A because there is no content that is on the page that is in a different language.","N/A because there is no content that is on the page that is in a different language.","N/A because there is no content that is on the page that is in a different language.","N/A because there is no content that is on the page that is in a different language.","N/A because there is no content that is on the page that is in a different language."]
["3.2.3","AA","Consistent Navigation","Navigational mechanisms that are repeated on multiple Web pages within a set of Web pages occur in the same relative order each time they are repeated, unless a change is initiated by the user.","PASS","PASS","PASS","PASS","PASS","PASS","PASS","PASS","PASS","PASS","PASS","PASS","PASS","PASS","PASS","PASS"]
[]
["3.2.4","AA","Consistent Identification","Components that have the same functionality within a set of Web pages are identified consistently.","PASS","PASS","PASS","PASS","PASS","PASS","PASS","PASS","PASS","PASS","PASS","PASS","PASS","PASS","PASS","PASS"]
[]
["3.3.3","AA","Error Suggestion","If an input error is automatically detected and suggestions for correction are known, then the suggestions are provided to the user, unless it would jeopardize the security or purpose of the content.","N/A","N/A","N/A","N/A","N/A","N/A","N/A","N/A","N/A","N/A","N/A","N/A","N/A","N/A","N/A","N/A"]
[null,null,null,null,"N/A because there are no input errors detected on the page.","N/A because there are no input errors detected on the page.","N/A because there are no input errors detected on the page.","N/A because there are no input errors detected on the page.","N/A because there are no input errors detected on the page.","N/A because there are no input errors detected on the page.","N/A because there are no input errors detected on the page.","N/A because there are no input errors detected on the page.","N/A because there are no input errors detected on the page.","N/A because there are no input errors detected on the page.","N/A because there are no input errors detected on the page.","N/A because there are no input errors detected on the page.","N/A because there are no input errors detected on the page.","N/A because there are no input errors detected on the page.","N/A because there are no input errors detected on the page.","N/A because there are no input errors detected on the page."]
["3.3.4","AA","Error Prevention (Legal, Financial, Data)","For Web pages that cause legal commitments or financial transactions for the user to occur, that modify or delete user-controllable data in data storage systems, or that submit user test responses, at least one of the following is true: Reversible, Checked, Confirmed.","N/A","N/A","N/A","N/A","N/A","N/A","N/A","N/A","N/A","N/A","N/A","N/A","N/A","N/A","N/A","N/A"]
[null,null,null,null,"N/A because there are no input that enables the user to  reverse, verify or confirm or delete legal, financial, or test data.","N/A because there are no input that enables the user to  reverse, verify or confirm or delete legal, financial, or test data.","N/A because there are no input that enables the user to  reverse, verify or confirm or delete legal, financial, or test data.","N/A because there are no input that enables the user to  reverse, verify or confirm or delete legal, financial, or test data.","N/A because there are no input that enables the user to  reverse, verify or confirm or delete legal, financial, or test data.","N/A because there are no input that enables the user to  reverse, verify or confirm or delete legal, financial, or test data.","N/A because there are no input that enables the user to  reverse, verify or confirm or delete legal, financial, or test data.","N/A because there are no input that enables the user to  reverse, verify or confirm or delete legal, financial, or test data.","N/A because there are no input that enables the user to  reverse, verify or confirm or delete legal, financial, or test data.","N/A because there are no input that enables the user to  reverse, verify or confirm or delete legal, financial, or test data.","N/A because there are no input that enables the user to  reverse, verify or confirm or delete legal, financial, or test data.","N/A because there are no input that enables the user to  reverse, verify or confirm or delete legal, financial, or test data.","N/A because there are no input that enables the user to  reverse, verify or confirm or delete legal, financial, or test data.","N/A because there are no input that enables the user to  reverse, verify or confirm or delete legal, financial, or test data.","N/A because there are no input that enables the user to  reverse, verify or confirm or delete legal, financial, or test data.","N/A because there are no input that enables the user to  reverse, verify or confirm or delete legal, financial, or test data."]
["W3C Ref.","Level.",null,"Guideline 4.1 Compatible: Maximize compatibility with current and future user agents, including assistive technologies."]
["4.1.3","AA","Status Messages","In content implemented using mark-up languages, status messages can be programmatically determined through role or properties such that they can be presented to the user by assistive technologies without receiving focus.","N/A","N/A","N/A","N/A","N/A","N/A","N/A","N/A","N/A","N/A","N/A","N/A","N/A","N/A","N/A","N/A"]
[null,null,null,null,"N/A because there are no important status messages that are presented and focus is not set to that message nor announced to a screen reader on the page.","N/A because there are no important status messages that are presented and focus is not set to that message nor announced to a screen reader on the page.","N/A because there are no important status messages that are presented and focus is not set to that message nor announced to a screen reader on the page.","N/A because there are no important status messages that are presented and focus is not set to that message nor announced to a screen reader on the page.","N/A because there are no important status messages that are presented and focus is not set to that message nor announced to a screen reader on the page.","N/A because there are no important status messages that are presented and focus is not set to that message nor announced to a screen reader on the page.","N/A because there are no important status messages that are presented and focus is not set to that message nor announced to a screen reader on the page.","N/A because there are no important status messages that are presented and focus is not set to that message nor announced to a screen reader on the page.","N/A because there are no important status messages that are presented and focus is not set to that message nor announced to a screen reader on the page.","N/A because there are no important status messages that are presented and focus is not set to that message nor announced to a screen reader on the page.","N/A because there are no important status messages that are presented and focus is not set to that message nor announced to a screen reader on the page.","N/A because there are no important status messages that are presented and focus is not set to that message nor announced to a screen reader on the page.","N/A because there are no important status messages that are presented and focus is not set to that message nor announced to a screen reader on the page.","N/A because there are no important status messages that are presented and focus is not set to that message nor announced to a screen reader on the page.","N/A because there are no important status messages that are presented and focus is not set to that message nor announced to a screen reader on the page.","N/A because there are no important status messages that are presented and focus is not set to that message nor announced to a screen reader on the page."]
[]
[null,null,"Level AAA Success Criteria"]
["W3C Ref.","Level.",null,"Principle 1: Perceivable - Information and user interface components must be presentable to users in ways they can perceive."]
["1.2.6","AAA","Sign Language (Prerecorded)","Sign language interpretation is provided for all prerecorded audio content in synchronized media.","NOT TESTED","NOT TESTED","NOT TESTED","NOT TESTED","NOT TESTED","NOT TESTED","NOT TESTED","NOT TESTED","NOT TESTED","NOT TESTED","NOT TESTED","NOT TESTED","NOT TESTED","NOT TESTED","NOT TESTED","NOT TESTED","NOT TESTED","NOT TESTED","NOT TESTED","NOT TESTED","NOT TESTED","NOT TESTED","NOT TESTED","NOT TESTED","NOT TESTED","NOT TESTED","NOT TESTED","NOT TESTED","NOT TESTED","NOT TESTED","NOT TESTED","NOT TESTED","NOT TESTED","NOT TESTED","NOT TESTED","NOT TESTED","NOT TESTED","NOT TESTED","NOT TESTED","NOT TESTED","NOT TESTED","NOT TESTED","NOT TESTED","NOT TESTED","NOT TESTED","NOT TESTED","NOT TESTED","NOT TESTED","NOT TESTED","NOT TESTED"]
[null,null,null,null,"When testing for compliance with AA, leave all AAA results set to Not Tested.\n\nWhen testing for compliance with AAA, delete the Not Tested result setting from all 50 columns even if fewer than 50 are being tested."]
["1.2.7","AAA","Extended Audio Description (Prerecorded)","Where pauses in foreground audio are insufficient to allow audio descriptions to convey the sense of the video, extended audio description is provided for all prerecorded video content in synchronized media.","NOT TESTED","NOT TESTED","NOT TESTED","NOT TESTED","NOT TESTED","NOT TESTED","NOT TESTED","NOT TESTED","NOT TESTED","NOT TESTED","NOT TESTED","NOT TESTED","NOT TESTED","NOT TESTED","NOT TESTED","NOT TESTED","NOT TESTED","NOT TESTED","NOT TESTED","NOT TESTED","NOT TESTED","NOT TESTED","NOT TESTED","NOT TESTED","NOT TESTED","NOT TESTED","NOT TESTED","NOT TESTED","NOT TESTED","NOT TESTED","NOT TESTED","NOT TESTED","NOT TESTED","NOT TESTED","NOT TESTED","NOT TESTED","NOT TESTED","NOT TESTED","NOT TESTED","NOT TESTED","NOT TESTED","NOT TESTED","NOT TESTED","NOT TESTED","NOT TESTED","NOT TESTED","NOT TESTED","NOT TESTED","NOT TESTED","NOT TESTED"]
[]
["1.2.8","AAA","Media Alternative (Prerecorded)","An alternative for time-based media is provided for all prerecorded synchronized media and for all prerecorded video-only media.","NOT TESTED","NOT TESTED","NOT TESTED","NOT TESTED","NOT TESTED","NOT TESTED","NOT TESTED","NOT TESTED","NOT TESTED","NOT TESTED","NOT TESTED","NOT TESTED","NOT TESTED","NOT TESTED","NOT TESTED","NOT TESTED","NOT TESTED","NOT TESTED","NOT TESTED","NOT TESTED","NOT TESTED","NOT TESTED","NOT TESTED","NOT TESTED","NOT TESTED","NOT TESTED","NOT TESTED","NOT TESTED","NOT TESTED","NOT TESTED","NOT TESTED","NOT TESTED","NOT TESTED","NOT TESTED","NOT TESTED","NOT TESTED","NOT TESTED","NOT TESTED","NOT TESTED","NOT TESTED","NOT TESTED","NOT TESTED","NOT TESTED","NOT TESTED","NOT TESTED","NOT TESTED","NOT TESTED","NOT TESTED","NOT TESTED","NOT TESTED"]
[]
["1.2.9","AAA","Audio-only (Live)","An alternative for time-based media that presents equivalent information for live audio-only content is provided.","NOT TESTED","NOT TESTED","NOT TESTED","NOT TESTED","NOT TESTED","NOT TESTED","NOT TESTED","NOT TESTED","NOT TESTED","NOT TESTED","NOT TESTED","NOT TESTED","NOT TESTED","NOT TESTED","NOT TESTED","NOT TESTED","NOT TESTED","NOT TESTED","NOT TESTED","NOT TESTED","NOT TESTED","NOT TESTED","NOT TESTED","NOT TESTED","NOT TESTED","NOT TESTED","NOT TESTED","NOT TESTED","NOT TESTED","NOT TESTED","NOT TESTED","NOT TESTED","NOT TESTED","NOT TESTED","NOT TESTED","NOT TESTED","NOT TESTED","NOT TESTED","NOT TESTED","NOT TESTED","NOT TESTED","NOT TESTED","NOT TESTED","NOT TESTED","NOT TESTED","NOT TESTED","NOT TESTED","NOT TESTED","NOT TESTED","NOT TESTED"]
[]
["1.3.6","AAA","Identify Purpose","In content implemented using markup languages, the purpose of User Interface Components, icons, and regions can be programmatically determined.","NOT TESTED","NOT TESTED","NOT TESTED","NOT TESTED","NOT TESTED","NOT TESTED","NOT TESTED","NOT TESTED","NOT TESTED","NOT TESTED","NOT TESTED","NOT TESTED","NOT TESTED","NOT TESTED","NOT TESTED","NOT TESTED","NOT TESTED","NOT TESTED","NOT TESTED","NOT TESTED","NOT TESTED","NOT TESTED","NOT TESTED","NOT TESTED","NOT TESTED","NOT TESTED","NOT TESTED","NOT TESTED","NOT TESTED","NOT TESTED","NOT TESTED","NOT TESTED","NOT TESTED","NOT TESTED","NOT TESTED","NOT TESTED","NOT TESTED","NOT TESTED","NOT TESTED","NOT TESTED","NOT TESTED","NOT TESTED","NOT TESTED","NOT TESTED","NOT TESTED","NOT TESTED","NOT TESTED","NOT TESTED","NOT TESTED","NOT TESTED"]
[]
["1.4.6","AAA","Contrast (Enhanced)","The visual presentation of text and images of text has a contrast ratio of at least 7:1, except for the following:\n\nLarge Text: Large-scale text and images of large-scale text have a contrast ratio of at least 4.5:1;\nIncidental: Text or images of text that are part of an inactive user interface component, that are pure decoration, that are not visible to anyone, or that are part of a picture that contains significant other visual content, have no contrast requirement.\nLogotypes: Text that is part of a logo or brand name has no contrast requirement.","NOT TESTED","NOT TESTED","NOT TESTED","NOT TESTED","NOT TESTED","NOT TESTED","NOT TESTED","NOT TESTED","NOT TESTED","NOT TESTED","NOT TESTED","NOT TESTED","NOT TESTED","NOT TESTED","NOT TESTED","NOT TESTED","NOT TESTED","NOT TESTED","NOT TESTED","NOT TESTED","NOT TESTED","NOT TESTED","NOT TESTED","NOT TESTED","NOT TESTED","NOT TESTED","NOT TESTED","NOT TESTED","NOT TESTED","NOT TESTED","NOT TESTED","NOT TESTED","NOT TESTED","NOT TESTED","NOT TESTED","NOT TESTED","NOT TESTED","NOT TESTED","NOT TESTED","NOT TESTED","NOT TESTED","NOT TESTED","NOT TESTED","NOT TESTED","NOT TESTED","NOT TESTED","NOT TESTED","NOT TESTED","NOT TESTED","NOT TESTED"]
[]
["1.4.7","AAA","Low or No Background Audio","For prerecorded audio-only content that (1) contains primarily speech in the foreground, (2) is not an audio CAPTCHA or audio logo, and (3) is not vocalization intended to be primarily musical expression such as singing or rapping, at least one of the following is true:\n\nNo Background: The audio does not contain background sounds.\nTurn Off: The background sounds can be turned off.\n20 dB: The background sounds are at least 20 decibels lower than the foreground speech content, with the exception of occasional sounds that last for only one or two seconds.","NOT TESTED","NOT TESTED","NOT TESTED","NOT TESTED","NOT TESTED","NOT TESTED","NOT TESTED","NOT TESTED","NOT TESTED","NOT TESTED","NOT TESTED","NOT TESTED","NOT TESTED","NOT TESTED","NOT TESTED","NOT TESTED","NOT TESTED","NOT TESTED","NOT TESTED","NOT TESTED","NOT TESTED","NOT TESTED","NOT TESTED","NOT TESTED","NOT TESTED","NOT TESTED","NOT TESTED","NOT TESTED","NOT TESTED","NOT TESTED","NOT TESTED","NOT TESTED","NOT TESTED","NOT TESTED","NOT TESTED","NOT TESTED","NOT TESTED","NOT TESTED","NOT TESTED","NOT TESTED","NOT TESTED","NOT TESTED","NOT TESTED","NOT TESTED","NOT TESTED","NOT TESTED","NOT TESTED","NOT TESTED","NOT TESTED","NOT TESTED"]
[]
["1.4.8","AAA","Visual Presentation","For the visual presentation of blocks of text, a mechanism is available to achieve the following:\n\na) Foreground and background colors can be selected by the user.\nb) Width is no more than 80 characters or glyphs (40 if CJK).\nc) Text is not justified (aligned to both the left and the right margins).\nd) Line spacing (leading) is at least space-and-a-half within paragraphs, and paragraph spacing is at least 1.5 times larger than the line spacing.\ne) Text can be resized without assistive technology up to 200 percent in a way that does not require the user to scroll horizontally to read a line of text on a full-screen window.","NOT TESTED","NOT TESTED","NOT TESTED","NOT TESTED","NOT TESTED","NOT TESTED","NOT TESTED","NOT TESTED","NOT TESTED","NOT TESTED","NOT TESTED","NOT TESTED","NOT TESTED","NOT TESTED","NOT TESTED","NOT TESTED","NOT TESTED","NOT TESTED","NOT TESTED","NOT TESTED","NOT TESTED","NOT TESTED","NOT TESTED","NOT TESTED","NOT TESTED","NOT TESTED","NOT TESTED","NOT TESTED","NOT TESTED","NOT TESTED","NOT TESTED","NOT TESTED","NOT TESTED","NOT TESTED","NOT TESTED","NOT TESTED","NOT TESTED","NOT TESTED","NOT TESTED","NOT TESTED","NOT TESTED","NOT TESTED","NOT TESTED","NOT TESTED","NOT TESTED","NOT TESTED","NOT TESTED","NOT TESTED","NOT TESTED","NOT TESTED"]
[]
["1.4.9","AAA","Images of Text (No Exception)","Images of text are only used for pure decoration or where a particular presentation of text is essential to the information being conveyed.","NOT TESTED","NOT TESTED","NOT TESTED","NOT TESTED","NOT TESTED","NOT TESTED","NOT TESTED","NOT TESTED","NOT TESTED","NOT TESTED","NOT TESTED","NOT TESTED","NOT TESTED","NOT TESTED","NOT TESTED","NOT TESTED","NOT TESTED","NOT TESTED","NOT TESTED","NOT TESTED","NOT TESTED","NOT TESTED","NOT TESTED","NOT TESTED","NOT TESTED","NOT TESTED","NOT TESTED","NOT TESTED","NOT TESTED","NOT TESTED","NOT TESTED","NOT TESTED","NOT TESTED","NOT TESTED","NOT TESTED","NOT TESTED","NOT TESTED","NOT TESTED","NOT TESTED","NOT TESTED","NOT TESTED","NOT TESTED","NOT TESTED","NOT TESTED","NOT TESTED","NOT TESTED","NOT TESTED","NOT TESTED","NOT TESTED","NOT TESTED"]
[]
["2.1.3","AAA","Keyboard (No Exception)","All functionality of the content is operable through a keyboard interface without requiring specific timings for individual keystrokes.","NOT TESTED","NOT TESTED","NOT TESTED","NOT TESTED","NOT TESTED","NOT TESTED","NOT TESTED","NOT TESTED","NOT TESTED","NOT TESTED","NOT TESTED","NOT TESTED","NOT TESTED","NOT TESTED","NOT TESTED","NOT TESTED","NOT TESTED","NOT TESTED","NOT TESTED","NOT TESTED","NOT TESTED","NOT TESTED","NOT TESTED","NOT TESTED","NOT TESTED","NOT TESTED","NOT TESTED","NOT TESTED","NOT TESTED","NOT TESTED","NOT TESTED","NOT TESTED","NOT TESTED","NOT TESTED","NOT TESTED","NOT TESTED","NOT TESTED","NOT TESTED","NOT TESTED","NOT TESTED","NOT TESTED","NOT TESTED","NOT TESTED","NOT TESTED","NOT TESTED","NOT TESTED","NOT TESTED","NOT TESTED","NOT TESTED","NOT TESTED"]
[]
["2.2.3","AAA","No Timing","Timing is not an essential part of the event or activity presented by the content, except for non-interactive synchronized media and real-time events.","NOT TESTED","NOT TESTED","NOT TESTED","NOT TESTED","NOT TESTED","NOT TESTED","NOT TESTED","NOT TESTED","NOT TESTED","NOT TESTED","NOT TESTED","NOT TESTED","NOT TESTED","NOT TESTED","NOT TESTED","NOT TESTED","NOT TESTED","NOT TESTED","NOT TESTED","NOT TESTED","NOT TESTED","NOT TESTED","NOT TESTED","NOT TESTED","NOT TESTED","NOT TESTED","NOT TESTED","NOT TESTED","NOT TESTED","NOT TESTED","NOT TESTED","NOT TESTED","NOT TESTED","NOT TESTED","NOT TESTED","NOT TESTED","NOT TESTED","NOT TESTED","NOT TESTED","NOT TESTED","NOT TESTED","NOT TESTED","NOT TESTED","NOT TESTED","NOT TESTED","NOT TESTED","NOT TESTED","NOT TESTED","NOT TESTED","NOT TESTED"]
[]
["2.2.4","AAA","Interruptions","Interruptions can be postponed or suppressed by the user, except interruptions involving an emergency.","NOT TESTED","NOT TESTED","NOT TESTED","NOT TESTED","NOT TESTED","NOT TESTED","NOT TESTED","NOT TESTED","NOT TESTED","NOT TESTED","NOT TESTED","NOT TESTED","NOT TESTED","NOT TESTED","NOT TESTED","NOT TESTED","NOT TESTED","NOT TESTED","NOT TESTED","NOT TESTED","NOT TESTED","NOT TESTED","NOT TESTED","NOT TESTED","NOT TESTED","NOT TESTED","NOT TESTED","NOT TESTED","NOT TESTED","NOT TESTED","NOT TESTED","NOT TESTED","NOT TESTED","NOT TESTED","NOT TESTED","NOT TESTED","NOT TESTED","NOT TESTED","NOT TESTED","NOT TESTED","NOT TESTED","NOT TESTED","NOT TESTED","NOT TESTED","NOT TESTED","NOT TESTED","NOT TESTED","NOT TESTED","NOT TESTED","NOT TESTED"]
[]
["2.2.5","AAA","Re-authenticating","When an authenticated session expires, the user can continue the activity without loss of data after re-authenticating.","NOT TESTED","NOT TESTED","NOT TESTED","NOT TESTED","NOT TESTED","NOT TESTED","NOT TESTED","NOT TESTED","NOT TESTED","NOT TESTED","NOT TESTED","NOT TESTED","NOT TESTED","NOT TESTED","NOT TESTED","NOT TESTED","NOT TESTED","NOT TESTED","NOT TESTED","NOT TESTED","NOT TESTED","NOT TESTED","NOT TESTED","NOT TESTED","NOT TESTED","NOT TESTED","NOT TESTED","NOT TESTED","NOT TESTED","NOT TESTED","NOT TESTED","NOT TESTED","NOT TESTED","NOT TESTED","NOT TESTED","NOT TESTED","NOT TESTED","NOT TESTED","NOT TESTED","NOT TESTED","NOT TESTED","NOT TESTED","NOT TESTED","NOT TESTED","NOT TESTED","NOT TESTED","NOT TESTED","NOT TESTED","NOT TESTED","NOT TESTED"]
[]
["2.2.6","AAA","Timeouts","Users are warned of the duration of any user inactivity that could cause data loss, unless the data is preserved for more than 20 hours when the user does not take any actions.","NOT TESTED","NOT TESTED","NOT TESTED","NOT TESTED","NOT TESTED","NOT TESTED","NOT TESTED","NOT TESTED","NOT TESTED","NOT TESTED","NOT TESTED","NOT TESTED","NOT TESTED","NOT TESTED","NOT TESTED","NOT TESTED","NOT TESTED","NOT TESTED","NOT TESTED","NOT TESTED","NOT TESTED","NOT TESTED","NOT TESTED","NOT TESTED","NOT TESTED","NOT TESTED","NOT TESTED","NOT TESTED","NOT TESTED","NOT TESTED","NOT TESTED","NOT TESTED","NOT TESTED","NOT TESTED","NOT TESTED","NOT TESTED","NOT TESTED","NOT TESTED","NOT TESTED","NOT TESTED","NOT TESTED","NOT TESTED","NOT TESTED","NOT TESTED","NOT TESTED","NOT TESTED","NOT TESTED","NOT TESTED","NOT TESTED","NOT TESTED"]
[]
["2.3.2","AAA","Three Flashes","Web pages do not contain anything that flashes more than three times in any one second period.","NOT TESTED","NOT TESTED","NOT TESTED","NOT TESTED","NOT TESTED","NOT TESTED","NOT TESTED","NOT TESTED","NOT TESTED","NOT TESTED","NOT TESTED","NOT TESTED","NOT TESTED","NOT TESTED","NOT TESTED","NOT TESTED","NOT TESTED","NOT TESTED","NOT TESTED","NOT TESTED","NOT TESTED","NOT TESTED","NOT TESTED","NOT TESTED","NOT TESTED","NOT TESTED","NOT TESTED","NOT TESTED","NOT TESTED","NOT TESTED","NOT TESTED","NOT TESTED","NOT TESTED","NOT TESTED","NOT TESTED","NOT TESTED","NOT TESTED","NOT TESTED","NOT TESTED","NOT TESTED","NOT TESTED","NOT TESTED","NOT TESTED","NOT TESTED","NOT TESTED","NOT TESTED","NOT TESTED","NOT TESTED","NOT TESTED","NOT TESTED"]
[]
["2.3.3","AAA","Animation from Interactions","Motion animation triggered by interaction can be disabled, unless the animation is essential to the functionality or the information being conveyed.","NOT TESTED","NOT TESTED","NOT TESTED","NOT TESTED","NOT TESTED","NOT TESTED","NOT TESTED","NOT TESTED","NOT TESTED","NOT TESTED","NOT TESTED","NOT TESTED","NOT TESTED","NOT TESTED","NOT TESTED","NOT TESTED","NOT TESTED","NOT TESTED","NOT TESTED","NOT TESTED","NOT TESTED","NOT TESTED","NOT TESTED","NOT TESTED","NOT TESTED","NOT TESTED","NOT TESTED","NOT TESTED","NOT TESTED","NOT TESTED","NOT TESTED","NOT TESTED","NOT TESTED","NOT TESTED","NOT TESTED","NOT TESTED","NOT TESTED","NOT TESTED","NOT TESTED","NOT TESTED","NOT TESTED","NOT TESTED","NOT TESTED","NOT TESTED","NOT TESTED","NOT TESTED","NOT TESTED","NOT TESTED","NOT TESTED","NOT TESTED"]
[]
["2.4.8","AAA","Location","Information about the user's location within a set of Web pages is available.","NOT TESTED","NOT TESTED","NOT TESTED","NOT TESTED","NOT TESTED","NOT TESTED","NOT TESTED","NOT TESTED","NOT TESTED","NOT TESTED","NOT TESTED","NOT TESTED","NOT TESTED","NOT TESTED","NOT TESTED","NOT TESTED","NOT TESTED","NOT TESTED","NOT TESTED","NOT TESTED","NOT TESTED","NOT TESTED","NOT TESTED","NOT TESTED","NOT TESTED","NOT TESTED","NOT TESTED","NOT TESTED","NOT TESTED","NOT TESTED","NOT TESTED","NOT TESTED","NOT TESTED","NOT TESTED","NOT TESTED","NOT TESTED","NOT TESTED","NOT TESTED","NOT TESTED","NOT TESTED","NOT TESTED","NOT TESTED","NOT TESTED","NOT TESTED","NOT TESTED","NOT TESTED","NOT TESTED","NOT TESTED","NOT TESTED","NOT TESTED"]
[]
["2.4.9","AAA","Link Purpose (Link Only)","A mechanism is available to allow the purpose of each link to be identified from link text alone, except where the purpose of the link would be ambiguous to users in general.","NOT TESTED","NOT TESTED","NOT TESTED","NOT TESTED","NOT TESTED","NOT TESTED","NOT TESTED","NOT TESTED","NOT TESTED","NOT TESTED","NOT TESTED","NOT TESTED","NOT TESTED","NOT TESTED","NOT TESTED","NOT TESTED","NOT TESTED","NOT TESTED","NOT TESTED","NOT TESTED","NOT TESTED","NOT TESTED","NOT TESTED","NOT TESTED","NOT TESTED","NOT TESTED","NOT TESTED","NOT TESTED","NOT TESTED","NOT TESTED","NOT TESTED","NOT TESTED","NOT TESTED","NOT TESTED","NOT TESTED","NOT TESTED","NOT TESTED","NOT TESTED","NOT TESTED","NOT TESTED","NOT TESTED","NOT TESTED","NOT TESTED","NOT TESTED","NOT TESTED","NOT TESTED","NOT TESTED","NOT TESTED","NOT TESTED","NOT TESTED"]
[]
["2.4.10","AAA","Section Headings","Section headings are used to organize the content.","NOT TESTED","NOT TESTED","NOT TESTED","NOT TESTED","NOT TESTED","NOT TESTED","NOT TESTED","NOT TESTED","NOT TESTED","NOT TESTED","NOT TESTED","NOT TESTED","NOT TESTED","NOT TESTED","NOT TESTED","NOT TESTED","NOT TESTED","NOT TESTED","NOT TESTED","NOT TESTED","NOT TESTED","NOT TESTED","NOT TESTED","NOT TESTED","NOT TESTED","NOT TESTED","NOT TESTED","NOT TESTED","NOT TESTED","NOT TESTED","NOT TESTED","NOT TESTED","NOT TESTED","NOT TESTED","NOT TESTED","NOT TESTED","NOT TESTED","NOT TESTED","NOT TESTED","NOT TESTED","NOT TESTED","NOT TESTED","NOT TESTED","NOT TESTED","NOT TESTED","NOT TESTED","NOT TESTED","NOT TESTED","NOT TESTED","NOT TESTED"]
[]
["2.5.5","AAA","Target Size","The size of the target for pointer inputs is at least 44 by 44 CSS pixels except when:\n\nEquivalent: The target is available through an equivalent link or control on the same page that is at least 44 by 44 CSS pixels;\nInline: The target is in a sentence or block of text;\nUser Agent Control: The size of the target is determined by the user agent and is not modified by the author;\nEssential: A particular presentation of the target is essential to the information being conveyed.","NOT TESTED","NOT TESTED","NOT TESTED","NOT TESTED","NOT TESTED","NOT TESTED","NOT TESTED","NOT TESTED","NOT TESTED","NOT TESTED","NOT TESTED","NOT TESTED","NOT TESTED","NOT TESTED","NOT TESTED","NOT TESTED","NOT TESTED","NOT TESTED","NOT TESTED","NOT TESTED","NOT TESTED","NOT TESTED","NOT TESTED","NOT TESTED","NOT TESTED","NOT TESTED","NOT TESTED","NOT TESTED","NOT TESTED","NOT TESTED","NOT TESTED","NOT TESTED","NOT TESTED","NOT TESTED","NOT TESTED","NOT TESTED","NOT TESTED","NOT TESTED","NOT TESTED","NOT TESTED","NOT TESTED","NOT TESTED","NOT TESTED","NOT TESTED","NOT TESTED","NOT TESTED","NOT TESTED","NOT TESTED","NOT TESTED","NOT TESTED"]
[]
["2.5.6","AAA","Concurrent Input Mechanisms","Web content does not restrict use of input modalities available on a platform except where the restriction is essential, required to ensure the security of the content, or required to respect user settings.","NOT TESTED","NOT TESTED","NOT TESTED","NOT TESTED","NOT TESTED","NOT TESTED","NOT TESTED","NOT TESTED","NOT TESTED","NOT TESTED","NOT TESTED","NOT TESTED","NOT TESTED","NOT TESTED","NOT TESTED","NOT TESTED","NOT TESTED","NOT TESTED","NOT TESTED","NOT TESTED","NOT TESTED","NOT TESTED","NOT TESTED","NOT TESTED","NOT TESTED","NOT TESTED","NOT TESTED","NOT TESTED","NOT TESTED","NOT TESTED","NOT TESTED","NOT TESTED","NOT TESTED","NOT TESTED","NOT TESTED","NOT TESTED","NOT TESTED","NOT TESTED","NOT TESTED","NOT TESTED","NOT TESTED","NOT TESTED","NOT TESTED","NOT TESTED","NOT TESTED","NOT TESTED","NOT TESTED","NOT TESTED","NOT TESTED","NOT TESTED"]
[]
["3.1.3","AAA","Unusual Words","A mechanism is available for identifying specific definitions of words or phrases used in an unusual or restricted way, including idioms and jargon.","NOT TESTED","NOT TESTED","NOT TESTED","NOT TESTED","NOT TESTED","NOT TESTED","NOT TESTED","NOT TESTED","NOT TESTED","NOT TESTED","NOT TESTED","NOT TESTED","NOT TESTED","NOT TESTED","NOT TESTED","NOT TESTED","NOT TESTED","NOT TESTED","NOT TESTED","NOT TESTED","NOT TESTED","NOT TESTED","NOT TESTED","NOT TESTED","NOT TESTED","NOT TESTED","NOT TESTED","NOT TESTED","NOT TESTED","NOT TESTED","NOT TESTED","NOT TESTED","NOT TESTED","NOT TESTED","NOT TESTED","NOT TESTED","NOT TESTED","NOT TESTED","NOT TESTED","NOT TESTED","NOT TESTED","NOT TESTED","NOT TESTED","NOT TESTED","NOT TESTED","NOT TESTED","NOT TESTED","NOT TESTED","NOT TESTED","NOT TESTED"]
[]
["3.1.4","AAA","Abbreviations","A mechanism for identifying the expanded form or meaning of abbreviations is available.","NOT TESTED","NOT TESTED","NOT TESTED","NOT TESTED","NOT TESTED","NOT TESTED","NOT TESTED","NOT TESTED","NOT TESTED","NOT TESTED","NOT TESTED","NOT TESTED","NOT TESTED","NOT TESTED","NOT TESTED","NOT TESTED","NOT TESTED","NOT TESTED","NOT TESTED","NOT TESTED","NOT TESTED","NOT TESTED","NOT TESTED","NOT TESTED","NOT TESTED","NOT TESTED","NOT TESTED","NOT TESTED","NOT TESTED","NOT TESTED","NOT TESTED","NOT TESTED","NOT TESTED","NOT TESTED","NOT TESTED","NOT TESTED","NOT TESTED","NOT TESTED","NOT TESTED","NOT TESTED","NOT TESTED","NOT TESTED","NOT TESTED","NOT TESTED","NOT TESTED","NOT TESTED","NOT TESTED","NOT TESTED","NOT TESTED","NOT TESTED"]
[]
["3.1.5","AAA","Reading Level","When text requires reading ability more advanced than the lower secondary education level after removal of proper names and titles, supplemental content, or a version that does not require reading ability more advanced than the lower secondary education level, is available.","NOT TESTED","NOT TESTED","NOT TESTED","NOT TESTED","NOT TESTED","NOT TESTED","NOT TESTED","NOT TESTED","NOT TESTED","NOT TESTED","NOT TESTED","NOT TESTED","NOT TESTED","NOT TESTED","NOT TESTED","NOT TESTED","NOT TESTED","NOT TESTED","NOT TESTED","NOT TESTED","NOT TESTED","NOT TESTED","NOT TESTED","NOT TESTED","NOT TESTED","NOT TESTED","NOT TESTED","NOT TESTED","NOT TESTED","NOT TESTED","NOT TESTED","NOT TESTED","NOT TESTED","NOT TESTED","NOT TESTED","NOT TESTED","NOT TESTED","NOT TESTED","NOT TESTED","NOT TESTED","NOT TESTED","NOT TESTED","NOT TESTED","NOT TESTED","NOT TESTED","NOT TESTED","NOT TESTED","NOT TESTED","NOT TESTED","NOT TESTED"]
[]
["3.1.6","AAA","Pronunciation","A mechanism is available for identifying specific pronunciation of words where meaning of the words, in context, is ambiguous without knowing the pronunciation.","NOT TESTED","NOT TESTED","NOT TESTED","NOT TESTED","NOT TESTED","NOT TESTED","NOT TESTED","NOT TESTED","NOT TESTED","NOT TESTED","NOT TESTED","NOT TESTED","NOT TESTED","NOT TESTED","NOT TESTED","NOT TESTED","NOT TESTED","NOT TESTED","NOT TESTED","NOT TESTED","NOT TESTED","NOT TESTED","NOT TESTED","NOT TESTED","NOT TESTED","NOT TESTED","NOT TESTED","NOT TESTED","NOT TESTED","NOT TESTED","NOT TESTED","NOT TESTED","NOT TESTED","NOT TESTED","NOT TESTED","NOT TESTED","NOT TESTED","NOT TESTED","NOT TESTED","NOT TESTED","NOT TESTED","NOT TESTED","NOT TESTED","NOT TESTED","NOT TESTED","NOT TESTED","NOT TESTED","NOT TESTED","NOT TESTED","NOT TESTED"]
[]
["3.2.5","AAA","Change on Request","Changes of context are initiated only by user request or a mechanism is available to turn off such changes.","NOT TESTED","NOT TESTED","NOT TESTED","NOT TESTED","NOT TESTED","NOT TESTED","NOT TESTED","NOT TESTED","NOT TESTED","NOT TESTED","NOT TESTED","NOT TESTED","NOT TESTED","NOT TESTED","NOT TESTED","NOT TESTED","NOT TESTED","NOT TESTED","NOT TESTED","NOT TESTED","NOT TESTED","NOT TESTED","NOT TESTED","NOT TESTED","NOT TESTED","NOT TESTED","NOT TESTED","NOT TESTED","NOT TESTED","NOT TESTED","NOT TESTED","NOT TESTED","NOT TESTED","NOT TESTED","NOT TESTED","NOT TESTED","NOT TESTED","NOT TESTED","NOT TESTED","NOT TESTED","NOT TESTED","NOT TESTED","NOT TESTED","NOT TESTED","NOT TESTED","NOT TESTED","NOT TESTED","NOT TESTED","NOT TESTED","NOT TESTED"]
[]
["3.3.5","AAA","Help","Context-sensitive help is available.","NOT TESTED","NOT TESTED","NOT TESTED","NOT TESTED","NOT TESTED","NOT TESTED","NOT TESTED","NOT TESTED","NOT TESTED","NOT TESTED","NOT TESTED","NOT TESTED","NOT TESTED","NOT TESTED","NOT TESTED","NOT TESTED","NOT TESTED","NOT TESTED","NOT TESTED","NOT TESTED","NOT TESTED","NOT TESTED","NOT TESTED","NOT TESTED","NOT TESTED","NOT TESTED","NOT TESTED","NOT TESTED","NOT TESTED","NOT TESTED","NOT TESTED","NOT TESTED","NOT TESTED","NOT TESTED","NOT TESTED","NOT TESTED","NOT TESTED","NOT TESTED","NOT TESTED","NOT TESTED","NOT TESTED","NOT TESTED","NOT TESTED","NOT TESTED","NOT TESTED","NOT TESTED","NOT TESTED","NOT TESTED","NOT TESTED","NOT TESTED"]
[]
["3.3.6","AAA","Error Prevention (All)","For Web pages that require the user to submit information, at least one of the following is true:\n\nReversible: Submissions are reversible.\nChecked: Data entered by the user is checked for input errors and the user is provided an opportunity to correct them.\nConfirmed: A mechanism is available for reviewing, confirming, and correcting information before finalizing the submission.","NOT TESTED","NOT TESTED","NOT TESTED","NOT TESTED","NOT TESTED","NOT TESTED","NOT TESTED","NOT TESTED","NOT TESTED","NOT TESTED","NOT TESTED","NOT TESTED","NOT TESTED","NOT TESTED","NOT TESTED","NOT TESTED","NOT TESTED","NOT TESTED","NOT TESTED","NOT TESTED","NOT TESTED","NOT TESTED","NOT TESTED","NOT TESTED","NOT TESTED","NOT TESTED","NOT TESTED","NOT TESTED","NOT TESTED","NOT TESTED","NOT TESTED","NOT TESTED","NOT TESTED","NOT TESTED","NOT TESTED","NOT TESTED","NOT TESTED","NOT TESTED","NOT TESTED","NOT TESTED","NOT TESTED","NOT TESTED","NOT TESTED","NOT TESTED","NOT TESTED","NOT TESTED","NOT TESTED","NOT TESTED","NOT TESTED","NOT TESTED"]

{"sheet":"Colour Contrast Analysis","index":3,"n_rows":74,"n_cols":74,"rows_kept":74,"cut":false,"hidden":false,"merged":[[0,0,1,21]]}
["\nColour Contrast Analysis for combinations\nof background and foreground colours",null,null,null,null,null,null,null,null,null,null,null,null,null,null,null,null,null,null,null,null,null,null,null,{"$f":"(Statistics!B14)","v":"<head>, header and footer"},{"$f":"(Statistics!B15)","v":"Healthy Schools London"},{"$f":"(Statistics!B16)","v":"About"},{"$f":"(Statistics!B17)","v":"Schools Taking part"},{"$f":"(Statistics!B18)","v":"Aerodrome Primary Academy"},{"$f":"(Statistics!B19)","v":"Newsletter from Healthy Schools London"},{"$f":"(Statistics!B20)","v":"Cranford Primary School, Hounslow"},{"$f":"(Statistics!B21)","v":"Register"},{"$f":"(Statistics!B22)","v":"Register Step 2"},{"$f":"(Statistics!B23)","v":"Register Step 3"},{"$f":"(Statistics!B24)","v":"Register - Create School page"},{"$f":"(Statistics!B25)","v":"Case Studies"},{"$f":"(Statistics!B26)","v":"Films"},{"$f":"(Statistics!B27)","v":"Sign Up"},{"$f":"(Statistics!B28)","v":"User account"},{"$f":"(Statistics!B29)","v":"Apply Gold"},{"$f":"(Statistics!B30)","v":"Page 17"},{"$f":"(Statistics!B31)","v":"Page 18"},{"$f":"(Statistics!B32)","v":"Page 19"},{"$f":"(Statistics!B33)","v":"Page 20"},{"$f":"(Statistics!B34)","v":"Page 21"},{"$f":"(Statistics!B35)","v":"Page 22"},{"$f":"(Statistics!B36)","v":"Page 23"},{"$f":"(Statistics!B37)","v":"Page 24"},{"$f":"(Statistics!B38)","v":"Page 25"},{"$f":"(Statistics!B39)","v":"Page 26"},{"$f":"(Statistics!B40)","v":"Page 27"},{"$f":"(Statistics!B41)","v":"Page 28"},{"$f":"(Statistics!B42)","v":"Page 29"},{"$f":"(Statistics!B43)","v":"Page 30"},{"$f":"(Statistics!B44)","v":"Page 31"},{"$f":"(Statistics!B45)","v":"Page 32"},{"$f":"(Statistics!B46)","v":"Page 33"},{"$f":"(Statistics!B47)","v":"Page 34"},{"$f":"(Statistics!B48)","v":"Page 35"},{"$f":"(Statistics!B49)","v":"Page 36"},{"$f":"(Statistics!B50)","v":"Page 37"},{"$f":"(Statistics!B51)","v":"Page 38"},{"$f":"(Statistics!B52)","v":"Page 39"},{"$f":"(Statistics!B53)","v":"Page 40"},{"$f":"(Statistics!B54)","v":"Page 41"},{"$f":"(Statistics!B55)","v":"Page 42"},{"$f":"(Statistics!B56)","v":"Page 43"},{"$f":"(Statistics!B57)","v":"Page 44"},{"$f":"(Statistics!B58)","v":"Page 45"},{"$f":"(Statistics!B59)","v":"Page 46"},{"$f":"(Statistics!B60)","v":"Page 47"},{"$f":"(Statistics!B61)","v":"Page 48"},{"$f":"(Statistics!B62)","v":"Page 49"},{"$f":"(Statistics!B63)","v":"Page 50"}]
[null,null,null,null,null,null,null,null,null,null,null,null,null,null,null,null,null,null,null,null,null,null,null,null,{"$f":"(Statistics!C14)","v":"N/A"},{"$f":"(Statistics!C15)","v":"https://www.london.gov.uk/what-we-do/health/healthy-schools-london/awards/ "},{"$f":"(Statistics!C16)","v":"https://www.london.gov.uk/what-we-do/health/healthy-schools-london/awards/about "},{"$f":"(Statistics!C17)","v":"https://www.london.gov.uk/what-we-do/health/healthy-schools-london/awards/get-award/schools-taking-part "},{"$f":"(Statistics!C18)","v":"https://www.london.gov.uk/what-we-do/health/healthy-schools-london/awards/get-award/schools-taking-part/aerodrome-primary-academy "},{"$f":"(Statistics!C19)","v":"https://www.london.gov.uk/what-we-do/health/healthy-schools-london/awards/node/1455 "},{"$f":"(Statistics!C20)","v":"https://www.london.gov.uk/what-we-do/health/healthy-schools-london/awards/node/483 "},{"$f":"(Statistics!C21)","v":"https://www.london.gov.uk/what-we-do/health/healthy-schools-london/awards/register "},{"$f":"(Statistics!C22)","v":"https://www.london.gov.uk/what-we-do/health/healthy-schools-london/awards/register/8 "},{"$f":"(Statistics!C23)","v":"https://www.london.gov.uk/what-we-do/health/healthy-schools-london/awards/user/register/433 "},{"$f":"(Statistics!C24)","v":"https://www.london.gov.uk/what-we-do/health/healthy-schools-london/awards/node/add/school-page?u=8878&b=6 "},{"$f":"(Statistics!C25)","v":"https://www.london.gov.uk/what-we-do/health/healthy-schools-london/awards/resources/case-studies "},{"$f":"(Statistics!C26)","v":"https://www.london.gov.uk/what-we-do/health/healthy-schools-london/awards/resources/films "},{"$f":"(Statistics!C27)","v":"https://www.london.gov.uk/what-we-do/health/healthy-schools-london/awards/sign "},{"$f":"(Statistics!C28)","v":"https://www.london.gov.uk/what-we-do/health/healthy-schools-london/awards/user "},{"$f":"(Statistics!C29)","v":"https://www.london.gov.uk/what-we-do/health/healthy-schools-london/awards/get-award/apply-gold"},{"$f":"(Statistics!C30)","v":"URL 17"},{"$f":"(Statistics!C31)","v":"URL 18"},{"$f":"(Statistics!C32)","v":"URL 19"},{"$f":"(Statistics!C33)","v":"URL 20"},{"$f":"(Statistics!C34)","v":"URL 21"},{"$f":"(Statistics!C35)","v":"URL 22"},{"$f":"(Statistics!C36)","v":"URL 23"},{"$f":"(Statistics!C37)","v":"URL 24"},{"$f":"(Statistics!C38)","v":"URL 25"},{"$f":"(Statistics!C39)","v":"URL 26"},{"$f":"(Statistics!C40)","v":"URL 27"},{"$f":"(Statistics!C41)","v":"URL 28"},{"$f":"(Statistics!C42)","v":"URL 29"},{"$f":"(Statistics!C43)","v":"URL 30"},{"$f":"(Statistics!C44)","v":"URL 31"},{"$f":"(Statistics!C45)","v":"URL 32"},{"$f":"(Statistics!C46)","v":"URL 33"},{"$f":"(Statistics!C47)","v":"URL 34"},{"$f":"(Statistics!C48)","v":"URL 35"},{"$f":"(Statistics!C49)","v":"URL 36"},{"$f":"(Statistics!C50)","v":"URL 37"},{"$f":"(Statistics!C51)","v":"URL 38"},{"$f":"(Statistics!C52)","v":"URL 39"},{"$f":"(Statistics!C53)","v":"URL 40"},{"$f":"(Statistics!C54)","v":"URL 41"},{"$f":"(Statistics!C55)","v":"URL 42"},{"$f":"(Statistics!C56)","v":"URL 43"},{"$f":"(Statistics!C57)","v":"URL 44"},{"$f":"(Statistics!C58)","v":"URL 45"},{"$f":"(Statistics!C59)","v":"URL 46"},{"$f":"(Statistics!C60)","v":"URL 47"},{"$f":"(Statistics!C61)","v":"URL 48"},{"$f":"(Statistics!C62)","v":"URL 49"},{"$f":"(Statistics!C63)","v":"URL 50"}]
["Page Area","Image","Background\nColour","Foreground Colour","Large (18pt or 14pt bold)","Valid","R RGB","Fail Only","G RGB","G","B RGB","B","Luminance","Valid","R RGB","R","G RGB","G","B RGB","B","Luminance","Contrast Ratio","All Results","Image / Text / Flash"]
["Heading in header",null,"#000000","#FFFFFF","Yes",{"$f":"IF(LEN(C4)=0,\"\",AND(LEFT(C4,1)=\"#\",LEN(C4)=7))","v":true},{"$f":"HEX2DEC(RIGHT(LEFT(C4,3),2))","v":0},{"$f":"IF(G4/255<= 0.03928,G4/(255*12.92),(((G4/255)+0.055)/1.055)^2.4)","v":0},{"$f":"HEX2DEC(RIGHT(LEFT(C4,5),2))","v":0},{"$f":"IF(I4/255<= 0.03928,I4/(255*12.92),(((I4/255)+0.055)/1.055)^2.4)","v":0},{"$f":"HEX2DEC(RIGHT(C4,2))","v":0},{"$f":"IF(K4/255<= 0.03928,K4/(255*12.92),(((K4/255)+0.055)/1.055)^2.4)","v":0},{"$f":"(0.2126*H4)+(0.7152*J4)+(0.0722*L4)","v":0},{"$f":"IF(LEN(D4)=0,\"\",AND(LEFT(D4,1)=\"#\",LEN(D4)=7))","v":true},{"$f":"HEX2DEC(RIGHT(LEFT(D4,3),2))","v":255},{"$f":"IF(O4/255<= 0.03928,O4/(255*12.92),(((O4/255)+0.055)/1.055)^2.4)","v":1},{"$f":"HEX2DEC(RIGHT(LEFT(D4,5),2))","v":255},{"$f":"IF(Q4/255<= 0.03928,Q4/(255*12.92),(((Q4/255)+0.055)/1.055)^2.4)","v":1},{"$f":"HEX2DEC(RIGHT(D4,2))","v":255},{"$f":"IF(S4/255<= 0.03928,S4/(255*12.92),(((S4/255)+0.055)/1.055)^2.4)","v":1},{"$f":"(0.2126*P4)+(0.7152*R4)+(0.0722*T4)","v":1},{"$f":"IF(OR(F4=\"\",N4=\"\")=TRUE,\"\",IF(OR(F4=FALSE,N4=FALSE)=TRUE,\"ERROR\",ROUND(IF(M4>U4,(M4+0.05)/(U4+0.05),(U4+0.05)/(M4+0.05)),2)))","v":21},{"$f":"IF(V4=\"\",\"\",IF(V4>=Comboboxes!A$5,\"Pass\",IF(AND(V4>=Comboboxes!A$6,E4=\"Yes\"),\"Pass†\",\"Fail\")))","v":"Pass"},"Text","Pass AA","N/A","N/A","N/A","N/A","N/A","N/A","N/A","N/A","N/A","N/A","N/A","N/A","N/A","N/A","N/A"]
["Header link",null,"#EAEAEA","#000000","No",true,234,{"$f":"IF(G5/255<= 0.03928,G5/(255*12.92),(((G5/255)+0.055)/1.055)^2.4)","v":0.82278575439628354},234,{"$f":"IF(I5/255<= 0.03928,I5/(255*12.92),(((I5/255)+0.055)/1.055)^2.4)","v":0.82278575439628354},234,{"$f":"IF(K5/255<= 0.03928,K5/(255*12.92),(((K5/255)+0.055)/1.055)^2.4)","v":0.82278575439628354},{"$f":"(0.2126*H5)+(0.7152*J5)+(0.0722*L5)","v":0.82278575439628343},true,0,{"$f":"IF(O5/255<= 0.03928,O5/(255*12.92),(((O5/255)+0.055)/1.055)^2.4)","v":0},0,{"$f":"IF(Q5/255<= 0.03928,Q5/(255*12.92),(((Q5/255)+0.055)/1.055)^2.4)","v":0},0,{"$f":"IF(S5/255<= 0.03928,S5/(255*12.92),(((S5/255)+0.055)/1.055)^2.4)","v":0},{"$f":"(0.2126*P5)+(0.7152*R5)+(0.0722*T5)","v":0},{"$f":"IF(OR(F5=\"\",N5=\"\")=TRUE,\"\",IF(OR(F5=FALSE,N5=FALSE)=TRUE,\"ERROR\",ROUND(IF(M5>U5,(M5+0.05)/(U5+0.05),(U5+0.05)/(M5+0.05)),2)))","v":17.46},{"$f":"IF(V5=\"\",\"\",IF(V5>=Comboboxes!A$5,\"Pass\",IF(AND(V5>=Comboboxes!A$6,E5=\"Yes\"),\"Pass†\",\"Fail\")))","v":"Pass"},"Text","Pass AA","N/A","N/A","N/A","N/A","N/A","N/A","N/A","N/A","N/A","N/A","N/A","N/A","N/A","N/A","N/A"]
["Header link (Hover)",null,"#E3E3E3","#000000","No",{"$f":"IF(LEN(C6)=0,\"\",AND(LEFT(C6,1)=\"#\",LEN(C6)=7))","v":true},{"$f":"HEX2DEC(RIGHT(LEFT(C6,3),2))","v":227},{"$f":"IF(G6/255<= 0.03928,G6/(255*12.92),(((G6/255)+0.055)/1.055)^2.4)","v":0.7681511472475071},{"$f":"HEX2DEC(RIGHT(LEFT(C6,5),2))","v":227},{"$f":"IF(I6/255<= 0.03928,I6/(255*12.92),(((I6/255)+0.055)/1.055)^2.4)","v":0.7681511472475071},{"$f":"HEX2DEC(RIGHT(C6,2))","v":227},{"$f":"IF(K6/255<= 0.03928,K6/(255*12.92),(((K6/255)+0.055)/1.055)^2.4)","v":0.7681511472475071},{"$f":"(0.2126*H6)+(0.7152*J6)+(0.0722*L6)","v":0.7681511472475071},{"$f":"IF(LEN(D6)=0,\"\",AND(LEFT(D6,1)=\"#\",LEN(D6)=7))","v":true},{"$f":"HEX2DEC(RIGHT(LEFT(D6,3),2))","v":0},{"$f":"IF(O6/255<= 0.03928,O6/(255*12.92),(((O6/255)+0.055)/1.055)^2.4)","v":0},{"$f":"HEX2DEC(RIGHT(LEFT(D6,5),2))","v":0},{"$f":"IF(Q6/255<= 0.03928,Q6/(255*12.92),(((Q6/255)+0.055)/1.055)^2.4)","v":0},{"$f":"HEX2DEC(RIGHT(D6,2))","v":0},{"$f":"IF(S6/255<= 0.03928,S6/(255*12.92),(((S6/255)+0.055)/1.055)^2.4)","v":0},{"$f":"(0.2126*P6)+(0.7152*R6)+(0.0722*T6)","v":0},16.36,{"$f":"IF(V6=\"\",\"\",IF(V6>=Comboboxes!A$5,\"Pass\",IF(AND(V6>=Comboboxes!A$6,E6=\"Yes\"),\"Pass†\",\"Fail\")))","v":"Pass"},"Text","Pass AA","N/A","N/A","N/A","N/A","N/A","N/A","N/A","N/A","N/A","N/A","N/A","N/A","N/A","N/A","N/A"]
["Text in input box",null,"#2A3135","#FFFFFF","No",true,42,2.3153366178110407E-2,49,3.0713443732993638E-2,53,3.5601314875020329E-2,2.945907554127979E-2,true,255,1,255,1,255,1,1,13.21,{"$f":"IF(V7=\"\",\"\",IF(V7>=Comboboxes!A$5,\"Pass\",IF(AND(V7>=Comboboxes!A$6,E7=\"Yes\"),\"Pass†\",\"Fail\")))","v":"Pass"},"Text","Pass AA","N/A","N/A","N/A","N/A","N/A","N/A","N/A","N/A","N/A","N/A","N/A","N/A","N/A","N/A","N/A"]
["Footer link (normal, hover and focus)",null,"#353D42","#FFFFFF","No",true,53,3.5601314875020329E-2,61,4.6665086336880102E-2,66,5.4480276442442369E-2,4.4877185249710308E-2,true,255,1,255,1,255,1,1,11.07,{"$f":"IF(V8=\"\",\"\",IF(V8>=Comboboxes!A$5,\"Pass\",IF(AND(V8>=Comboboxes!A$6,E8=\"Yes\"),\"Pass†\",\"Fail\")))","v":"Pass"},"Text","Pass AA","N/A","N/A","N/A","N/A","N/A","N/A","N/A","N/A","N/A","N/A","N/A","N/A","N/A","N/A","N/A"]
["Footer text",null,"#353D42","#FFFFFF","No",true,53,3.5601314875020329E-2,61,4.6665086336880102E-2,66,5.4480276442442369E-2,4.4877185249710308E-2,true,255,1,255,1,255,1,1,11.07,{"$f":"IF(V9=\"\",\"\",IF(V9>=Comboboxes!A$5,\"Pass\",IF(AND(V9>=Comboboxes!A$6,E9=\"Yes\"),\"Pass†\",\"Fail\")))","v":"Pass"},"Text","Pass AA","N/A","N/A","N/A","N/A","N/A","N/A","N/A","N/A","N/A","N/A","N/A","N/A","N/A","N/A","N/A"]
["Button",null,"#9E0059","#FFFFFF","No",true,158,0.34191442490866097,0,0,89,9.9898728247113905E-2,7.9903694915022944E-2,true,255,1,255,1,255,1,1,{"$f":"IF(OR(F10=\"\",N10=\"\")=TRUE,\"\",IF(OR(F10=FALSE,N10=FALSE)=TRUE,\"ERROR\",ROUND(IF(M10>U10,(M10+0.05)/(U10+0.05),(U10+0.05)/(M10+0.05)),2)))","v":8.08},{"$f":"IF(V10=\"\",\"\",IF(V10>=Comboboxes!A$5,\"Pass\",IF(AND(V10>=Comboboxes!A$6,E10=\"Yes\"),\"Pass†\",\"Fail\")))","v":"Pass"},"Text","Pass AA","N/A","Pass AA","N/A","Pass AA","N/A","Pass AA","Pass AA","Pass AA","Pass AA","Pass AA","Pass AA","Pass AA","N/A","N/A","Pass AA"]
["Heading Text",null,"#EE266D","#FFFFFF","No",{"$f":"IF(LEN(C11)=0,\"\",AND(LEFT(C11,1)=\"#\",LEN(C11)=7))","v":true},{"$f":"HEX2DEC(RIGHT(LEFT(C11,3),2))","v":238},{"$f":"IF(G11/255<= 0.03928,G11/(255*12.92),(((G11/255)+0.055)/1.055)^2.4)","v":0.85499260812423383},{"$f":"HEX2DEC(RIGHT(LEFT(C11,5),2))","v":38},{"$f":"IF(I11/255<= 0.03928,I11/(255*12.92),(((I11/255)+0.055)/1.055)^2.4)","v":1.9382360956935723E-2},{"$f":"HEX2DEC(RIGHT(C11,2))","v":109},{"$f":"IF(K11/255<= 0.03928,K11/(255*12.92),(((K11/255)+0.055)/1.055)^2.4)","v":0.15292615199615014},{"$f":"(0.2126*H11)+(0.7152*J11)+(0.0722*L11)","v":0.2066749612177346},{"$f":"IF(LEN(D11)=0,\"\",AND(LEFT(D11,1)=\"#\",LEN(D11)=7))","v":true},{"$f":"HEX2DEC(RIGHT(LEFT(D11,3),2))","v":255},{"$f":"IF(O11/255<= 0.03928,O11/(255*12.92),(((O11/255)+0.055)/1.055)^2.4)","v":1},{"$f":"HEX2DEC(RIGHT(LEFT(D11,5),2))","v":255},{"$f":"IF(Q11/255<= 0.03928,Q11/(255*12.92),(((Q11/255)+0.055)/1.055)^2.4)","v":1},{"$f":"HEX2DEC(RIGHT(D11,2))","v":255},{"$f":"IF(S11/255<= 0.03928,S11/(255*12.92),(((S11/255)+0.055)/1.055)^2.4)","v":1},{"$f":"(0.2126*P11)+(0.7152*R11)+(0.0722*T11)","v":1},{"$f":"IF(OR(F11=\"\",N11=\"\")=TRUE,\"\",IF(OR(F11=FALSE,N11=FALSE)=TRUE,\"ERROR\",ROUND(IF(M11>U11,(M11+0.05)/(U11+0.05),(U11+0.05)/(M11+0.05)),2)))","v":4.09},{"$f":"IF(V11=\"\",\"\",IF(V11>=Comboboxes!A$5,\"Pass\",IF(AND(V11>=Comboboxes!A$6,E11=\"Yes\"),\"Pass†\",\"Fail\")))","v":"Fail"},"Text","Fail AA","N/A","N/A","N/A","N/A","N/A","N/A","N/A","N/A","N/A","N/A","N/A","N/A","N/A","N/A","N/A"]
["Breadcrumb link",null,"#F5F5F5","#9E0063","No",true,245,0.9130986517934192,245,0.9130986517934192,245,0.9130986517934192,0.91309865179341909,true,158,0.34191442490866097,0,0,99,0.12477181756095049,8.1699531963481953E-2,7.31,{"$f":"IF(V12=\"\",\"\",IF(V12>=Comboboxes!A$5,\"Pass\",IF(AND(V12>=Comboboxes!A$6,E12=\"Yes\"),\"Pass†\",\"Fail\")))","v":"Pass"},"Text","N/A","Pass AA","Pass AA","Pass AA","Pass AA","N/A","Pass AA","Pass AA","Pass AA","Pass AA","Pass AA","Pass AA","Pass AA","Pass AA","Pass AA","Pass AA"]
["Breadcrumb link (Hover and focus)",null,"#F5F5F5","#6E003E","No",true,245,0.9130986517934192,245,0.9130986517934192,245,0.9130986517934192,0.91309865179341909,true,110,0.15592646370782737,0,0,62,4.8171824226889426E-2,3.6627971893465512E-2,11.12,{"$f":"IF(V13=\"\",\"\",IF(V13>=Comboboxes!A$5,\"Pass\",IF(AND(V13>=Comboboxes!A$6,E13=\"Yes\"),\"Pass†\",\"Fail\")))","v":"Pass"},"Text","N/A","Pass AA","Pass AA","Pass AA","Pass AA","N/A","Pass AA","Pass AA","Pass AA","Pass AA","Pass AA","Pass AA","Pass AA","Pass AA","Pass AA","Pass AA"]
["Body text",null,"#9E0059","#FFFFFF","No",true,158,0.34191442490866097,0,0,89,9.9898728247113905E-2,7.9903694915022944E-2,true,255,1,255,1,255,1,1,8.08,{"$f":"IF(V14=\"\",\"\",IF(V14>=Comboboxes!A$5,\"Pass\",IF(AND(V14>=Comboboxes!A$6,E14=\"Yes\"),\"Pass†\",\"Fail\")))","v":"Pass"},"Text","N/A","Pass AA","N/A","Pass AA","Pass AA","N/A","Pass AA","N/A","Pass AA","Pass AA","Pass AA","N/A","N/A","N/A","N/A","N/A"]
["Heading Text",null,"#9E0059","#F5F5F5","No",true,158,0.34191442490866097,0,0,89,9.9898728247113905E-2,7.9903694915022944E-2,true,245,0.9130986517934192,245,0.9130986517934192,245,0.9130986517934192,0.91309865179341909,7.41,{"$f":"IF(V15=\"\",\"\",IF(V15>=Comboboxes!A$5,\"Pass\",IF(AND(V15>=Comboboxes!A$6,E15=\"Yes\"),\"Pass†\",\"Fail\")))","v":"Pass"},"Text","N/A","Pass AA","Pass AA","Pass AA","Pass AA","N/A","Pass AA","N/A","Pass AA","Pass AA","Pass AA","Pass AA","N/A","N/A","Pass AA","N/A"]
["Body text",null,"#FFFFFF","#000000","No",true,255,1,255,1,255,1,1,true,0,0,0,0,0,0,0,21,{"$f":"IF(V16=\"\",\"\",IF(V16>=Comboboxes!A$5,\"Pass\",IF(AND(V16>=Comboboxes!A$6,E16=\"Yes\"),\"Pass†\",\"Fail\")))","v":"Pass"},"Text","N/A","Pass AA","Pass AA","Pass AA","Pass AA","Pass AA","Pass AA","Pass AA","Pass AA","Pass AA","Pass AA","Pass AA","Pass AA","Pass AA","Pass AA","Pass AA"]
["Heading Text",null,"#FFFFFF","#9E0059","No",true,255,1,255,1,255,1,1,true,158,0.34191442490866097,0,0,89,9.9898728247113905E-2,7.9903694915022944E-2,8.08,{"$f":"IF(V17=\"\",\"\",IF(V17>=Comboboxes!A$5,\"Pass\",IF(AND(V17>=Comboboxes!A$6,E17=\"Yes\"),\"Pass†\",\"Fail\")))","v":"Pass"},"Text","N/A","Pass AA","Pass AA","Pass AA","Pass AA","N/A","Pass AA","N/A","N/A","Pass AA","N/A","Pass AA","Pass AA","Pass AA","Pass AA","Pass AA"]
["Dropdown list text",null,"#FFFFFF","#9E0059","No",true,255,1,255,1,255,1,1,true,158,0.34191442490866097,0,0,89,9.9898728247113905E-2,7.9903694915022944E-2,8.08,{"$f":"IF(V18=\"\",\"\",IF(V18>=Comboboxes!A$5,\"Pass\",IF(AND(V18>=Comboboxes!A$6,E18=\"Yes\"),\"Pass†\",\"Fail\")))","v":"Pass"},"Text","N/A","N/A","N/A","Pass AA","N/A","N/A","N/A","N/A","N/A","N/A","N/A","N/A","N/A","N/A","N/A","N/A"]
["Link (Visited)",null,"#FFFFFF","#000000","No",true,255,1,255,1,255,1,1,true,0,0,0,0,0,0,0,21,{"$f":"IF(V19=\"\",\"\",IF(V19>=Comboboxes!A$5,\"Pass\",IF(AND(V19>=Comboboxes!A$6,E19=\"Yes\"),\"Pass†\",\"Fail\")))","v":"Pass"},"Text","N/A","N/A","N/A","Pass AA","N/A","N/A","N/A","N/A","N/A","N/A","N/A","Pass AA","N/A","N/A","N/A","N/A"]
["Link",null,"#FFFFFF","#9E0063","No",true,255,1,255,1,255,1,1,true,158,0.34191442490866097,0,0,99,0.12477181756095049,8.1699531963481953E-2,7.97,{"$f":"IF(V20=\"\",\"\",IF(V20>=Comboboxes!A$5,\"Pass\",IF(AND(V20>=Comboboxes!A$6,E20=\"Yes\"),\"Pass†\",\"Fail\")))","v":"Pass"},"Text","N/A","N/A","N/A","Pass AA","N/A","N/A","N/A","N/A","N/A","N/A","N/A","Pass AA","N/A","N/A","N/A","N/A"]
["Link Hover",null,"#FFFFFF","#85004B","No",true,255,1,255,1,255,1,1,true,133,0.23455058216100524,0,0,75,7.0360095696595876E-2,5.4945452676723947E-2,10.01,{"$f":"IF(V21=\"\",\"\",IF(V21>=Comboboxes!A$5,\"Pass\",IF(AND(V21>=Comboboxes!A$6,E21=\"Yes\"),\"Pass†\",\"Fail\")))","v":"Pass"},"Text","N/A","N/A","N/A","Pass AA","N/A","N/A","N/A","N/A","N/A","N/A","N/A","Pass AA","N/A","N/A","N/A","N/A"]
["Link Focus",null,"#FFFFFF","#6E003E","No",true,255,1,255,1,255,1,1,true,110,0.15592646370782737,0,0,62,4.8171824226889426E-2,3.6627971893465512E-2,12.12,{"$f":"IF(V22=\"\",\"\",IF(V22>=Comboboxes!A$5,\"Pass\",IF(AND(V22>=Comboboxes!A$6,E22=\"Yes\"),\"Pass†\",\"Fail\")))","v":"Pass"},"Text","N/A","N/A","N/A","Pass AA","N/A","N/A","N/A","N/A","N/A","N/A","N/A","Pass AA","N/A","N/A","N/A","N/A"]
["Button",null,"#353D42","#FFFFFF","No",true,53,3.5601314875020329E-2,61,4.6665086336880102E-2,66,5.4480276442442369E-2,4.4877185249710308E-2,true,255,1,255,1,255,1,1,11.07,{"$f":"IF(V23=\"\",\"\",IF(V23>=Comboboxes!A$5,\"Pass\",IF(AND(V23>=Comboboxes!A$6,E23=\"Yes\"),\"Pass†\",\"Fail\")))","v":"Pass"},"Text","N/A","N/A","N/A","Pass AA","N/A","N/A","N/A","Pass AA","Pass AA","N/A","N/A","Pass AA","N/A","Pass AA","N/A","Pass AA"]
["Buttons (hover and focus)",null,"#2A3135","#FFFFFF","No",true,42,2.3153366178110407E-2,49,3.0713443732993638E-2,53,3.5601314875020329E-2,2.945907554127979E-2,true,255,1,255,1,255,1,1,13.21,{"$f":"IF(V24=\"\",\"\",IF(V24>=Comboboxes!A$5,\"Pass\",IF(AND(V24>=Comboboxes!A$6,E24=\"Yes\"),\"Pass†\",\"Fail\")))","v":"Pass"},"Text","N/A","N/A","N/A","Pass AA","N/A","N/A","N/A","Pass AA","Pass AA","N/A","N/A","Pass AA","N/A","Pass AA","N/A","Pass AA"]
["Input box text",null,"#F5F5F5","#ACAEAF","No",true,245,0.9130986517934192,245,0.9130986517934192,245,0.9130986517934192,0.91309865179341909,true,172,0.41254261348390375,174,0.42326766998607168,175,0.42869049661390662,0.42137905105624046,2.04,{"$f":"IF(V25=\"\",\"\",IF(V25>=Comboboxes!A$5,\"Pass\",IF(AND(V25>=Comboboxes!A$6,E25=\"Yes\"),\"Pass†\",\"Fail\")))","v":"Fail"},"Text","N/A","N/A","N/A","Fail AA","N/A","N/A","N/A","N/A","N/A","Fail AA","N/A","N/A","Fail AA","N/A","N/A","Fail AA"]
["Heading text",null,"#FFFFFF","#000000","Yes",true,255,1,255,1,255,1,1,true,0,0,0,0,0,0,0,21,{"$f":"IF(V26=\"\",\"\",IF(V26>=Comboboxes!A$5,\"Pass\",IF(AND(V26>=Comboboxes!A$6,E26=\"Yes\"),\"Pass†\",\"Fail\")))","v":"Pass"},"Text","N/A","N/A","N/A","N/A","N/A","Pass AA","N/A","N/A","N/A","Pass AA","N/A","N/A","N/A","N/A","N/A","N/A"]
["Link text",null,"#FFFFFF","#0000EE","No",true,255,1,255,1,255,1,1,true,0,0,0,0,238,0.85499260812423383,6.1730466306569684E-2,9.4,{"$f":"IF(V27=\"\",\"\",IF(V27>=Comboboxes!A$5,\"Pass\",IF(AND(V27>=Comboboxes!A$6,E27=\"Yes\"),\"Pass†\",\"Fail\")))","v":"Pass"},"Text","N/A","N/A","N/A","N/A","N/A","Pass AA","N/A","N/A","N/A","N/A","N/A","N/A","N/A","N/A","N/A","N/A"]
["Link text (Hover and focus)",null,"#FFFFFF","#BF3000","No",true,255,1,255,1,255,1,1,true,191,0.5209955732043543,48,2.9556834437808807E-2,0,0,0.13190270685316657,5.77,{"$f":"IF(V28=\"\",\"\",IF(V28>=Comboboxes!A$5,\"Pass\",IF(AND(V28>=Comboboxes!A$6,E28=\"Yes\"),\"Pass†\",\"Fail\")))","v":"Pass"},"Text","N/A","N/A","N/A","N/A","N/A","Pass AA","N/A","N/A","N/A","N/A","N/A","N/A","N/A","N/A","N/A","N/A"]
["Body text",null,"#1C1C1C","#ACAC8C","No",true,28,1.1612245179743888E-2,28,1.1612245179743888E-2,28,1.1612245179743888E-2,1.1612245179743888E-2,true,172,0.41254261348390375,172,0.41254261348390375,140,0.26225065752969623,0.40169153426400994,7.33,{"$f":"IF(V29=\"\",\"\",IF(V29>=Comboboxes!A$5,\"Pass\",IF(AND(V29>=Comboboxes!A$6,E29=\"Yes\"),\"Pass†\",\"Fail\")))","v":"Pass"},"Text","N/A","N/A","N/A","N/A","N/A","Pass AA","N/A","N/A","N/A","N/A","N/A","N/A","N/A","N/A","N/A","N/A"]
["Link text",null,"#1C1C1C","#BF3000","No",true,28,1.1612245179743888E-2,28,1.1612245179743888E-2,28,1.1612245179743888E-2,1.1612245179743888E-2,true,191,0.5209955732043543,48,2.9556834437808807E-2,0,0,0.13190270685316657,2.95,{"$f":"IF(V30=\"\",\"\",IF(V30>=Comboboxes!A$5,\"Pass\",IF(AND(V30>=Comboboxes!A$6,E30=\"Yes\"),\"Pass†\",\"Fail\")))","v":"Fail"},"Text","N/A","N/A","N/A","N/A","N/A","Fail AA","N/A","N/A","N/A","N/A","N/A","N/A","N/A","N/A","N/A","N/A"]
["Logo text",null,"#BF3000","#4F4F4F","No",true,191,0.5209955732043543,48,2.9556834437808807E-2,0,0,{"$f":"(0.2126*H31)+(0.7152*J31)+(0.0722*L31)","v":0.13190270685316657},true,79,7.8187421805186369E-2,79,7.8187421805186369E-2,79,7.8187421805186369E-2,{"$f":"(0.2126*P31)+(0.7152*R31)+(0.0722*T31)","v":7.8187421805186369E-2},1.42,{"$f":"IF(V31=\"\",\"\",IF(V31>=Comboboxes!A$5,\"Pass\",IF(AND(V31>=Comboboxes!A$6,E31=\"Yes\"),\"Pass†\",\"Fail\")))","v":"Fail"},"Text","N/A","N/A","N/A","N/A","N/A","Fail AA","N/A","N/A","N/A","N/A","N/A","N/A","N/A","N/A","N/A","N/A"]
["Drop down list",null,"#352D42","#FFFFFF","No",true,53,3.5601314875020329E-2,45,2.6241221894849898E-2,66,5.4480276442442369E-2,3.0270037400770305E-2,true,255,1,255,1,255,1,1,13.08,{"$f":"IF(V32=\"\",\"\",IF(V32>=Comboboxes!A$5,\"Pass\",IF(AND(V32>=Comboboxes!A$6,E32=\"Yes\"),\"Pass†\",\"Fail\")))","v":"Pass"},"Text","N/A","N/A","N/A","N/A","N/A","N/A","N/A","Pass AA","N/A","Pass AA","Pass AA","Pass AA","N/A","N/A","N/A","Pass AA"]
["Input box text",null,"#FFFFFF","#000000","No",true,255,1,255,1,255,1,1,true,0,0,0,0,0,0,0,21,{"$f":"IF(V33=\"\",\"\",IF(V33>=Comboboxes!A$5,\"Pass\",IF(AND(V33>=Comboboxes!A$6,E33=\"Yes\"),\"Pass†\",\"Fail\")))","v":"Pass"},"Text","N/A","N/A","N/A","N/A","N/A","N/A","N/A","N/A","Pass AA","Pass AA","Pass AA","N/A","N/A","N/A","N/A","Pass AA"]
["Button (unavailable state)",null,"#777777","#FFFFFF","No",true,119,0.18447499450044097,119,0.18447499450044097,119,0.18447499450044097,0.18447499450044097,true,255,1,255,1,255,1,1,4.4800000000000004,{"$f":"IF(V34=\"\",\"\",IF(V34>=Comboboxes!A$5,\"Pass\",IF(AND(V34>=Comboboxes!A$6,E34=\"Yes\"),\"Pass†\",\"Fail\")))","v":"Fail"},"Text","N/A","N/A","N/A","N/A","N/A","N/A","N/A","N/A","Fail AA","N/A","N/A","N/A","N/A","N/A","N/A","N/A"]
["Validation text",null,"#FEF5F1","#000000","No",true,254,0.99110209711382979,245,0.9130986517934192,241,0.87962239688783173,0.92726519866435508,true,0,0,0,0,0,0,0,19.55,{"$f":"IF(V35=\"\",\"\",IF(V35>=Comboboxes!A$5,\"Pass\",IF(AND(V35>=Comboboxes!A$6,E35=\"Yes\"),\"Pass†\",\"Fail\")))","v":"Pass"},"Text","N/A","N/A","N/A","N/A","N/A","N/A","N/A","N/A","N/A","Pass AA","Pass AA","N/A","N/A","N/A","N/A","N/A"]
["Validation text",null,"#F8FFF0","#234600","No",true,248,0.938685728457888,255,1,240,0.87136711919879717,0.97767729187630015,true,35,1.6807375752887391E-2,70,6.1246054231617601E-2,0,0,4.7376426071516764E-2,10.55,{"$f":"IF(V36=\"\",\"\",IF(V36>=Comboboxes!A$5,\"Pass\",IF(AND(V36>=Comboboxes!A$6,E36=\"Yes\"),\"Pass†\",\"Fail\")))","v":"Pass"},"Text","N/A","N/A","N/A","N/A","N/A","N/A","N/A","N/A","N/A","N/A","Pass AA","N/A","N/A","N/A","N/A","N/A"]
["Captcha validation text",null,"#F9F9F9","#FF0000","No",true,249,0.94730653673319987,249,0.94730653673319987,249,0.94730653673319987,0.94730653673319976,true,255,1,0,0,0,0,0.21260000000000001,3.8,{"$f":"IF(V37=\"\",\"\",IF(V37>=Comboboxes!A$5,\"Pass\",IF(AND(V37>=Comboboxes!A$6,E37=\"Yes\"),\"Pass†\",\"Fail\")))","v":"Fail"},"Text","N/A","N/A","N/A","N/A","N/A","N/A","N/A","N/A","N/A","N/A","N/A","N/A","N/A","Fail AA","N/A","N/A"]
["Captcha label text",null,"#F9F9F9","#000000","No",true,249,0.94730653673319987,249,0.94730653673319987,249,0.94730653673319987,0.94730653673319976,true,0,0,0,0,0,0,0,19.95,{"$f":"IF(V38=\"\",\"\",IF(V38>=Comboboxes!A$5,\"Pass\",IF(AND(V38>=Comboboxes!A$6,E38=\"Yes\"),\"Pass†\",\"Fail\")))","v":"Pass"},"Text","N/A","N/A","N/A","N/A","N/A","N/A","N/A","N/A","N/A","N/A","N/A","N/A","N/A","Pass AA","N/A","N/A"]
["Link text",null,"#FFFFFF","#9E0059","No",true,255,1,255,1,255,1,1,true,158,0.34191442490866097,0,0,89,9.9898728247113905E-2,7.9903694915022944E-2,8.08,{"$f":"IF(V39=\"\",\"\",IF(V39>=Comboboxes!A$5,\"Pass\",IF(AND(V39>=Comboboxes!A$6,E39=\"Yes\"),\"Pass†\",\"Fail\")))","v":"Pass"},"Text","N/A","N/A","N/A","N/A","N/A","N/A","N/A","N/A","N/A","N/A","N/A","N/A","N/A","Pass AA","N/A","N/A"]
["Link text (Hover and Focus)",null,"#FFFFFF","#6E003E","No",true,255,1,255,1,255,1,1,true,110,0.15592646370782737,0,0,62,4.8171824226889426E-2,3.6627971893465512E-2,12.12,{"$f":"IF(V40=\"\",\"\",IF(V40>=Comboboxes!A$5,\"Pass\",IF(AND(V40>=Comboboxes!A$6,E40=\"Yes\"),\"Pass†\",\"Fail\")))","v":"Pass"},"Text","N/A","N/A","N/A","N/A","N/A","N/A","N/A","N/A","N/A","N/A","N/A","N/A","N/A","Pass AA","N/A","N/A"]
["Asterix sign",null,"#FFFFFF","#FF0000","No",true,255,1,255,1,255,1,1,true,255,1,0,0,0,0,0.21260000000000001,4,{"$f":"IF(V41=\"\",\"\",IF(V41>=Comboboxes!A$5,\"Pass\",IF(AND(V41>=Comboboxes!A$6,E41=\"Yes\"),\"Pass†\",\"Fail\")))","v":"Fail"},"Text","N/A","N/A","N/A","N/A","N/A","N/A","N/A","N/A","N/A","N/A","Fail AA","N/A","N/A","Fail AA","Fail AA","Fail AA"]
["Validation text",null,"#FFFCE5","#000000","No",true,255,1,252,0.97344529039841254,229,0.78353779152619352,0.96537950024113584,true,0,0,0,0,0,0,0,20.309999999999999,{"$f":"IF(V42=\"\",\"\",IF(V42>=Comboboxes!A$5,\"Pass\",IF(AND(V42>=Comboboxes!A$6,E42=\"Yes\"),\"Pass†\",\"Fail\")))","v":"Pass"},"Text","N/A","N/A","N/A","N/A","N/A","N/A","N/A","N/A","N/A","N/A","N/A","N/A","N/A","N/A","Pass AA","N/A"]
["Validation link text",null,"#FFFCE5","#9E0059","No",{"$f":"IF(LEN(C43)=0,\"\",AND(LEFT(C43,1)=\"#\",LEN(C43)=7))","v":true},{"$f":"HEX2DEC(RIGHT(LEFT(C43,3),2))","v":255},1,{"$f":"HEX2DEC(RIGHT(LEFT(C43,5),2))","v":252},0.97344529039841254,{"$f":"HEX2DEC(RIGHT(C43,2))","v":229},0.78353779152619352,{"$f":"(0.2126*H43)+(0.7152*J43)+(0.0722*L43)","v":0.96537950024113584},{"$f":"IF(LEN(D43)=0,\"\",AND(LEFT(D43,1)=\"#\",LEN(D43)=7))","v":true},{"$f":"HEX2DEC(RIGHT(LEFT(D43,3),2))","v":158},0.34191442490866097,{"$f":"HEX2DEC(RIGHT(LEFT(D43,5),2))","v":0},0,{"$f":"HEX2DEC(RIGHT(D43,2))","v":89},9.9898728247113905E-2,{"$f":"(0.2126*P43)+(0.7152*R43)+(0.0722*T43)","v":7.9903694915022944E-2},{"$f":"IF(OR(F43=\"\",N43=\"\")=TRUE,\"\",IF(OR(F43=FALSE,N43=FALSE)=TRUE,\"ERROR\",ROUND(IF(M43>U43,(M43+0.05)/(U43+0.05),(U43+0.05)/(M43+0.05)),2)))","v":7.82},{"$f":"IF(V43=\"\",\"\",IF(V43>=Comboboxes!A$5,\"Pass\",IF(AND(V43>=Comboboxes!A$6,E43=\"Yes\"),\"Pass†\",\"Fail\")))","v":"Pass"},"Text","N/A","N/A","N/A","N/A","N/A","N/A","N/A","N/A","N/A","N/A","N/A","N/A","N/A","N/A","Pass AA","N/A"]
["Validation link text (Hover and Focus)",null,"#FFFCE5","#6E003E","No",true,255,1,252,0.97344529039841254,229,0.78353779152619352,0.96537950024113584,true,110,0.15592646370782737,0,0,62,4.8171824226889426E-2,3.6627971893465512E-2,11.72,{"$f":"IF(V44=\"\",\"\",IF(V44>=Comboboxes!A$5,\"Pass\",IF(AND(V44>=Comboboxes!A$6,E44=\"Yes\"),\"Pass†\",\"Fail\")))","v":"Pass"},"Text","N/A","N/A","N/A","N/A","N/A","N/A","N/A","N/A","N/A","N/A","N/A","N/A","N/A","N/A","Pass AA","N/A"]
[null,null,null,null,null,"",0,0,0,0,0,0,0,"",0,0,0,0,0,0,0,"",{"$f":"IF(V45=\"\",\"\",IF(V45>=Comboboxes!A$5,\"Pass\",IF(AND(V45>=Comboboxes!A$6,E45=\"Yes\"),\"Pass†\",\"Fail\")))","v":""}]
[null,null,null,null,null,"",0,0,0,0,0,0,0,"",0,0,0,0,0,0,0,"",{"$f":"IF(V46=\"\",\"\",IF(V46>=Comboboxes!A$5,\"Pass\",IF(AND(V46>=Comboboxes!A$6,E46=\"Yes\"),\"Pass†\",\"Fail\")))","v":""}]
[null,null,null,null,null,"",0,0,0,0,0,0,0,"",0,0,0,0,0,0,0,"",{"$f":"IF(V47=\"\",\"\",IF(V47>=Comboboxes!A$5,\"Pass\",IF(AND(V47>=Comboboxes!A$6,E47=\"Yes\"),\"Pass†\",\"Fail\")))","v":""}]
[null,null,null,null,null,"",0,0,0,0,0,0,0,"",0,0,0,0,0,0,0,"",{"$f":"IF(V48=\"\",\"\",IF(V48>=Comboboxes!A$5,\"Pass\",IF(AND(V48>=Comboboxes!A$6,E48=\"Yes\"),\"Pass†\",\"Fail\")))","v":""}]
[null,null,null,null,null,"",0,0,0,0,0,0,0,"",0,0,0,0,0,0,0,"",{"$f":"IF(V49=\"\",\"\",IF(V49>=Comboboxes!A$5,\"Pass\",IF(AND(V49>=Comboboxes!A$6,E49=\"Yes\"),\"Pass†\",\"Fail\")))","v":""}]
[null,null,null,null,null,"",0,0,0,0,0,0,0,"",0,0,0,0,0,0,0,"",{"$f":"IF(V50=\"\",\"\",IF(V50>=Comboboxes!A$5,\"Pass\",IF(AND(V50>=Comboboxes!A$6,E50=\"Yes\"),\"Pass†\",\"Fail\")))","v":""}]
[null,null,null,null,null,"",0,0,0,0,0,0,0,"",0,0,0,0,0,0,0,"",{"$f":"IF(V51=\"\",\"\",IF(V51>=Comboboxes!A$5,\"Pass\",IF(AND(V51>=Comboboxes!A$6,E51=\"Yes\"),\"Pass†\",\"Fail\")))","v":""}]
[null,null,null,null,null,"",0,0,0,0,0,0,0,"",0,0,0,0,0,0,0,"",{"$f":"IF(V52=\"\",\"\",IF(V52>=Comboboxes!A$5,\"Pass\",IF(AND(V52>=Comboboxes!A$6,E52=\"Yes\"),\"Pass†\",\"Fail\")))","v":""}]
[null,null,null,null,null,"",0,0,0,0,0,0,0,"",0,0,0,0,0,0,0,"",{"$f":"IF(V53=\"\",\"\",IF(V53>=Comboboxes!A$5,\"Pass\",IF(AND(V53>=Comboboxes!A$6,E53=\"Yes\"),\"Pass†\",\"Fail\")))","v":""}]
[null,null,null,null,null,"",0,0,0,0,0,0,0,"",0,0,0,0,0,0,0,"",{"$f":"IF(V54=\"\",\"\",IF(V54>=Comboboxes!A$5,\"Pass\",IF(AND(V54>=Comboboxes!A$6,E54=\"Yes\"),\"Pass†\",\"Fail\")))","v":""}]
[null,null,null,null,null,"",0,0,0,0,0,0,0,"",0,0,0,0,0,0,0,"",{"$f":"IF(V55=\"\",\"\",IF(V55>=Comboboxes!A$5,\"Pass\",IF(AND(V55>=Comboboxes!A$6,E55=\"Yes\"),\"Pass†\",\"Fail\")))","v":""}]
[null,null,null,null,null,"",0,0,0,0,0,0,0,"",0,0,0,0,0,0,0,"",{"$f":"IF(V56=\"\",\"\",IF(V56>=Comboboxes!A$5,\"Pass\",IF(AND(V56>=Comboboxes!A$6,E56=\"Yes\"),\"Pass†\",\"Fail\")))","v":""}]
[null,null,null,null,null,"",0,0,0,0,0,0,0,"",0,0,0,0,0,0,0,"",{"$f":"IF(V57=\"\",\"\",IF(V57>=Comboboxes!A$5,\"Pass\",IF(AND(V57>=Comboboxes!A$6,E57=\"Yes\"),\"Pass†\",\"Fail\")))","v":""}]
[null,null,null,null,null,"",0,0,0,0,0,0,0,"",0,0,0,0,0,0,0,"",{"$f":"IF(V58=\"\",\"\",IF(V58>=Comboboxes!A$5,\"Pass\",IF(AND(V58>=Comboboxes!A$6,E58=\"Yes\"),\"Pass†\",\"Fail\")))","v":""}]
[null,null,null,null,null,"",0,0,0,0,0,0,0,"",0,0,0,0,0,0,0,"",{"$f":"IF(V59=\"\",\"\",IF(V59>=Comboboxes!A$5,\"Pass\",IF(AND(V59>=Comboboxes!A$6,E59=\"Yes\"),\"Pass†\",\"Fail\")))","v":""}]
[null,null,null,null,null,"",0,0,0,0,0,0,0,"",0,0,0,0,0,0,0,"",{"$f":"IF(V60=\"\",\"\",IF(V60>=Comboboxes!A$5,\"Pass\",IF(AND(V60>=Comboboxes!A$6,E60=\"Yes\"),\"Pass†\",\"Fail\")))","v":""}]
[null,null,null,null,null,"",0,0,0,0,0,0,0,"",0,0,0,0,0,0,0,"",{"$f":"IF(V61=\"\",\"\",IF(V61>=Comboboxes!A$5,\"Pass\",IF(AND(V61>=Comboboxes!A$6,E61=\"Yes\"),\"Pass†\",\"Fail\")))","v":""}]
[null,null,null,null,null,"",0,0,0,0,0,0,0,"",0,0,0,0,0,0,0,"",{"$f":"IF(V62=\"\",\"\",IF(V62>=Comboboxes!A$5,\"Pass\",IF(AND(V62>=Comboboxes!A$6,E62=\"Yes\"),\"Pass†\",\"Fail\")))","v":""}]
[null,null,null,null,null,"",0,0,0,0,0,0,0,"",0,0,0,0,0,0,0,"",{"$f":"IF(V63=\"\",\"\",IF(V63>=Comboboxes!A$5,\"Pass\",IF(AND(V63>=Comboboxes!A$6,E63=\"Yes\"),\"Pass†\",\"Fail\")))","v":""}]
[null,null,null,null,null,"",0,0,0,0,0,0,0,"",0,0,0,0,0,0,0,"",{"$f":"IF(V64=\"\",\"\",IF(V64>=Comboboxes!A$5,\"Pass\",IF(AND(V64>=Comboboxes!A$6,E64=\"Yes\"),\"Pass†\",\"Fail\")))","v":""}]
[null,null,null,null,null,"",0,0,0,0,0,0,0,"",0,0,0,0,0,0,0,"",{"$f":"IF(V65=\"\",\"\",IF(V65>=Comboboxes!A$5,\"Pass\",IF(AND(V65>=Comboboxes!A$6,E65=\"Yes\"),\"Pass†\",\"Fail\")))","v":""}]
[null,null,null,null,null,"",0,0,0,0,0,0,0,"",0,0,0,0,0,0,0,"",{"$f":"IF(V66=\"\",\"\",IF(V66>=Comboboxes!A$5,\"Pass\",IF(AND(V66>=Comboboxes!A$6,E66=\"Yes\"),\"Pass†\",\"Fail\")))","v":""}]
[null,null,null,null,null,"",0,0,0,0,0,0,0,"",0,0,0,0,0,0,0,"",{"$f":"IF(V67=\"\",\"\",IF(V67>=Comboboxes!A$5,\"Pass\",IF(AND(V67>=Comboboxes!A$6,E67=\"Yes\"),\"Pass†\",\"Fail\")))","v":""}]
[null,null,null,null,null,"",0,0,0,0,0,0,0,"",0,0,0,0,0,0,0,"",{"$f":"IF(V68=\"\",\"\",IF(V68>=Comboboxes!A$5,\"Pass\",IF(AND(V68>=Comboboxes!A$6,E68=\"Yes\"),\"Pass†\",\"Fail\")))","v":""}]
[null,null,null,null,null,"",0,0,0,0,0,0,{"$f":"(0.2126*H69)+(0.7152*J69)+(0.0722*L69)","v":0},"",0,0,0,0,0,0,{"$f":"(0.2126*P69)+(0.7152*R69)+(0.0722*T69)","v":0},{"$f":"IF(OR(F69=\"\",N69=\"\")=TRUE,\"\",IF(OR(F69=FALSE,N69=FALSE)=TRUE,\"ERROR\",ROUND(IF(M69>U69,(M69+0.05)/(U69+0.05),(U69+0.05)/(M69+0.05)),2)))","v":""},{"$f":"IF(V69=\"\",\"\",IF(V69>=Comboboxes!A$5,\"Pass\",IF(AND(V69>=Comboboxes!A$6,E69=\"Yes\"),\"Pass†\",\"Fail\")))","v":""}]
[null,null,null,null,null,"",0,0,0,0,0,0,{"$f":"(0.2126*H70)+(0.7152*J70)+(0.0722*L70)","v":0},"",0,0,0,0,0,0,{"$f":"(0.2126*P70)+(0.7152*R70)+(0.0722*T70)","v":0},{"$f":"IF(OR(F70=\"\",N70=\"\")=TRUE,\"\",IF(OR(F70=FALSE,N70=FALSE)=TRUE,\"ERROR\",ROUND(IF(M70>U70,(M70+0.05)/(U70+0.05),(U70+0.05)/(M70+0.05)),2)))","v":""},{"$f":"IF(V70=\"\",\"\",IF(V70>=Comboboxes!A$5,\"Pass\",IF(AND(V70>=Comboboxes!A$6,E70=\"Yes\"),\"Pass†\",\"Fail\")))","v":""}]
[]
["Colour combinations shown in pink do not meet the contrast ratio (4.5:1 Minimum) recommended by W3C WCAG 2.0"]
[]
["Note that a contrast ratio of 3:1 is acceptable for large text e.g. 14 point bold or 18 point normal weight."]

{"sheet":"Non-text Contrast","index":4,"n_rows":68,"n_cols":76,"rows_kept":68,"cut":false,"hidden":false,"merged":[[0,0,1,7]]}
["\nColour Contrast Analysis for combinations\nof background and foreground colours",null,null,null,null,null,null,null,null,null,null,null,null,null,null,null,null,null,null,null,null,null,null,null,null,null,{"$f":"(Statistics!B14)","v":"<head>, header and footer"},{"$f":"(Statistics!B15)","v":"Healthy Schools London"},{"$f":"(Statistics!B16)","v":"About"},{"$f":"(Statistics!B17)","v":"Schools Taking part"},{"$f":"(Statistics!B18)","v":"Aerodrome Primary Academy"},{"$f":"(Statistics!B19)","v":"Newsletter from Healthy Schools London"},{"$f":"(Statistics!B20)","v":"Cranford Primary School, Hounslow"},{"$f":"(Statistics!B21)","v":"Register"},{"$f":"(Statistics!B22)","v":"Register Step 2"},{"$f":"(Statistics!B23)","v":"Register Step 3"},{"$f":"(Statistics!B24)","v":"Register - Create School page"},{"$f":"(Statistics!B25)","v":"Case Studies"},{"$f":"(Statistics!B26)","v":"Films"},{"$f":"(Statistics!B27)","v":"Sign Up"},{"$f":"(Statistics!B28)","v":"User account"},{"$f":"(Statistics!B29)","v":"Apply Gold"},{"$f":"(Statistics!B30)","v":"Page 17"},{"$f":"(Statistics!B31)","v":"Page 18"},{"$f":"(Statistics!B32)","v":"Page 19"},{"$f":"(Statistics!B33)","v":"Page 20"},{"$f":"(Statistics!B34)","v":"Page 21"},{"$f":"(Statistics!B35)","v":"Page 22"},{"$f":"(Statistics!B36)","v":"Page 23"},{"$f":"(Statistics!B37)","v":"Page 24"},{"$f":"(Statistics!B38)","v":"Page 25"},{"$f":"(Statistics!B39)","v":"Page 26"},{"$f":"(Statistics!B40)","v":"Page 27"},{"$f":"(Statistics!B41)","v":"Page 28"},{"$f":"(Statistics!B42)","v":"Page 29"},{"$f":"(Statistics!B43)","v":"Page 30"},{"$f":"(Statistics!B44)","v":"Page 31"},{"$f":"(Statistics!B45)","v":"Page 32"},{"$f":"(Statistics!B46)","v":"Page 33"},{"$f":"(Statistics!B47)","v":"Page 34"},{"$f":"(Statistics!B48)","v":"Page 35"},{"$f":"(Statistics!B49)","v":"Page 36"},{"$f":"(Statistics!B50)","v":"Page 37"},{"$f":"(Statistics!B51)","v":"Page 38"},{"$f":"(Statistics!B52)","v":"Page 39"},{"$f":"(Statistics!B53)","v":"Page 40"},{"$f":"(Statistics!B54)","v":"Page 41"},{"$f":"(Statistics!B55)","v":"Page 42"},{"$f":"(Statistics!B56)","v":"Page 43"},{"$f":"(Statistics!B57)","v":"Page 44"},{"$f":"(Statistics!B58)","v":"Page 45"},{"$f":"(Statistics!B59)","v":"Page 46"},{"$f":"(Statistics!B60)","v":"Page 47"},{"$f":"(Statistics!B61)","v":"Page 48"},{"$f":"(Statistics!B62)","v":"Page 49"},{"$f":"(Statistics!B63)","v":"Page 50"}]
[null,null,null,null,null,null,null,null,null,null,null,null,null,null,null,null,null,null,null,null,null,null,null,null,null,null,{"$f":"(Statistics!C14)","v":"N/A"},{"$f":"(Statistics!C15)","v":"https://www.london.gov.uk/what-we-do/health/healthy-schools-london/awards/ "},{"$f":"(Statistics!C16)","v":"https://www.london.gov.uk/what-we-do/health/healthy-schools-london/awards/about "},{"$f":"(Statistics!C17)","v":"https://www.london.gov.uk/what-we-do/health/healthy-schools-london/awards/get-award/schools-taking-part "},{"$f":"(Statistics!C18)","v":"https://www.london.gov.uk/what-we-do/health/healthy-schools-london/awards/get-award/schools-taking-part/aerodrome-primary-academy "},{"$f":"(Statistics!C19)","v":"https://www.london.gov.uk/what-we-do/health/healthy-schools-london/awards/node/1455 "},{"$f":"(Statistics!C20)","v":"https://www.london.gov.uk/what-we-do/health/healthy-schools-london/awards/node/483 "},{"$f":"(Statistics!C21)","v":"https://www.london.gov.uk/what-we-do/health/healthy-schools-london/awards/register "},{"$f":"(Statistics!C22)","v":"https://www.london.gov.uk/what-we-do/health/healthy-schools-london/awards/register/8 "},{"$f":"(Statistics!C23)","v":"https://www.london.gov.uk/what-we-do/health/healthy-schools-london/awards/user/register/433 "},{"$f":"(Statistics!C24)","v":"https://www.london.gov.uk/what-we-do/health/healthy-schools-london/awards/node/add/school-page?u=8878&b=6 "},{"$f":"(Statistics!C25)","v":"https://www.london.gov.uk/what-we-do/health/healthy-schools-london/awards/resources/case-studies "},{"$f":"(Statistics!C26)","v":"https://www.london.gov.uk/what-we-do/health/healthy-schools-london/awards/resources/films "},{"$f":"(Statistics!C27)","v":"https://www.london.gov.uk/what-we-do/health/healthy-schools-london/awards/sign "},{"$f":"(Statistics!C28)","v":"https://www.london.gov.uk/what-we-do/health/healthy-schools-london/awards/user "},{"$f":"(Statistics!C29)","v":"https://www.london.gov.uk/what-we-do/health/healthy-schools-london/awards/get-award/apply-gold"},{"$f":"(Statistics!C30)","v":"URL 17"},{"$f":"(Statistics!C31)","v":"URL 18"},{"$f":"(Statistics!C32)","v":"URL 19"},{"$f":"(Statistics!C33)","v":"URL 20"},{"$f":"(Statistics!C34)","v":"URL 21"},{"$f":"(Statistics!C35)","v":"URL 22"},{"$f":"(Statistics!C36)","v":"URL 23"},{"$f":"(Statistics!C37)","v":"URL 24"},{"$f":"(Statistics!C38)","v":"URL 25"},{"$f":"(Statistics!C39)","v":"URL 26"},{"$f":"(Statistics!C40)","v":"URL 27"},{"$f":"(Statistics!C41)","v":"URL 28"},{"$f":"(Statistics!C42)","v":"URL 29"},{"$f":"(Statistics!C43)","v":"URL 30"},{"$f":"(Statistics!C44)","v":"URL 31"},{"$f":"(Statistics!C45)","v":"URL 32"},{"$f":"(Statistics!C46)","v":"URL 33"},{"$f":"(Statistics!C47)","v":"URL 34"},{"$f":"(Statistics!C48)","v":"URL 35"},{"$f":"(Statistics!C49)","v":"URL 36"},{"$f":"(Statistics!C50)","v":"URL 37"},{"$f":"(Statistics!C51)","v":"URL 38"},{"$f":"(Statistics!C52)","v":"URL 39"},{"$f":"(Statistics!C53)","v":"URL 40"},{"$f":"(Statistics!C54)","v":"URL 41"},{"$f":"(Statistics!C55)","v":"URL 42"},{"$f":"(Statistics!C56)","v":"URL 43"},{"$f":"(Statistics!C57)","v":"URL 44"},{"$f":"(Statistics!C58)","v":"URL 45"},{"$f":"(Statistics!C59)","v":"URL 46"},{"$f":"(Statistics!C60)","v":"URL 47"},{"$f":"(Statistics!C61)","v":"URL 48"},{"$f":"(Statistics!C62)","v":"URL 49"},{"$f":"(Statistics!C63)","v":"URL 50"}]
["Page Area","What we are comparing","Initial State (image)","Focus State (image)","Recommendation (image)","Recommendation (description)","Colour","Adjacent Colour","Valid","R RGB","Fail Only","G RGB","G","B RGB","B","Luminance","Valid","R RGB","R","G RGB","G","B RGB","B","Fail Only","Contrast Ratio","All Results"]
["Button in header","Purple button on pink background",null,"N/A","N/A","No change","#9E0059","#EE266D",{"$f":"IF(LEN(G4)=0,\"\",AND(LEFT(G4,1)=\"#\",LEN(G4)=7))","v":true},{"$f":"HEX2DEC(RIGHT(LEFT(G4,3),2))","v":158},{"$f":"IF(J4/255<= 0.03928,J4/(255*12.92),(((J4/255)+0.055)/1.055)^2.4)","v":0.34191442490866097},{"$f":"HEX2DEC(RIGHT(LEFT(G4,5),2))","v":0},{"$f":"IF(L4/255<= 0.03928,L4/(255*12.92),(((L4/255)+0.055)/1.055)^2.4)","v":0},{"$f":"HEX2DEC(RIGHT(G4,2))","v":89},{"$f":"IF(N4/255<= 0.03928,N4/(255*12.92),(((N4/255)+0.055)/1.055)^2.4)","v":9.9898728247113905E-2},{"$f":"(0.2126*K4)+(0.7152*M4)+(0.0722*O4)","v":7.9903694915022944E-2},{"$f":"IF(LEN(H4)=0,\"\",AND(LEFT(H4,1)=\"#\",LEN(H4)=7))","v":true},{"$f":"HEX2DEC(RIGHT(LEFT(H4,3),2))","v":238},{"$f":"IF(R4/255<= 0.03928,R4/(255*12.92),(((R4/255)+0.055)/1.055)^2.4)","v":0.85499260812423383},{"$f":"HEX2DEC(RIGHT(LEFT(H4,5),2))","v":38},{"$f":"IF(T4/255<= 0.03928,T4/(255*12.92),(((T4/255)+0.055)/1.055)^2.4)","v":1.9382360956935723E-2},{"$f":"HEX2DEC(RIGHT(H4,2))","v":109},{"$f":"IF(V4/255<= 0.03928,V4/(255*12.92),(((V4/255)+0.055)/1.055)^2.4)","v":0.15292615199615014},{"$f":"(0.2126*S4)+(0.7152*U4)+(0.0722*W4)","v":0.2066749612177346},{"$f":"IF(OR(I4=\"\",Q4=\"\")=TRUE,\"\",IF(OR(I4=FALSE,Q4=FALSE)=TRUE,\"ERROR\",ROUND(IF(P4>X4,(P4+0.05)/(X4+0.05),(X4+0.05)/(P4+0.05)),2)))","v":1.98},{"$f":"IF(Y4=\"\",\"\",IF(Y4>=3,\"Pass\",\"Fail\"))","v":"Fail"},"Fail AA","N/A","N/A","N/A","N/A","N/A","N/A","N/A","N/A","N/A","N/A","N/A","N/A","N/A","N/A","N/A"]
["Button in header","Purple button on pink background",null,"N/A","N/A","No change","#9E0059","#EE266D",true,158,{"$f":"IF(J5/255<= 0.03928,J5/(255*12.92),(((J5/255)+0.055)/1.055)^2.4)","v":0.34191442490866097},0,{"$f":"IF(L5/255<= 0.03928,L5/(255*12.92),(((L5/255)+0.055)/1.055)^2.4)","v":0},89,{"$f":"IF(N5/255<= 0.03928,N5/(255*12.92),(((N5/255)+0.055)/1.055)^2.4)","v":9.9898728247113905E-2},{"$f":"(0.2126*K5)+(0.7152*M5)+(0.0722*O5)","v":7.9903694915022944E-2},true,238,{"$f":"IF(R5/255<= 0.03928,R5/(255*12.92),(((R5/255)+0.055)/1.055)^2.4)","v":0.85499260812423383},38,{"$f":"IF(T5/255<= 0.03928,T5/(255*12.92),(((T5/255)+0.055)/1.055)^2.4)","v":1.9382360956935723E-2},109,{"$f":"IF(V5/255<= 0.03928,V5/(255*12.92),(((V5/255)+0.055)/1.055)^2.4)","v":0.15292615199615014},{"$f":"(0.2126*S5)+(0.7152*U5)+(0.0722*W5)","v":0.2066749612177346},{"$f":"IF(OR(I5=\"\",Q5=\"\")=TRUE,\"\",IF(OR(I5=FALSE,Q5=FALSE)=TRUE,\"ERROR\",ROUND(IF(P5>X5,(P5+0.05)/(X5+0.05),(X5+0.05)/(P5+0.05)),2)))","v":1.98},"Fail","Fail AA","N/A","N/A","N/A","N/A","N/A","N/A","N/A","N/A","N/A","N/A","N/A","N/A","N/A","N/A","N/A"]
["Textbox","Grey outline against the grey background",null,"N/A",null,"Change the block--gla-search-search-block CSS border colour to #FFFFFF","#414B52","#353D42",true,65,5.2860647023180267E-2,75,7.0360095696595876E-2,82,8.437621154414883E-2,6.765167647282104E-2,true,53,3.5601314875020329E-2,61,4.6665086336880102E-2,66,5.4480276442442369E-2,4.4877185249710308E-2,1.24,"Fail","Fail AA","N/A","N/A","N/A","N/A","N/A","N/A","N/A","N/A","N/A","N/A","N/A","N/A","N/A","N/A","N/A"]
["Textbox (focus)","white outline against the grey background",null,null,"N/A","No change","#FFFFFF","#353D42",true,255,{"$f":"IF(J7/255<= 0.03928,J7/(255*12.92),(((J7/255)+0.055)/1.055)^2.4)","v":1},255,{"$f":"IF(L7/255<= 0.03928,L7/(255*12.92),(((L7/255)+0.055)/1.055)^2.4)","v":1},255,{"$f":"IF(N7/255<= 0.03928,N7/(255*12.92),(((N7/255)+0.055)/1.055)^2.4)","v":1},{"$f":"(0.2126*K7)+(0.7152*M7)+(0.0722*O7)","v":1},true,53,{"$f":"IF(R7/255<= 0.03928,R7/(255*12.92),(((R7/255)+0.055)/1.055)^2.4)","v":3.5601314875020329E-2},61,{"$f":"IF(T7/255<= 0.03928,T7/(255*12.92),(((T7/255)+0.055)/1.055)^2.4)","v":4.6665086336880102E-2},66,{"$f":"IF(V7/255<= 0.03928,V7/(255*12.92),(((V7/255)+0.055)/1.055)^2.4)","v":5.4480276442442369E-2},{"$f":"(0.2126*S7)+(0.7152*U7)+(0.0722*W7)","v":4.4877185249710308E-2},{"$f":"IF(OR(I7=\"\",Q7=\"\")=TRUE,\"\",IF(OR(I7=FALSE,Q7=FALSE)=TRUE,\"ERROR\",ROUND(IF(P7>X7,(P7+0.05)/(X7+0.05),(X7+0.05)/(P7+0.05)),2)))","v":11.07},"Pass","Pass AA","N/A","N/A","N/A","N/A","N/A","N/A","N/A","N/A","N/A","N/A","N/A","N/A","N/A","N/A","N/A"]
["Search button","white icon against the black background",null,"N/A","N/A","No change","#FFFFFF","#000000",true,255,1,255,1,255,1,1,true,0,0,0,0,0,0,0,21,"Pass","Pass AA","N/A","N/A","N/A","N/A","N/A","N/A","N/A","N/A","N/A","N/A","N/A","N/A","N/A","N/A","N/A"]
["Search button (focus)","white outline against the blackground",null,null,"N/A","No change","#FFFFFF","#353D42",true,255,1,255,1,255,1,1,true,53,3.5601314875020329E-2,61,4.6665086336880102E-2,66,5.4480276442442369E-2,4.4877185249710308E-2,11.07,"Pass","Pass AA","N/A","N/A","N/A","N/A","N/A","N/A","N/A","N/A","N/A","N/A","N/A","N/A","N/A","N/A","N/A"]
["Collapsed menu button","Grey button with grey outline",null,"N/A",null,"Change menu-level-1 CSS border-right and border-bottom to Black #000000","#E7E7E7","#F5F5F5",true,231,0.79910273801440901,231,0.79910273801440901,231,0.79910273801440901,0.79910273801440901,true,245,0.9130986517934192,245,0.9130986517934192,245,0.9130986517934192,0.91309865179341909,1.1299999999999999,"Fail","Fail AA","N/A","N/A","N/A","N/A","N/A","N/A","N/A","N/A","N/A","N/A","N/A","N/A","N/A","N/A","N/A"]
["Collapsed menu button (focus)","bergundy outline with grey background",null,"N/A","N/A","No change","#9E0059","#F5F5F5",true,158,0.34191442490866097,0,0,89,9.9898728247113905E-2,7.9903694915022944E-2,true,245,0.9130986517934192,245,0.9130986517934192,245,0.9130986517934192,0.91309865179341909,7.41,"Pass","Pass AA","N/A","N/A","N/A","N/A","N/A","N/A","N/A","N/A","N/A","N/A","N/A","N/A","N/A","N/A","N/A"]
["Icon","white icon against the grey background",null,"N/A","N/A","No change","#FFFFFF","#353D42",true,255,1,255,1,255,1,1,true,53,3.5601314875020329E-2,61,4.6665086336880102E-2,66,5.4480276442442369E-2,4.4877185249710308E-2,11.07,"Pass","Pass AA","N/A","N/A","N/A","N/A","N/A","N/A","N/A","N/A","N/A","N/A","N/A","N/A","N/A","N/A","N/A"]
["Icon (hover)","white icon against the black background",null,"N/A","N/A","No change","#FFFFFF","#000000",true,255,1,255,1,255,1,1,true,0,0,0,0,0,0,0,21,"Pass","Pass AA","N/A","N/A","N/A","N/A","N/A","N/A","N/A","N/A","N/A","N/A","N/A","N/A","N/A","N/A","N/A"]
["Chevron icon","grey icon against the grey background",null,"N/A",null,"Change thr chevron colour to bergundy #9E0059","#D7D8D9","#F5F5F5",true,215,0.67954246963309384,216,0.6866853124353135,217,0.69387176129198991,0.68568560566301362,true,245,0.9130986517934192,245,0.9130986517934192,245,0.9130986517934192,0.91309865179341909,1.31,"Fail","Fail AA","N/A","N/A","N/A","N/A","N/A","N/A","N/A","N/A","N/A","N/A","N/A","N/A","N/A","N/A","N/A"]
[" Chevron icon (hover)","black icon against the grey background",null,null,"N/A","No change","#F5F5F5","#000000",true,245,0.9130986517934192,245,0.9130986517934192,245,0.9130986517934192,0.91309865179341909,true,0,0,0,0,0,0,0,19.260000000000002,"Pass","Pass AA","N/A","N/A","N/A","N/A","N/A","N/A","N/A","N/A","N/A","N/A","N/A","N/A","N/A","N/A","N/A"]
["Chevron icon","Purple icon against the white background",null,"N/A","N/A","No change","#9E0059","#FFFFFF",true,158,0.34191442490866097,0,0,89,9.9898728247113905E-2,7.9903694915022944E-2,true,255,1,255,1,255,1,1,8.08,"Pass","N/A","Pass AA","Pass AA","Pass AA","N/A","N/A","N/A","N/A","N/A","N/A","N/A","N/A","N/A","N/A","N/A","N/A"]
["Chevron icon (Hover)","Purple icon against the white background",null,"N/A","N/A","No change","#6E003E","#FFFFFF",{"$f":"IF(LEN(G17)=0,\"\",AND(LEFT(G17,1)=\"#\",LEN(G17)=7))","v":true},{"$f":"HEX2DEC(RIGHT(LEFT(G17,3),2))","v":110},{"$f":"IF(J17/255<= 0.03928,J17/(255*12.92),(((J17/255)+0.055)/1.055)^2.4)","v":0.15592646370782737},{"$f":"HEX2DEC(RIGHT(LEFT(G17,5),2))","v":0},{"$f":"IF(L17/255<= 0.03928,L17/(255*12.92),(((L17/255)+0.055)/1.055)^2.4)","v":0},{"$f":"HEX2DEC(RIGHT(G17,2))","v":62},{"$f":"IF(N17/255<= 0.03928,N17/(255*12.92),(((N17/255)+0.055)/1.055)^2.4)","v":4.8171824226889426E-2},{"$f":"(0.2126*K17)+(0.7152*M17)+(0.0722*O17)","v":3.6627971893465512E-2},{"$f":"IF(LEN(H17)=0,\"\",AND(LEFT(H17,1)=\"#\",LEN(H17)=7))","v":true},{"$f":"HEX2DEC(RIGHT(LEFT(H17,3),2))","v":255},{"$f":"IF(R17/255<= 0.03928,R17/(255*12.92),(((R17/255)+0.055)/1.055)^2.4)","v":1},{"$f":"HEX2DEC(RIGHT(LEFT(H17,5),2))","v":255},{"$f":"IF(T17/255<= 0.03928,T17/(255*12.92),(((T17/255)+0.055)/1.055)^2.4)","v":1},{"$f":"HEX2DEC(RIGHT(H17,2))","v":255},{"$f":"IF(V17/255<= 0.03928,V17/(255*12.92),(((V17/255)+0.055)/1.055)^2.4)","v":1},{"$f":"(0.2126*S17)+(0.7152*U17)+(0.0722*W17)","v":1},{"$f":"IF(OR(I17=\"\",Q17=\"\")=TRUE,\"\",IF(OR(I17=FALSE,Q17=FALSE)=TRUE,\"ERROR\",ROUND(IF(P17>X17,(P17+0.05)/(X17+0.05),(X17+0.05)/(P17+0.05)),2)))","v":12.12},{"$f":"IF(Y17=\"\",\"\",IF(Y17>=3,\"Pass\",\"Fail\"))","v":"Pass"},"N/A","N/A","N/A","Pass AA","N/A","N/A","N/A","N/A","N/A","N/A","N/A","N/A","N/A","N/A","N/A","N/A"]
["Twitter icon","White icon against the blue background",null,"N/A","N/A","No change","#FFFFFF","#1DA1F2",true,255,1,255,1,255,1,1,true,29,1.2286488356915874E-2,161,0.35640014414594351,242,0.88792311788196632,0.32161753962893708,2.83,"Fail","N/A","Fail AA","Fail AA","Fail AA","Fail AA","N/A","Fail AA","Fail AA","Fail AA","Fail AA","Fail AA","Fail AA","Fail AA","Fail AA","Fail AA","Fail AA"]
["Facebook icon","White icon against the blue background",null,"N/A","N/A","No change","#FFFFFF","#3B5998",true,255,1,255,1,255,1,1,{"$f":"IF(LEN(H19)=0,\"\",AND(LEFT(H19,1)=\"#\",LEN(H19)=7))","v":true},{"$f":"HEX2DEC(RIGHT(LEFT(H19,3),2))","v":59},4.3735029256973472E-2,{"$f":"HEX2DEC(RIGHT(LEFT(H19,5),2))","v":89},9.9898728247113905E-2,{"$f":"HEX2DEC(RIGHT(H19,2))","v":152},0.31398871337571754,0.10341562276809523,6.84,"Pass","N/A","Pass AA","Pass AA","Pass AA","Pass AA","N/A","Pass AA","Pass AA","Pass AA","Pass AA","Pass AA","Pass AA","Pass AA","Pass AA","Pass AA","Pass AA"]
["Printer icon","white icon against the grey background",null,"N/A","N/A","No change","#FFFFFF","#738A8D",true,255,1,255,1,255,1,1,{"$f":"IF(LEN(H20)=0,\"\",AND(LEFT(H20,1)=\"#\",LEN(H20)=7))","v":true},{"$f":"HEX2DEC(RIGHT(LEFT(H20,3),2))","v":115},0.17144110073282262,{"$f":"HEX2DEC(RIGHT(LEFT(H20,5),2))","v":138},0.25415209433082675,{"$f":"HEX2DEC(RIGHT(H20,2))","v":141},0.26635560480286247,0.23744883054797206,3.65,"Pass","N/A","Pass AA","Pass AA","Pass AA","Pass AA","N/A","Pass AA","Pass AA","Pass AA","Pass AA","Pass AA","Pass AA","Pass AA","Pass AA","Pass AA","Pass AA"]
["Email icon","White icon against the grey background",null,"N/A","N/A","No change","#FFFFFF","#738A8D",true,255,1,255,1,255,1,1,true,115,0.17144110073282262,138,0.25415209433082675,141,0.26635560480286247,0.23744883054797206,3.65,"Pass","N/A","Pass AA","Pass AA","Pass AA","Pass AA","N/A","Pass AA","Pass AA","Pass AA","Pass AA","Pass AA","Pass AA","Pass AA","Pass AA","Pass AA","Pass AA"]
["Add more icon","White icon against the orange background",null,"N/A","N/A","No change","#FFFFFF","#FF6550",true,255,1,255,1,255,1,1,true,255,1,101,0.13013647669036432,80,8.0219820314468296E-2,0.31146547915565315,2.9,"Fail","N/A","Fail AA","Fail AA","Fail AA","Fail AA","N/A","Fail AA","Fail AA","Fail AA","Fail AA","Fail AA","Fail AA","Fail AA","Fail AA","Fail AA","Fail AA"]
["Other items icon","Grey icon against the white background",null,"N/A","N/A","No change","#333333","#FFFFFF",true,51,3.3104766570885055E-2,51,3.3104766570885055E-2,51,3.3104766570885055E-2,3.3104766570885055E-2,true,255,1,255,1,255,1,1,12.63,"Pass","N/A","Pass AA","Pass AA","Pass AA","Pass AA","N/A","Pass AA","Pass AA","Pass AA","Pass AA","Pass AA","Pass AA","Pass AA","Pass AA","Pass AA","Pass AA"]
["Twitter icon (Focus)","Blue icon against purple outline",null,"N/A",null,"Add an outline of 3px dotted #FF00FF;\nAdd an outline-offset of 2px to the existing outline.","#1DA1F2","#9E0059",true,29,1.2286488356915874E-2,161,0.35640014414594351,242,0.88792311788196632,0.32161753962893708,true,158,0.34191442490866097,0,0,89,9.9898728247113905E-2,7.9903694915022944E-2,2.86,"Fail","N/A","Fail AA","Fail AA","Fail AA","Fail AA","N/A","Fail AA","Fail AA","Fail AA","Fail AA","Fail AA","Fail AA","Fail AA","Fail AA","Fail AA","Fail AA"]
["Facebook icon (Focus)","Blue icon against purple outline",null,"N/A",null,"Add an outline of 3px dotted #FF00FF;\nAdd an outline-offset of 2px to the existing outline.","#3B5998","#9E0059",true,59,4.3735029256973472E-2,89,9.9898728247113905E-2,152,0.31398871337571754,0.10341562276809523,true,158,0.34191442490866097,0,0,89,9.9898728247113905E-2,7.9903694915022944E-2,1.18,"Fail","N/A","Fail AA","Fail AA","Fail AA","Fail AA","N/A","Fail AA","Fail AA","Fail AA","Fail AA","Fail AA","Fail AA","Fail AA","Fail AA","Fail AA","Fail AA"]
["Printer icon (Focus)","Grey icon  against purple outline",null,"N/A",null,"Add an outline of 3px dotted #FF00FF;\nAdd an outline-offset of 2px to the existing outline.","#738A8D","#9E0059",true,115,0.17144110073282262,138,0.25415209433082675,141,0.26635560480286247,0.23744883054797206,true,158,0.34191442490866097,0,0,89,9.9898728247113905E-2,7.9903694915022944E-2,2.21,"Fail","N/A","Fail AA","Fail AA","Fail AA","Fail AA","N/A","Fail AA","Fail AA","Fail AA","Fail AA","Fail AA","Fail AA","Fail AA","Fail AA","Fail AA","Fail AA"]
["Email icon (Focus)","Grey icon  against purple outline",null,"N/A",null,"Add an outline of 3px dotted #FF00FF;\nAdd an outline-offset of 2px to the existing outline.","#738A8D","#9E0059",true,115,0.17144110073282262,138,0.25415209433082675,141,0.26635560480286247,0.23744883054797206,true,158,0.34191442490866097,0,0,89,9.9898728247113905E-2,7.9903694915022944E-2,2.21,"Fail","N/A","Fail AA","Fail AA","Fail AA","Fail AA","N/A","Fail AA","Fail AA","Fail AA","Fail AA","Fail AA","Fail AA","Fail AA","Fail AA","Fail AA","Fail AA"]
["Add more icon (Focus)","orange icon against purple outline",null,"N/A",null,"Add an outline of 3px dotted #FF00FF;\nAdd an outline-offset of 2px to the existing outline.","#FF6550","#9E0059",true,255,1,101,0.13013647669036432,80,8.0219820314468296E-2,0.31146547915565315,true,158,0.34191442490866097,0,0,89,9.9898728247113905E-2,7.9903694915022944E-2,2.78,"Fail","N/A","Fail AA","Fail AA","Fail AA","Fail AA","N/A","Fail AA","Fail AA","Fail AA","Fail AA","Fail AA","Fail AA","Fail AA","Fail AA","Fail AA","Fail AA"]
["Other items icon (Focus)","grey icon against purple outline",null,"N/A",null,"Add an outline of 3px dotted #FF00FF;\nAdd an outline-offset of 2px to the existing outline.","#738A8D","#9E0059",true,115,0.17144110073282262,138,0.25415209433082675,141,0.26635560480286247,0.23744883054797206,true,158,0.34191442490866097,0,0,89,9.9898728247113905E-2,7.9903694915022944E-2,2.21,"Fail","N/A","Fail AA","Fail AA","Fail AA","Fail AA","N/A","Fail AA","Fail AA","Fail AA","Fail AA","Fail AA","Fail AA","Fail AA","Fail AA","Fail AA","Fail AA"]
["Radio button","grey foreground against the white background",null,"N/A","N/A","No change","#7B8B95","#FFFFFF",true,123,0.19806931955994886,139,0.25818285292159576,149,0.3005437944157765,0.24846117570478948,true,255,1,255,1,255,1,1,3.52,"Pass","N/A","N/A","N/A","N/A","N/A","N/A","N/A","N/A","Pass AA","N/A","N/A","N/A","N/A","N/A","N/A","N/A"]
["Radio button (Focus)","Black foreground against the white background",null,"N/A","N/A","No change","#000000","#FFFFFF",true,0,0,0,0,0,0,0,true,255,1,255,1,255,1,1,21,"Pass","N/A","N/A","N/A","N/A","N/A","N/A","N/A","N/A","Pass AA","N/A","N/A","N/A","N/A","N/A","N/A","N/A"]
["Validation icon (invalid)","White icon against red background",null,"N/A","N/A","No change","#FFFFFF","#D71111",{"$f":"IF(LEN(G32)=0,\"\",AND(LEFT(G32,1)=\"#\",LEN(G32)=7))","v":true},{"$f":"HEX2DEC(RIGHT(LEFT(G32,3),2))","v":255},1,{"$f":"HEX2DEC(RIGHT(LEFT(G32,5),2))","v":255},1,{"$f":"HEX2DEC(RIGHT(G32,2))","v":255},1,1,{"$f":"IF(LEN(H32)=0,\"\",AND(LEFT(H32,1)=\"#\",LEN(H32)=7))","v":true},{"$f":"HEX2DEC(RIGHT(LEFT(H32,3),2))","v":215},0.67954246963309384,{"$f":"HEX2DEC(RIGHT(LEFT(H32,5),2))","v":17},5.6053916242027272E-3,{"$f":"HEX2DEC(RIGHT(H32,2))","v":17},5.6053916242027272E-3,0.14888441440889297,5.28,"Pass","N/A","N/A","N/A","N/A","N/A","N/A","N/A","N/A","N/A","Pass AA","N/A","N/A","N/A","Pass AA","Pass AA","N/A"]
["Validation icon (Valid)","White icon against green background",null,"N/A","N/A","No change","#FFFFFF","#278F27",true,255,1,255,1,255,1,1,true,39,2.0288563056652397E-2,143,0.2746773120603847,39,2.0288563056652397E-2,0.20222739634412173,4.16,"Pass","N/A","N/A","N/A","N/A","N/A","N/A","N/A","N/A","N/A","Pass AA","N/A","N/A","N/A","Pass AA","Pass AA","N/A"]
["Checkbox","White check against black checkbox",null,"N/A","N/A","No change","#FFFFFF","#000000",true,255,1,255,1,255,1,1,true,0,0,0,0,0,0,0,21,"Pass","N/A","N/A","N/A","N/A","N/A","N/A","N/A","N/A","N/A","Pass AA","Pass AA","N/A","N/A","N/A","N/A","Pass AA"]
["Checkbox","Black checkbox against purple focus indicator",null,"N/A","N/A","Change the outline from dark purpole to light purple (#EE266D)","#000000","#9E0059",true,0,0,0,0,0,0,0,true,158,0.34191442490866097,0,0,89,9.9898728247113905E-2,7.9903694915022944E-2,2.6,"Fail","N/A","N/A","N/A","N/A","N/A","N/A","N/A","N/A","N/A","Fail AA","Fail AA","N/A","N/A","N/A","N/A","Fail AA"]
["Dropdown list","Black dropdown list against the purple focus indicator",null,"N/A","N/A","Change the outline from dark purpole to light purple (#EE266D)","#000000","#9E0059",true,0,0,0,0,0,0,0,true,158,0.34191442490866097,0,0,89,9.9898728247113905E-2,7.9903694915022944E-2,2.6,"Fail","N/A","N/A","N/A","N/A","N/A","N/A","N/A","N/A","N/A","N/A","Fail AA","Fail AA","N/A","N/A","N/A","Fail AA"]
["Captcha checkbox","White checkbox against grey outline",null,"N/A",null,"Change the outline from grey to black (#000000)","#FFFFFF","#B2B2B2",true,255,1,255,1,255,1,1,true,178,0.44520119451622792,178,0.44520119451622792,178,0.44520119451622792,0.44520119451622797,2.12,"Fail","N/A","N/A","N/A","N/A","N/A","N/A","N/A","N/A","N/A","N/A","N/A","N/A","N/A","Fail AA","N/A","Fail AA"]
["Warning sign","Black icon against the yellow background",null,"N/A","N/A","No change","#000000","#F9C700",true,0,0,0,0,0,0,0,true,249,0.94730653673319987,199,0.57112482946487308,0,0,0.60986584774275543,13.2,"Pass","N/A","N/A","N/A","N/A","N/A","N/A","N/A","N/A","N/A","N/A","N/A","N/A","N/A","N/A","N/A","Pass AA"]
[null,null,null,null,null,null,null,null,"",0,0,0,0,0,0,0,"",0,0,0,0,0,0,0,"",""]
[null,null,null,null,null,null,null,null,"",0,0,0,0,0,0,0,"",0,0,0,0,0,0,0,"",""]
[null,null,null,null,null,null,null,null,"",0,0,0,0,0,0,0,"",0,0,0,0,0,0,0,"",""]
[null,null,null,null,null,null,null,null,"",0,0,0,0,0,0,0,"",0,0,0,0,0,0,0,"",""]
[null,null,null,null,null,null,null,null,"",0,0,0,0,0,0,0,"",0,0,0,0,0,0,0,"",""]
[null,null,null,null,null,null,null,null,"",0,0,0,0,0,0,0,"",0,0,0,0,0,0,0,"",""]
[null,null,null,null,null,null,null,null,"",0,0,0,0,0,0,0,"",0,0,0,0,0,0,0,"",""]
[null,null,null,null,null,null,null,null,"",0,0,0,0,0,0,0,"",0,0,0,0,0,0,0,"",""]
[null,null,null,null,null,null,null,null,"",0,0,0,0,0,0,0,"",0,0,0,0,0,0,0,"",""]
[null,null,null,null,null,null,null,null,"",0,0,0,0,0,0,0,"",0,0,0,0,0,0,0,"",""]
[null,null,null,null,null,null,null,null,"",0,0,0,0,0,0,0,"",0,0,0,0,0,0,0,"",""]
[null,null,null,null,null,null,null,null,"",0,0,0,0,0,0,0,"",0,0,0,0,0,0,0,"",""]
[null,null,null,null,null,null,null,null,"",0,0,0,0,0,0,0,"",0,0,0,0,0,0,0,"",""]
[null,null,null,null,null,null,null,null,"",0,0,0,0,0,0,0,"",0,0,0,0,0,0,0,"",""]
[null,null,null,null,null,null,null,null,"",0,0,0,0,0,0,0,"",0,0,0,0,0,0,0,"",""]
[null,null,null,null,null,null,null,null,"",0,0,0,0,0,0,0,"",0,0,0,0,0,0,0,"",""]
[null,null,null,null,null,null,null,null,"",0,0,0,0,0,0,0,"",0,0,0,0,0,0,0,"",""]
[null,null,null,null,null,null,null,null,"",0,0,0,0,0,0,0,"",0,0,0,0,0,0,0,"",""]
[null,null,null,null,null,null,null,null,"",0,0,0,0,0,0,0,"",0,0,0,0,0,0,0,"",""]
[null,null,null,null,null,null,null,null,"",0,0,0,0,0,0,0,"",0,0,0,0,0,0,0,"",""]
[null,null,null,null,null,null,null,null,"",0,0,0,0,0,0,0,"",0,0,0,0,0,0,0,"",""]
[null,null,null,null,null,null,null,null,"",0,0,0,0,0,0,0,"",0,0,0,0,0,0,0,"",""]
[null,null,null,null,null,null,null,null,"",0,0,0,0,0,0,0,"",0,0,0,0,0,0,0,"",""]
[null,null,null,null,null,null,null,null,"",0,0,0,0,0,0,0,"",0,0,0,0,0,0,0,"",""]
[null,null,null,null,null,null,null,null,"",0,0,0,0,0,0,0,"",0,0,0,0,0,0,0,"",""]
[null,null,null,null,null,null,null,null,"",0,0,0,0,0,0,0,"",0,0,0,0,0,0,0,"",""]
[null,null,null,null,null,null,null,null,"",0,0,0,0,0,0,{"$f":"(0.2126*K65)+(0.7152*M65)+(0.0722*O65)","v":0},"",0,0,0,0,0,0,{"$f":"(0.2126*S65)+(0.7152*U65)+(0.0722*W65)","v":0},{"$f":"IF(OR(I65=\"\",Q65=\"\")=TRUE,\"\",IF(OR(I65=FALSE,Q65=FALSE)=TRUE,\"ERROR\",ROUND(IF(P65>X65,(P65+0.05)/(X65+0.05),(X65+0.05)/(P65+0.05)),2)))","v":""},""]
[null,null,null,null,null,null,null,null,"",0,0,0,0,0,0,{"$f":"(0.2126*K66)+(0.7152*M66)+(0.0722*O66)","v":0},"",0,0,0,0,0,0,{"$f":"(0.2126*S66)+(0.7152*U66)+(0.0722*W66)","v":0},{"$f":"IF(OR(I66=\"\",Q66=\"\")=TRUE,\"\",IF(OR(I66=FALSE,Q66=FALSE)=TRUE,\"ERROR\",ROUND(IF(P66>X66,(P66+0.05)/(X66+0.05),(X66+0.05)/(P66+0.05)),2)))","v":""},{"$f":"IF(Y66=\"\",\"\",IF(Y66>=3,\"Pass\",\"Fail\"))","v":""}]
[]
["Colour combinations shown in pink do not meet the contrast ratio (3:1 Minimum) recommended by W3C WCAG 2.1"]

{"sheet":"Changelog","index":5,"n_rows":3,"n_cols":2,"rows_kept":3,"cut":false,"hidden":true,"merged":[]}
["Version","Changes"]
[3.2,"1. Set the results for all AAA success criteria to Not Tested. Added instruction to delete them all when testing for compliance with AAA.\n\n2. Added a combobox to the header of the Colour Contrast Analysis worksheet to switch between the different thresholds that apply at AA and AAA. The combobox setting automatically sets the appropriate thresholds in the formulae in the Results column.\n\n3. Hid the Cover worksheet. We should update it at some point but it is very low priority.\n\n4. Changed the Hyperlink style so the URL on the Statistics sheet is 11pt bold, the same as the other cells."]
[3.3,"1. Added examples in the Non-text Contrast worksheet.\n\n2. Added the \"What we are comparing\" and \"Recommendation (description) columns to the Non-text Contrast worksheet and reduced the width of most columns.\n\n3. Fixed the VBA so the Fail Only link works on the Non-text Contrast worksheet."]

{"sheet":"Comboboxes","index":6,"n_rows":6,"n_cols":2,"rows_kept":6,"cut":false,"hidden":true,"merged":[]}
["Level","Variable Name"]
["(Level AA)","Option value 1"]
["(Level AAA)","Option value 2"]
["(Level AA)","Selected value"]
[{"$f":"IF(A4=A2,4.5,7)","v":4.5},"Colour contrast ratio (small text)"]
[{"$f":"IF(A4=A2,3,4.5)","v":3},"Colour contrast ratio (large text)"]

{"sheet":"Data Table","index":7,"n_rows":51,"n_cols":7,"rows_kept":51,"cut":false,"hidden":true,"merged":[]}
["Page","WCAG 2.0 Level A Criteria\nFailed / Total\n","WCAG 2.0 Level AA Criteria\nFailed / Total\n","Total WCAG 2.0 Criteria\nFailed / Total\n",null,null,"Instructions for copying this data table into the Management Summary Report"]
[{"$f":"Statistics!B14","v":"<head>, header and footer"},{"$f":"CONCATENATE(Statistics!E14,\" / 25\")","v":"5 / 25"},{"$f":"CONCATENATE(Statistics!I14,\" / 13\")","v":"2 / 13"},{"$f":"CONCATENATE(Statistics!Q14,\" / 38\")","v":"7 / 38"},null,1,"Locate the Statistics data table in the Management Summary Report."]
[{"$f":"Statistics!B15","v":"Healthy Schools London"},{"$f":"CONCATENATE(Statistics!E15,\" / 25\")","v":"3 / 25"},{"$f":"CONCATENATE(Statistics!I15,\" / 13\")","v":"5 / 13"},{"$f":"CONCATENATE(Statistics!Q15,\" / 38\")","v":"8 / 38"},null,2,"Delete the contents of the data table."]
[{"$f":"Statistics!B16","v":"About"},{"$f":"CONCATENATE(Statistics!E16,\" / 25\")","v":"1 / 25"},{"$f":"CONCATENATE(Statistics!I16,\" / 13\")","v":"3 / 13"},{"$f":"CONCATENATE(Statistics!Q16,\" / 38\")","v":"4 / 38"},null,3,"Add or delete rows and columns in the data table such that they match the number of rows and columns in the data in this worksheet, including the heading row."]
[{"$f":"Statistics!B17","v":"Schools Taking part"},{"$f":"CONCATENATE(Statistics!E17,\" / 25\")","v":"2 / 25"},{"$f":"CONCATENATE(Statistics!I17,\" / 13\")","v":"4 / 13"},{"$f":"CONCATENATE(Statistics!Q17,\" / 38\")","v":"6 / 38"},null,4,"Select all the cells in the data table in this worksheet."]
[{"$f":"Statistics!B18","v":"Aerodrome Primary Academy"},{"$f":"CONCATENATE(Statistics!E18,\" / 25\")","v":"3 / 25"},{"$f":"CONCATENATE(Statistics!I18,\" / 13\")","v":"3 / 13"},{"$f":"CONCATENATE(Statistics!Q18,\" / 38\")","v":"6 / 38"},null,5,"Copy the cells (Ctrl+C is the easiest way to do this)."]
[{"$f":"Statistics!B19","v":"Newsletter from Healthy Schools London"},{"$f":"CONCATENATE(Statistics!E19,\" / 25\")","v":"2 / 25"},{"$f":"CONCATENATE(Statistics!I19,\" / 13\")","v":"2 / 13"},{"$f":"CONCATENATE(Statistics!Q19,\" / 38\")","v":"4 / 38"},null,6,"Select all the cells in the data table in the Management Summary Report."]
[{"$f":"Statistics!B20","v":"Cranford Primary School, Hounslow"},{"$f":"CONCATENATE(Statistics!E20,\" / 25\")","v":"2 / 25"},{"$f":"CONCATENATE(Statistics!I20,\" / 13\")","v":"2 / 13"},{"$f":"CONCATENATE(Statistics!Q20,\" / 38\")","v":"4 / 38"},null,7,"Paste the cells into the Management Summary Report (Ctrl+V is the easiest way to do this)."]
[{"$f":"Statistics!B21","v":"Register"},{"$f":"CONCATENATE(Statistics!E21,\" / 25\")","v":"2 / 25"},{"$f":"CONCATENATE(Statistics!I21,\" / 13\")","v":"1 / 13"},{"$f":"CONCATENATE(Statistics!Q21,\" / 38\")","v":"3 / 38"},null,8,"While the cells are still selected, set the Paragraph Spacing to 3pt Before and 3pt After."]
[{"$f":"Statistics!B22","v":"Register Step 2"},{"$f":"CONCATENATE(Statistics!E22,\" / 25\")","v":"2 / 25"},{"$f":"CONCATENATE(Statistics!I22,\" / 13\")","v":"3 / 13"},{"$f":"CONCATENATE(Statistics!Q22,\" / 38\")","v":"5 / 38"},null,9,"Make the column headings bold."]
[{"$f":"Statistics!B23","v":"Register Step 3"},{"$f":"CONCATENATE(Statistics!E23,\" / 25\")","v":"1 / 25"},{"$f":"CONCATENATE(Statistics!I23,\" / 13\")","v":"2 / 13"},{"$f":"CONCATENATE(Statistics!Q23,\" / 38\")","v":"3 / 38"},null,10,"Select all the data cells but not the row and column headings."]
[{"$f":"Statistics!B24","v":"Register - Create School page"},{"$f":"CONCATENATE(Statistics!E24,\" / 25\")","v":"1 / 25"},{"$f":"CONCATENATE(Statistics!I24,\" / 13\")","v":"3 / 13"},{"$f":"CONCATENATE(Statistics!Q24,\" / 38\")","v":"4 / 38"},null,11,"Right-click anywhere in the selected area. A dropdown menu will appear. Select Cell Alignment > Align Centre (the option in the middle)."]
[{"$f":"Statistics!B25","v":"Case Studies"},{"$f":"CONCATENATE(Statistics!E25,\" / 25\")","v":"1 / 25"},{"$f":"CONCATENATE(Statistics!I25,\" / 13\")","v":"2 / 13"},{"$f":"CONCATENATE(Statistics!Q25,\" / 38\")","v":"3 / 38"}]
[{"$f":"Statistics!B26","v":"Films"},{"$f":"CONCATENATE(Statistics!E26,\" / 25\")","v":"1 / 25"},{"$f":"CONCATENATE(Statistics!I26,\" / 13\")","v":"2 / 13"},{"$f":"CONCATENATE(Statistics!Q26,\" / 38\")","v":"3 / 38"},null,null,"This sheet needs to be updated for WCAG 2.1 AAA"]
[{"$f":"Statistics!B27","v":"Sign Up"},{"$f":"CONCATENATE(Statistics!E27,\" / 25\")","v":"1 / 25"},{"$f":"CONCATENATE(Statistics!I27,\" / 13\")","v":"3 / 13"},{"$f":"CONCATENATE(Statistics!Q27,\" / 38\")","v":"4 / 38"}]
[{"$f":"Statistics!B28","v":"User account"},{"$f":"CONCATENATE(Statistics!E28,\" / 25\")","v":"1 / 25"},{"$f":"CONCATENATE(Statistics!I28,\" / 13\")","v":"3 / 13"},{"$f":"CONCATENATE(Statistics!Q28,\" / 38\")","v":"4 / 38"}]
[{"$f":"Statistics!B29","v":"Apply Gold"},{"$f":"CONCATENATE(Statistics!E29,\" / 25\")","v":"2 / 25"},{"$f":"CONCATENATE(Statistics!I29,\" / 13\")","v":"3 / 13"},{"$f":"CONCATENATE(Statistics!Q29,\" / 38\")","v":"5 / 38"}]
[{"$f":"Statistics!B30","v":"Page 17"},{"$f":"CONCATENATE(Statistics!E30,\" / 25\")","v":"0 / 25"},{"$f":"CONCATENATE(Statistics!I30,\" / 13\")","v":"0 / 13"},{"$f":"CONCATENATE(Statistics!Q30,\" / 38\")","v":"0 / 38"}]
[{"$f":"Statistics!B31","v":"Page 18"},{"$f":"CONCATENATE(Statistics!E31,\" / 25\")","v":"0 / 25"},{"$f":"CONCATENATE(Statistics!I31,\" / 13\")","v":"0 / 13"},{"$f":"CONCATENATE(Statistics!Q31,\" / 38\")","v":"0 / 38"}]
[{"$f":"Statistics!B32","v":"Page 19"},{"$f":"CONCATENATE(Statistics!E32,\" / 25\")","v":"0 / 25"},{"$f":"CONCATENATE(Statistics!I32,\" / 13\")","v":"0 / 13"},{"$f":"CONCATENATE(Statistics!Q32,\" / 38\")","v":"0 / 38"}]
[{"$f":"Statistics!B33","v":"Page 20"},{"$f":"CONCATENATE(Statistics!E33,\" / 25\")","v":"0 / 25"},{"$f":"CONCATENATE(Statistics!I33,\" / 13\")","v":"0 / 13"},{"$f":"CONCATENATE(Statistics!Q33,\" / 38\")","v":"0 / 38"}]
[{"$f":"Statistics!B34","v":"Page 21"},{"$f":"CONCATENATE(Statistics!E34,\" / 25\")","v":"0 / 25"},{"$f":"CONCATENATE(Statistics!I34,\" / 13\")","v":"0 / 13"},{"$f":"CONCATENATE(Statistics!Q34,\" / 38\")","v":"0 / 38"}]
[{"$f":"Statistics!B35","v":"Page 22"},{"$f":"CONCATENATE(Statistics!E35,\" / 25\")","v":"0 / 25"},{"$f":"CONCATENATE(Statistics!I35,\" / 13\")","v":"0 / 13"},{"$f":"CONCATENATE(Statistics!Q35,\" / 38\")","v":"0 / 38"}]
[{"$f":"Statistics!B36","v":"Page 23"},{"$f":"CONCATENATE(Statistics!E36,\" / 25\")","v":"0 / 25"},{"$f":"CONCATENATE(Statistics!I36,\" / 13\")","v":"0 / 13"},{"$f":"CONCATENATE(Statistics!Q36,\" / 38\")","v":"0 / 38"}]
[{"$f":"Statistics!B37","v":"Page 24"},{"$f":"CONCATENATE(Statistics!E37,\" / 25\")","v":"0 / 25"},{"$f":"CONCATENATE(Statistics!I37,\" / 13\")","v":"0 / 13"},{"$f":"CONCATENATE(Statistics!Q37,\" / 38\")","v":"0 / 38"}]
[{"$f":"Statistics!B38","v":"Page 25"},{"$f":"CONCATENATE(Statistics!E38,\" / 25\")","v":"0 / 25"},{"$f":"CONCATENATE(Statistics!I38,\" / 13\")","v":"0 / 13"},{"$f":"CONCATENATE(Statistics!Q38,\" / 38\")","v":"0 / 38"}]
[{"$f":"Statistics!B39","v":"Page 26"},{"$f":"CONCATENATE(Statistics!E39,\" / 25\")","v":"0 / 25"},{"$f":"CONCATENATE(Statistics!I39,\" / 13\")","v":"0 / 13"},{"$f":"CONCATENATE(Statistics!Q39,\" / 38\")","v":"0 / 38"}]
[{"$f":"Statistics!B40","v":"Page 27"},{"$f":"CONCATENATE(Statistics!E40,\" / 25\")","v":"0 / 25"},{"$f":"CONCATENATE(Statistics!I40,\" / 13\")","v":"0 / 13"},{"$f":"CONCATENATE(Statistics!Q40,\" / 38\")","v":"0 / 38"}]
[{"$f":"Statistics!B41","v":"Page 28"},{"$f":"CONCATENATE(Statistics!E41,\" / 25\")","v":"0 / 25"},{"$f":"CONCATENATE(Statistics!I41,\" / 13\")","v":"0 / 13"},{"$f":"CONCATENATE(Statistics!Q41,\" / 38\")","v":"0 / 38"}]
[{"$f":"Statistics!B42","v":"Page 29"},{"$f":"CONCATENATE(Statistics!E42,\" / 25\")","v":"0 / 25"},{"$f":"CONCATENATE(Statistics!I42,\" / 13\")","v":"0 / 13"},{"$f":"CONCATENATE(Statistics!Q42,\" / 38\")","v":"0 / 38"}]
[{"$f":"Statistics!B43","v":"Page 30"},{"$f":"CONCATENATE(Statistics!E43,\" / 25\")","v":"0 / 25"},{"$f":"CONCATENATE(Statistics!I43,\" / 13\")","v":"0 / 13"},{"$f":"CONCATENATE(Statistics!Q43,\" / 38\")","v":"0 / 38"}]
[{"$f":"Statistics!B44","v":"Page 31"},{"$f":"CONCATENATE(Statistics!E44,\" / 25\")","v":"0 / 25"},{"$f":"CONCATENATE(Statistics!I44,\" / 13\")","v":"0 / 13"},{"$f":"CONCATENATE(Statistics!Q44,\" / 38\")","v":"0 / 38"}]
[{"$f":"Statistics!B45","v":"Page 32"},{"$f":"CONCATENATE(Statistics!E45,\" / 25\")","v":"0 / 25"},{"$f":"CONCATENATE(Statistics!I45,\" / 13\")","v":"0 / 13"},{"$f":"CONCATENATE(Statistics!Q45,\" / 38\")","v":"0 / 38"}]
[{"$f":"Statistics!B46","v":"Page 33"},{"$f":"CONCATENATE(Statistics!E46,\" / 25\")","v":"0 / 25"},{"$f":"CONCATENATE(Statistics!I46,\" / 13\")","v":"0 / 13"},{"$f":"CONCATENATE(Statistics!Q46,\" / 38\")","v":"0 / 38"}]
[{"$f":"Statistics!B47","v":"Page 34"},{"$f":"CONCATENATE(Statistics!E47,\" / 25\")","v":"0 / 25"},{"$f":"CONCATENATE(Statistics!I47,\" / 13\")","v":"0 / 13"},{"$f":"CONCATENATE(Statistics!Q47,\" / 38\")","v":"0 / 38"}]
[{"$f":"Statistics!B48","v":"Page 35"},{"$f":"CONCATENATE(Statistics!E48,\" / 25\")","v":"0 / 25"},{"$f":"CONCATENATE(Statistics!I48,\" / 13\")","v":"0 / 13"},{"$f":"CONCATENATE(Statistics!Q48,\" / 38\")","v":"0 / 38"}]
[{"$f":"Statistics!B49","v":"Page 36"},{"$f":"CONCATENATE(Statistics!E49,\" / 25\")","v":"0 / 25"},{"$f":"CONCATENATE(Statistics!I49,\" / 13\")","v":"0 / 13"},{"$f":"CONCATENATE(Statistics!Q49,\" / 38\")","v":"0 / 38"}]
[{"$f":"Statistics!B50","v":"Page 37"},{"$f":"CONCATENATE(Statistics!E50,\" / 25\")","v":"0 / 25"},{"$f":"CONCATENATE(Statistics!I50,\" / 13\")","v":"0 / 13"},{"$f":"CONCATENATE(Statistics!Q50,\" / 38\")","v":"0 / 38"}]
[{"$f":"Statistics!B51","v":"Page 38"},{"$f":"CONCATENATE(Statistics!E51,\" / 25\")","v":"0 / 25"},{"$f":"CONCATENATE(Statistics!I51,\" / 13\")","v":"0 / 13"},{"$f":"CONCATENATE(Statistics!Q51,\" / 38\")","v":"0 / 38"}]
[{"$f":"Statistics!B52","v":"Page 39"},{"$f":"CONCATENATE(Statistics!E52,\" / 25\")","v":"0 / 25"},{"$f":"CONCATENATE(Statistics!I52,\" / 13\")","v":"0 / 13"},{"$f":"CONCATENATE(Statistics!Q52,\" / 38\")","v":"0 / 38"}]
[{"$f":"Statistics!B53","v":"Page 40"},{"$f":"CONCATENATE(Statistics!E53,\" / 25\")","v":"0 / 25"},{"$f":"CONCATENATE(Statistics!I53,\" / 13\")","v":"0 / 13"},{"$f":"CONCATENATE(Statistics!Q53,\" / 38\")","v":"0 / 38"}]
[{"$f":"Statistics!B54","v":"Page 41"},{"$f":"CONCATENATE(Statistics!E54,\" / 25\")","v":"0 / 25"},{"$f":"CONCATENATE(Statistics!I54,\" / 13\")","v":"0 / 13"},{"$f":"CONCATENATE(Statistics!Q54,\" / 38\")","v":"0 / 38"}]
[{"$f":"Statistics!B55","v":"Page 42"},{"$f":"CONCATENATE(Statistics!E55,\" / 25\")","v":"0 / 25"},{"$f":"CONCATENATE(Statistics!I55,\" / 13\")","v":"0 / 13"},{"$f":"CONCATENATE(Statistics!Q55,\" / 38\")","v":"0 / 38"}]
[{"$f":"Statistics!B56","v":"Page 43"},{"$f":"CONCATENATE(Statistics!E56,\" / 25\")","v":"0 / 25"},{"$f":"CONCATENATE(Statistics!I56,\" / 13\")","v":"0 / 13"},{"$f":"CONCATENATE(Statistics!Q56,\" / 38\")","v":"0 / 38"}]
[{"$f":"Statistics!B57","v":"Page 44"},{"$f":"CONCATENATE(Statistics!E57,\" / 25\")","v":"0 / 25"},{"$f":"CONCATENATE(Statistics!I57,\" / 13\")","v":"0 / 13"},{"$f":"CONCATENATE(Statistics!Q57,\" / 38\")","v":"0 / 38"}]
[{"$f":"Statistics!B58","v":"Page 45"},{"$f":"CONCATENATE(Statistics!E58,\" / 25\")","v":"0 / 25"},{"$f":"CONCATENATE(Statistics!I58,\" / 13\")","v":"0 / 13"},{"$f":"CONCATENATE(Statistics!Q58,\" / 38\")","v":"0 / 38"}]
[{"$f":"Statistics!B59","v":"Page 46"},{"$f":"CONCATENATE(Statistics!E59,\" / 25\")","v":"0 / 25"},{"$f":"CONCATENATE(Statistics!I59,\" / 13\")","v":"0 / 13"},{"$f":"CONCATENATE(Statistics!Q59,\" / 38\")","v":"0 / 38"}]
[{"$f":"Statistics!B60","v":"Page 47"},{"$f":"CONCATENATE(Statistics!E60,\" / 25\")","v":"0 / 25"},{"$f":"CONCATENATE(Statistics!I60,\" / 13\")","v":"0 / 13"},{"$f":"CONCATENATE(Statistics!Q60,\" / 38\")","v":"0 / 38"}]
[{"$f":"Statistics!B61","v":"Page 48"},{"$f":"CONCATENATE(Statistics!E61,\" / 25\")","v":"0 / 25"},{"$f":"CONCATENATE(Statistics!I61,\" / 13\")","v":"0 / 13"},{"$f":"CONCATENATE(Statistics!Q61,\" / 38\")","v":"0 / 38"}]
[{"$f":"Statistics!B62","v":"Page 49"},{"$f":"CONCATENATE(Statistics!E62,\" / 25\")","v":"0 / 25"},{"$f":"CONCATENATE(Statistics!I62,\" / 13\")","v":"0 / 13"},{"$f":"CONCATENATE(Statistics!Q62,\" / 38\")","v":"0 / 38"}]
[{"$f":"Statistics!B63","v":"Page 50"},{"$f":"CONCATENATE(Statistics!E63,\" / 25\")","v":"0 / 25"},{"$f":"CONCATENATE(Statistics!I63,\" / 13\")","v":"0 / 13"},{"$f":"CONCATENATE(Statistics!Q63,\" / 38\")","v":"0 / 38"}]